Workbook

Sheet 参考数据
A1: 决算公开表数据 | E1: 单位名称（筛选单位，查看数据，数据仅作参考） | F1: 名称解释
B2: 公开配置表 | E2: 学军中学附属泰顺实验学校 | F2: =VLOOKUP(E2,核对!A:G,7,0) -> 17.教育支出（类）普通教育（款）初中教育（项）：指反映各部门举办的初中教育支出。政府各部门对社会组织等举办的初中的资助，如捐赠、补贴等，也在本科目中反映。 18.教育支出（类）普通教育（款）其他普通教育支出（项）：指反映除上述项目以外其他用于普通教育方面的支出。 19.教育支出（类）教育费附加安排的支出（款）其他教育费附加安排的支出（项）：指反映除上述项目以外的教育费附加支出。 20.社会保障和就业支出（类）行政事业单位养老支出（款）机关事业单位基本养老保险缴费支出（项）：指反映机关事业单位实施养老保险制度由单位缴纳的基本养老保险费支出。 21.社会保障和就业支出（类）行政事业单位养老支出（款）机关事业单位职业年金缴费支出（项）：指反映机关事业单位实施养老保险制度由单位实际缴纳的职业年金支出（含职业年金补记支出）。 22.卫生健康支出（类）行政事业单位医疗（款）事业单位医疗（项）：指反映财政部门安排的事业单位基本医疗保险缴费经费，未参加医疗保险的事业单位的公费医疗经费，按国家规定享受离休人员待遇的医疗经费。 23.卫生健康支出（类）行政事业单位医疗（款）公务员医疗补助（项）：指反映财政部门安排的公务员医疗补助经费。 24.住房保障支出（类）住房改革支出（款）住房公积金（项）：指反映行政事业单位按人力资源和社会保障部、财政部规定的基本工资和津贴补贴以及规定比例为职工缴纳的住房公积金。 25.其他支出（类）其他政府性基金及对应专项债务收人安排的支出（款）其他政府性基金安排的支出（项）：指反映其他政府性基金安排的支出(包括用以前年度欠款收人安排的支出)。
A3: 编制单位：学军中学附属泰顺实验学校 | E3: 学军中学附属泰顺实验学校
A4: 注意：本表只用于补充填写预算数，公开表不含此表。决算数不允许修改。若需调整决算数据，请调整具体公开表后，重新运算。 | B4: 注意：本表只用于补充填写预算数，公开表不含此表。决算数不允许修改。若需调整决算数据，请调整具体公开表后，重新运算。 | C4: 注意：本表只用于补充填写预算数，公开表不含此表。决算数不允许修改。若需调整决算数据，请调整具体公开表后，重新运算。 | D4: 注意：本表只用于补充填写预算数，公开表不含此表。决算数不允许修改。若需调整决算数据，请调整具体公开表后，重新运算。 | E4: 学军中学附属泰顺实验学校
A5: 五、一般公共预算财政拨款支出决算情况说明相关数据 | B5: 五、一般公共预算财政拨款支出决算情况说明相关数据 | C5: 五、一般公共预算财政拨款支出决算情况说明相关数据 | D5: 五、一般公共预算财政拨款支出决算情况说明相关数据 | E5: 学军中学附属泰顺实验学校
A6: 科目代码 | B6: 科目名称 | C6: 年初预算 | D6: 决算 | E6: 学军中学附属泰顺实验学校
A7: 栏次 | B7: 1 | C7: 2 | D7: 3 | E7: 学军中学附属泰顺实验学校
A8: 合计 | B8: 合计 | C8: 0 | D8: 9256973.84 | E8: 学军中学附属泰顺实验学校
A9: 2050203 | B9: 初中教育 | C9: 5730908 | D9: 6929240.6 | E9: 学军中学附属泰顺实验学校
A10: 2050299 | B10: 其他普通教育支出 | C10: 31755.98 | D10: 285099.16 | E10: 学军中学附属泰顺实验学校
A11: 2050999 | B11: 其他教育费附加安排的支出 | C11: 19548 | D11: 7880.95 | E11: 学军中学附属泰顺实验学校
A12: 2080505 | B12: 机关事业单位基本养老保险缴费支出 | C12: 514856 | D12: 603559.46 | E12: 学军中学附属泰顺实验学校
A13: 2080506 | B13: 机关事业单位职业年金缴费支出 | C13: 257428 | D13: 301799.71 | E13: 学军中学附属泰顺实验学校
A14: 2101102 | B14: 事业单位医疗 | C14: 201970 | D14: 217005.96 | E14: 学军中学附属泰顺实验学校
A15: 2101103 | B15: 公务员医疗补助 | C15: 134736 | D15: 144360 | E15: 学军中学附属泰顺实验学校
A16: 2210201 | B16: 住房公积金 | C16: 692916 | D16: 768028 | E16: 学军中学附属泰顺实验学校
A17: 七、政府性基金预算财政拨款收入支出情况说明相关数据 | B17: 七、政府性基金预算财政拨款收入支出情况说明相关数据 | C17: 七、政府性基金预算财政拨款收入支出情况说明相关数据 | D17: 七、政府性基金预算财政拨款收入支出情况说明相关数据 | E17: 学军中学附属泰顺实验学校
A18: 科目代码 | B18: 科目名称 | C18: 年初预算 | D18: 决算 | E18: 学军中学附属泰顺实验学校
A19: 栏次 | B19: 1 | C19: 2 | D19: 3 | E19: 学军中学附属泰顺实验学校
A20: 合计 | B20: 合计 | C20: 0 | D20: 150600 | E20: 学军中学附属泰顺实验学校
A21: 2290401 | B21: 其他政府性基金安排的支出 | C21: 0 | D21: 150600 | E21: 学军中学附属泰顺实验学校
A22: 八、国有资本经营预算财政拨款支出决算情况说明相关数据 | B22: 八、国有资本经营预算财政拨款支出决算情况说明相关数据 | C22: 八、国有资本经营预算财政拨款支出决算情况说明相关数据 | E22: 学军中学附属泰顺实验学校
A23: 科目代码 | B23: 科目名称 | C23: 年初预算 | D23: 决算 | E23: 学军中学附属泰顺实验学校
A24: 栏次 | B24: 1 | C24: 2 | D24: 3 | E24: 学军中学附属泰顺实验学校
A25: 合计 | B25: 合计 | E25: 学军中学附属泰顺实验学校
E26: 学军中学附属泰顺实验学校
A27: 十、机关运行经费年初预算 | B27: 是否开展项目重点绩效评价 | C27: 四、财政拨款支出年初预算数 | E27: 学军中学附属泰顺实验学校
C28: 0 | E28: 学军中学附属泰顺实验学校
A29: 循环提取“六、一般公共预算基本支出情况” | E29: 学军中学附属泰顺实验学校
A30: 人员经费 | B30: 人员经费789.54万元，主要包括：基本工资、津贴补贴、绩效工资、机关事业单位基本养老保险缴费、职业年金缴费、职工基本医疗保险缴费、公务员医疗补助缴费、其他社会保障缴费、住房公积金、其他工资福利支出 | C30: 日常公用经费 | D30: 日常公用经费22.75万元，主要包括：工会经费、福利费 | E30: 学军中学附属泰顺实验学校
B31: — 1 — | E31: 学军中学附属泰顺实验学校
B32: 公开配置表 | E32: 泰顺县三魁镇中心小学 | F32: =VLOOKUP(E32,核对!A:G,7,0) -> 17.教育支出（类）普通教育（款）小学教育（项）：指反映各部门举办的小学教育支出。政府各部门对社会组织等举办的小学的资助，如各类捐赠、补贴等，也在本科目反映。 18.教育支出（类）普通教育（款）其他普通教育支出（项）：指反映除上述项目以外其他用于普通教育方面的支出。 19.教育支出（类）教育费附加安排的支出（款）其他教育费附加安排的支出（项）：指反映除上述项目以外的教育费附加支出。 20.科学技术支出（类）其他科学技术支出（款）其他科学技术支出（项）：指反映其他科学技术支出中除以上各项外用于科技方面的支出。 21.文化旅游体育与传媒支出（类）其他文化旅游体育与传媒支出（款）其他文化旅游体育与传媒支出（项）：指反映除上述项目以外其他用于文化旅游体育与传媒方面的支出。 22.社会保障和就业支出（类）人力资源和社会保障管理事务（款）其他人力资源和社会保障管理事务支出（项）：指反映除上述项目以外其他用于人力资源和社会保障管理事务方面的支出。 23.社会保障和就业支出（类）行政事业单位养老支出（款）事业单位离退休（项）：指反映事业单位开支的离退休经费。 24.社会保障和就业支出（类）行政事业单位养老支出（款）机关事业单位基本养老保险缴费支出（项）：指反映机关事业单位实施养老保险制度由单位缴纳的基本养老保险费支出。 25.社会保障和就业支出（类）行政事业单位养老支出（款）机关事业单位职业年金缴费支出（项）：指反映机关事业单位实施养老保险制度由单位实际缴纳的职业年金支出（含职业年金补记支出）。 26.卫生健康支出（类）行政事业单位医疗（款）事业单位医疗（项）：指反映财政部门安排的事业单位基本医疗保险缴费经费，未参加医疗保险的事业单位的公费医疗经费，按国家规定享受离休人员待遇的医疗经费。 27.卫生健康支出（类）行政事业单位医疗（款）公务员医疗补助（项）：指反映财政部门安排的公务员医疗补助经费。 28.住房保障支出（类）住房改革支出（款）住房公积金（项）：指反映行政事业单位按人力资源和社会保障部、财政部规定的基本工资和津贴补贴以及规定比例为职工缴纳的住房公积金。 29.其他支出（类）其他政府性基金及对应专项债务收人安排的支出（款）其他政府性基金安排的支出（项）：指反映其他政府性基金安排的支出(包括用以前年度欠款收人安排的支出)。
A33: 编制单位：泰顺县三魁镇中心小学 | E33: 泰顺县三魁镇中心小学
A34: 注意：本表只用于补充填写预算数，公开表不含此表。决算数不允许修改。若需调整决算数据，请调整具体公开表后，重新运算。 | B34: 注意：本表只用于补充填写预算数，公开表不含此表。决算数不允许修改。若需调整决算数据，请调整具体公开表后，重新运算。 | C34: 注意：本表只用于补充填写预算数，公开表不含此表。决算数不允许修改。若需调整决算数据，请调整具体公开表后，重新运算。 | D34: 注意：本表只用于补充填写预算数，公开表不含此表。决算数不允许修改。若需调整决算数据，请调整具体公开表后，重新运算。 | E34: 泰顺县三魁镇中心小学
A35: 五、一般公共预算财政拨款支出决算情况说明相关数据 | B35: 五、一般公共预算财政拨款支出决算情况说明相关数据 | C35: 五、一般公共预算财政拨款支出决算情况说明相关数据 | D35: 五、一般公共预算财政拨款支出决算情况说明相关数据 | E35: 泰顺县三魁镇中心小学
A36: 科目代码 | B36: 科目名称 | C36: 年初预算 | D36: 决算 | E36: 泰顺县三魁镇中心小学
A37: 栏次 | B37: 1 | C37: 2 | D37: 3 | E37: 泰顺县三魁镇中心小学
A38: 合计 | B38: 合计 | C38: 0 | D38: 20162027.95 | E38: 泰顺县三魁镇中心小学
A39: 2050202 | B39: 小学教育 | C39: 13321132 | D39: 14430007.04 | E39: 泰顺县三魁镇中心小学
A40: 2050299 | B40: 其他普通教育支出 | C40: 0 | D40: 443310.25 | E40: 泰顺县三魁镇中心小学
A41: 2050999 | B41: 其他教育费附加安排的支出 | C41: 0 | D41: 18000 | E41: 泰顺县三魁镇中心小学
A42: 2069999 | B42: 其他科学技术支出 | C42: 0 | D42: 49600 | E42: 泰顺县三魁镇中心小学
A43: 2079999 | B43: 其他文化旅游体育与传媒支出 | C43: 40000 | D43: 70000 | E43: 泰顺县三魁镇中心小学
A44: 2080199 | B44: 其他人力资源和社会保障管理事务支出 | C44: 0 | D44: 55800 | E44: 泰顺县三魁镇中心小学
A45: 2080502 | B45: 事业单位离退休 | C45: 282070 | D45: 319473 | E45: 泰顺县三魁镇中心小学
A46: 2080505 | B46: 机关事业单位基本养老保险缴费支出 | C46: 1193555 | D46: 1217878.01 | E46: 泰顺县三魁镇中心小学
A47: 2080506 | B47: 机关事业单位职业年金缴费支出 | C47: 596778 | D47: 608939.01 | E47: 泰顺县三魁镇中心小学
A48: 2101102 | B48: 事业单位医疗 | C48: 830028 | D48: 822333.56 | E48: 泰顺县三魁镇中心小学
A49: 2101103 | B49: 公务员医疗补助 | C49: 523546 | D49: 526119.08 | E49: 泰顺县三魁镇中心小学
A50: 2210201 | B50: 住房公积金 | C50: 1576068 | D50: 1600568 | E50: 泰顺县三魁镇中心小学
A51: 七、政府性基金预算财政拨款收入支出情况说明相关数据 | B51: 七、政府性基金预算财政拨款收入支出情况说明相关数据 | C51: 七、政府性基金预算财政拨款收入支出情况说明相关数据 | D51: 七、政府性基金预算财政拨款收入支出情况说明相关数据 | E51: 泰顺县三魁镇中心小学
A52: 科目代码 | B52: 科目名称 | C52: 年初预算 | D52: 决算 | E52: 泰顺县三魁镇中心小学
A53: 栏次 | B53: 1 | C53: 2 | D53: 3 | E53: 泰顺县三魁镇中心小学
A54: 合计 | B54: 合计 | C54: 0 | D54: 36000 | E54: 泰顺县三魁镇中心小学
A55: 2290401 | B55: 其他政府性基金安排的支出 | C55: 0 | D55: 36000 | E55: 泰顺县三魁镇中心小学
A56: 八、国有资本经营预算财政拨款支出决算情况说明相关数据 | B56: 八、国有资本经营预算财政拨款支出决算情况说明相关数据 | C56: 八、国有资本经营预算财政拨款支出决算情况说明相关数据 | E56: 泰顺县三魁镇中心小学
A57: 科目代码 | B57: 科目名称 | C57: 年初预算 | D57: 决算 | E57: 泰顺县三魁镇中心小学
A58: 栏次 | B58: 1 | C58: 2 | D58: 3 | E58: 泰顺县三魁镇中心小学
A59: 合计 | B59: 合计 | E59: 泰顺县三魁镇中心小学
E60: 泰顺县三魁镇中心小学
A61: 十、机关运行经费年初预算 | B61: 是否开展项目重点绩效评价 | C61: 四、财政拨款支出年初预算数 | E61: 泰顺县三魁镇中心小学
C62: 0 | E62: 泰顺县三魁镇中心小学
A63: 循环提取“六、一般公共预算基本支出情况” | E63: 泰顺县三魁镇中心小学
A64: 人员经费 | B64: 人员经费1748.80万元，主要包括：基本工资、津贴补贴、绩效工资、机关事业单位基本养老保险缴费、职业年金缴费、职工基本医疗保险缴费、公务员医疗补助缴费、其他社会保障缴费、住房公积金、医疗费、其他工资福利支出、退休费、生活补助、其他对个人和家庭的补助 | C64: 日常公用经费 | D64: 日常公用经费39.27万元，主要包括：工会经费、福利费 | E64: 泰顺县三魁镇中心小学
B65: — 1 — | E65: 泰顺县三魁镇中心小学
B66: 公开配置表 | E66: 泰顺县三魁镇幼儿园 | F66: =VLOOKUP(E66,核对!A:G,7,0) -> 17.教育支出（类）普通教育（款）学前教育（项）：指反映各部门举办的学前教育支出。政府各部门对社会组织等举办的幼儿园的资助，如各类捐赠、补贴等，也在本科目反映。 18.教育支出（类）普通教育（款）其他普通教育支出（项）：指反映除上述项目以外其他用于普通教育方面的支出。 19.教育支出（类）教育费附加安排的支出（款）其他教育费附加安排的支出（项）：指反映除上述项目以外的教育费附加支出。 20.科学技术支出（类）其他科学技术支出（款）其他科学技术支出（项）：指反映其他科学技术支出中除以上各项外用于科技方面的支出。 21.社会保障和就业支出（类）行政事业单位养老支出（款）机关事业单位基本养老保险缴费支出（项）：指反映机关事业单位实施养老保险制度由单位缴纳的基本养老保险费支出。 22.社会保障和就业支出（类）行政事业单位养老支出（款）机关事业单位职业年金缴费支出（项）：指反映机关事业单位实施养老保险制度由单位实际缴纳的职业年金支出（含职业年金补记支出）。 23.卫生健康支出（类）行政事业单位医疗（款）事业单位医疗（项）：指反映财政部门安排的事业单位基本医疗保险缴费经费，未参加医疗保险的事业单位的公费医疗经费，按国家规定享受离休人员待遇的医疗经费。 24.卫生健康支出（类）行政事业单位医疗（款）公务员医疗补助（项）：指反映财政部门安排的公务员医疗补助经费。 25.住房保障支出（类）住房改革支出（款）住房公积金（项）：指反映行政事业单位按人力资源和社会保障部、财政部规定的基本工资和津贴补贴以及规定比例为职工缴纳的住房公积金。 26.其他支出（类）其他政府性基金及对应专项债务收人安排的支出（款）其他政府性基金安排的支出（项）：指反映其他政府性基金安排的支出(包括用以前年度欠款收人安排的支出)。
A67: 编制单位：泰顺县三魁镇幼儿园 | E67: 泰顺县三魁镇幼儿园
A68: 注意：本表只用于补充填写预算数，公开表不含此表。决算数不允许修改。若需调整决算数据，请调整具体公开表后，重新运算。 | B68: 注意：本表只用于补充填写预算数，公开表不含此表。决算数不允许修改。若需调整决算数据，请调整具体公开表后，重新运算。 | C68: 注意：本表只用于补充填写预算数，公开表不含此表。决算数不允许修改。若需调整决算数据，请调整具体公开表后，重新运算。 | D68: 注意：本表只用于补充填写预算数，公开表不含此表。决算数不允许修改。若需调整决算数据，请调整具体公开表后，重新运算。 | E68: 泰顺县三魁镇幼儿园
A69: 五、一般公共预算财政拨款支出决算情况说明相关数据 | B69: 五、一般公共预算财政拨款支出决算情况说明相关数据 | C69: 五、一般公共预算财政拨款支出决算情况说明相关数据 | D69: 五、一般公共预算财政拨款支出决算情况说明相关数据 | E69: 泰顺县三魁镇幼儿园
A70: 科目代码 | B70: 科目名称 | C70: 年初预算 | D70: 决算 | E70: 泰顺县三魁镇幼儿园
A71: 栏次 | B71: 1 | C71: 2 | D71: 3 | E71: 泰顺县三魁镇幼儿园
A72: 合计 | B72: 合计 | C72: 0 | D72: 5134966.63 | E72: 泰顺县三魁镇幼儿园
A73: 2050201 | B73: 学前教育 | C73: 3197309.47 | D73: 4194411.45 | E73: 泰顺县三魁镇幼儿园
A74: 2050299 | B74: 其他普通教育支出 | C74: 7300 | D74: 7300 | E74: 泰顺县三魁镇幼儿园
A75: 2050999 | B75: 其他教育费附加安排的支出 | C75: 0 | D75: 36000 | E75: 泰顺县三魁镇幼儿园
A76: 2069999 | B76: 其他科学技术支出 | C76: 0 | D76: 9000 | E76: 泰顺县三魁镇幼儿园
A77: 2080505 | B77: 机关事业单位基本养老保险缴费支出 | C77: 230817 | D77: 237883.8 | E77: 泰顺县三魁镇幼儿园
A78: 2080506 | B78: 机关事业单位职业年金缴费支出 | C78: 115409 | D78: 118941.9 | E78: 泰顺县三魁镇幼儿园
A79: 2101102 | B79: 事业单位医疗 | C79: 109641 | D79: 110602.4 | E79: 泰顺县三魁镇幼儿园
A80: 2101103 | B80: 公务员医疗补助 | C80: 73142 | D80: 74227.08 | E80: 泰顺县三魁镇幼儿园
A81: 2210201 | B81: 住房公积金 | C81: 337512 | D81: 346600 | E81: 泰顺县三魁镇幼儿园
A82: 七、政府性基金预算财政拨款收入支出情况说明相关数据 | B82: 七、政府性基金预算财政拨款收入支出情况说明相关数据 | C82: 七、政府性基金预算财政拨款收入支出情况说明相关数据 | D82: 七、政府性基金预算财政拨款收入支出情况说明相关数据 | E82: 泰顺县三魁镇幼儿园
A83: 科目代码 | B83: 科目名称 | C83: 年初预算 | D83: 决算 | E83: 泰顺县三魁镇幼儿园
A84: 栏次 | B84: 1 | C84: 2 | D84: 3 | E84: 泰顺县三魁镇幼儿园
A85: 合计 | B85: 合计 | C85: 0 | D85: 36000 | E85: 泰顺县三魁镇幼儿园
A86: 2290401 | B86: 其他政府性基金安排的支出 | C86: 0 | D86: 36000 | E86: 泰顺县三魁镇幼儿园
A87: 八、国有资本经营预算财政拨款支出决算情况说明相关数据 | B87: 八、国有资本经营预算财政拨款支出决算情况说明相关数据 | C87: 八、国有资本经营预算财政拨款支出决算情况说明相关数据 | E87: 泰顺县三魁镇幼儿园
A88: 科目代码 | B88: 科目名称 | C88: 年初预算 | D88: 决算 | E88: 泰顺县三魁镇幼儿园
A89: 栏次 | B89: 1 | C89: 2 | D89: 3 | E89: 泰顺县三魁镇幼儿园
A90: 合计 | B90: 合计 | E90: 泰顺县三魁镇幼儿园
E91: 泰顺县三魁镇幼儿园
A92: 十、机关运行经费年初预算 | B92: 是否开展项目重点绩效评价 | C92: 四、财政拨款支出年初预算数 | E92: 泰顺县三魁镇幼儿园
C93: 0 | E93: 泰顺县三魁镇幼儿园
A94: 循环提取“六、一般公共预算基本支出情况” | E94: 泰顺县三魁镇幼儿园
A95: 人员经费 | B95: 人员经费365.41万元，主要包括：基本工资、津贴补贴、绩效工资、机关事业单位基本养老保险缴费、职业年金缴费、职工基本医疗保险缴费、公务员医疗补助缴费、其他社会保障缴费、住房公积金、医疗费、其他工资福利支出 | C95: 日常公用经费 | D95: 日常公用经费24.41万元，主要包括：办公费、水费、电费、邮电费、物业管理费、差旅费、维修（护）费、培训费、专用材料费、劳务费、工会经费、福利费、其他商品和服务支出 | E95: 泰顺县三魁镇幼儿园
B96: — 1 — | E96: 泰顺县三魁镇幼儿园
B97: 公开配置表 | E97: 泰顺县三魁镇第二小学 | F97: =VLOOKUP(E97,核对!A:G,7,0) -> 17.教育支出（类）普通教育（款）小学教育（项）：指反映各部门举办的小学教育支出。政府各部门对社会组织等举办的小学的资助，如各类捐赠、补贴等，也在本科目反映。 18.教育支出（类）普通教育（款）其他普通教育支出（项）：指反映除上述项目以外其他用于普通教育方面的支出。 19.教育支出（类）教育费附加安排的支出（款）其他教育费附加安排的支出（项）：指反映除上述项目以外的教育费附加支出。 20.科学技术支出（类）其他科学技术支出（款）其他科学技术支出（项）：指反映其他科学技术支出中除以上各项外用于科技方面的支出。 21.文化旅游体育与传媒支出（类）其他文化旅游体育与传媒支出（款）其他文化旅游体育与传媒支出（项）：指反映除上述项目以外其他用于文化旅游体育与传媒方面的支出。 22.社会保障和就业支出（类）人力资源和社会保障管理事务（款）其他人力资源和社会保障管理事务支出（项）：指反映除上述项目以外其他用于人力资源和社会保障管理事务方面的支出。 23.社会保障和就业支出（类）行政事业单位养老支出（款）事业单位离退休（项）：指反映事业单位开支的离退休经费。 24.社会保障和就业支出（类）行政事业单位养老支出（款）机关事业单位基本养老保险缴费支出（项）：指反映机关事业单位实施养老保险制度由单位缴纳的基本养老保险费支出。 25.社会保障和就业支出（类）行政事业单位养老支出（款）机关事业单位职业年金缴费支出（项）：指反映机关事业单位实施养老保险制度由单位实际缴纳的职业年金支出（含职业年金补记支出）。 26.卫生健康支出（类）行政事业单位医疗（款）事业单位医疗（项）：指反映财政部门安排的事业单位基本医疗保险缴费经费，未参加医疗保险的事业单位的公费医疗经费，按国家规定享受离休人员待遇的医疗经费。 27.卫生健康支出（类）行政事业单位医疗（款）公务员医疗补助（项）：指反映财政部门安排的公务员医疗补助经费。 28.住房保障支出（类）住房改革支出（款）住房公积金（项）：指反映行政事业单位按人力资源和社会保障部、财政部规定的基本工资和津贴补贴以及规定比例为职工缴纳的住房公积金。 29.其他支出（类）其他政府性基金及对应专项债务收人安排的支出（款）其他政府性基金安排的支出（项）：指反映其他政府性基金安排的支出(包括用以前年度欠款收人安排的支出)。
A98: 编制单位：泰顺县三魁镇第二小学 | E98: 泰顺县三魁镇第二小学
A99: 注意：本表只用于补充填写预算数，公开表不含此表。决算数不允许修改。若需调整决算数据，请调整具体公开表后，重新运算。 | B99: 注意：本表只用于补充填写预算数，公开表不含此表。决算数不允许修改。若需调整决算数据，请调整具体公开表后，重新运算。 | C99: 注意：本表只用于补充填写预算数，公开表不含此表。决算数不允许修改。若需调整决算数据，请调整具体公开表后，重新运算。 | D99: 注意：本表只用于补充填写预算数，公开表不含此表。决算数不允许修改。若需调整决算数据，请调整具体公开表后，重新运算。 | E99: 泰顺县三魁镇第二小学
A100: 五、一般公共预算财政拨款支出决算情况说明相关数据 | B100: 五、一般公共预算财政拨款支出决算情况说明相关数据 | C100: 五、一般公共预算财政拨款支出决算情况说明相关数据 | D100: 五、一般公共预算财政拨款支出决算情况说明相关数据 | E100: 泰顺县三魁镇第二小学
A101: 科目代码 | B101: 科目名称 | C101: 年初预算 | D101: 决算 | E101: 泰顺县三魁镇第二小学
A102: 栏次 | B102: 1 | C102: 2 | D102: 3 | E102: 泰顺县三魁镇第二小学
A103: 合计 | B103: 合计 | C103: 0 | D103: 4478418.36 | E103: 泰顺县三魁镇第二小学
A104: 2050202 | B104: 小学教育 | C104: 2564769.89 | D104: 3092032.28 | E104: 泰顺县三魁镇第二小学
A105: 2050299 | B105: 其他普通教育支出 | C105: 26321 | D105: 115155.62 | E105: 泰顺县三魁镇第二小学
A106: 2050999 | B106: 其他教育费附加安排的支出 | C106: 11025.54 | D106: 29025.54 | E106: 泰顺县三魁镇第二小学
A107: 2069999 | B107: 其他科学技术支出 | C107: 0 | D107: 15000 | E107: 泰顺县三魁镇第二小学
A108: 2079999 | B108: 其他文化旅游体育与传媒支出 | C108: 10000 | D108: 15000 | E108: 泰顺县三魁镇第二小学
A109: 2080199 | B109: 其他人力资源和社会保障管理事务支出 | C109: 0 | D109: 19800 | E109: 泰顺县三魁镇第二小学
A110: 2080502 | B110: 事业单位离退休 | C110: 88000 | D110: 132828 | E110: 泰顺县三魁镇第二小学
A111: 2080505 | B111: 机关事业单位基本养老保险缴费支出 | C111: 234176 | D111: 247005.39 | E111: 泰顺县三魁镇第二小学
A112: 2080506 | B112: 机关事业单位职业年金缴费支出 | C112: 117089 | D112: 123502.69 | E112: 泰顺县三魁镇第二小学
A113: 2101102 | B113: 事业单位医疗 | C113: 223535 | D113: 234525.76 | E113: 泰顺县三魁镇第二小学
A114: 2101103 | B114: 公务员医疗补助 | C114: 138586 | D114: 143635.08 | E114: 泰顺县三魁镇第二小学
A115: 2210201 | B115: 住房公积金 | C115: 308280 | D115: 310908 | E115: 泰顺县三魁镇第二小学
A116: 七、政府性基金预算财政拨款收入支出情况说明相关数据 | B116: 七、政府性基金预算财政拨款收入支出情况说明相关数据 | C116: 七、政府性基金预算财政拨款收入支出情况说明相关数据 | D116: 七、政府性基金预算财政拨款收入支出情况说明相关数据 | E116: 泰顺县三魁镇第二小学
A117: 科目代码 | B117: 科目名称 | C117: 年初预算 | D117: 决算 | E117: 泰顺县三魁镇第二小学
A118: 栏次 | B118: 1 | C118: 2 | D118: 3 | E118: 泰顺县三魁镇第二小学
A119: 合计 | B119: 合计 | C119: 0 | D119: 36000 | E119: 泰顺县三魁镇第二小学
A120: 2290401 | B120: 其他政府性基金安排的支出 | C120: 0 | D120: 36000 | E120: 泰顺县三魁镇第二小学
A121: 八、国有资本经营预算财政拨款支出决算情况说明相关数据 | B121: 八、国有资本经营预算财政拨款支出决算情况说明相关数据 | C121: 八、国有资本经营预算财政拨款支出决算情况说明相关数据 | E121: 泰顺县三魁镇第二小学
A122: 科目代码 | B122: 科目名称 | C122: 年初预算 | D122: 决算 | E122: 泰顺县三魁镇第二小学
A123: 栏次 | B123: 1 | C123: 2 | D123: 3 | E123: 泰顺县三魁镇第二小学
A124: 合计 | B124: 合计 | E124: 泰顺县三魁镇第二小学
E125: 泰顺县三魁镇第二小学
A126: 十、机关运行经费年初预算 | B126: 是否开展项目重点绩效评价 | C126: 四、财政拨款支出年初预算数 | E126: 泰顺县三魁镇第二小学
C127: 0 | E127: 泰顺县三魁镇第二小学
A128: 循环提取“六、一般公共预算基本支出情况” | E128: 泰顺县三魁镇第二小学
A129: 人员经费 | B129: 人员经费368.65万元，主要包括：基本工资、津贴补贴、绩效工资、机关事业单位基本养老保险缴费、职业年金缴费、职工基本医疗保险缴费、公务员医疗补助缴费、其他社会保障缴费、住房公积金、医疗费、其他工资福利支出、退休费 | C129: 日常公用经费 | D129: 日常公用经费7.32万元，主要包括：工会经费、福利费 | E129: 泰顺县三魁镇第二小学
B130: — 1 — | E130: 泰顺县三魁镇第二小学
B131: 公开配置表 | E131: 泰顺县三魁镇第二幼儿园 | F131: =VLOOKUP(E131,核对!A:G,7,0) -> 17.教育支出（类）普通教育（款）学前教育（项）：指反映各部门举办的学前教育支出。政府各部门对社会组织等举办的幼儿园的资助，如各类捐赠、补贴等，也在本科目反映。 18.教育支出（类）普通教育（款）其他普通教育支出（项）：指反映除上述项目以外其他用于普通教育方面的支出。 19.教育支出（类）教育费附加安排的支出（款）其他教育费附加安排的支出（项）：指反映除上述项目以外的教育费附加支出。 20.社会保障和就业支出（类）行政事业单位养老支出（款）机关事业单位基本养老保险缴费支出（项）：指反映机关事业单位实施养老保险制度由单位缴纳的基本养老保险费支出。 21.社会保障和就业支出（类）行政事业单位养老支出（款）机关事业单位职业年金缴费支出（项）：指反映机关事业单位实施养老保险制度由单位实际缴纳的职业年金支出（含职业年金补记支出）。 22.卫生健康支出（类）行政事业单位医疗（款）事业单位医疗（项）：指反映财政部门安排的事业单位基本医疗保险缴费经费，未参加医疗保险的事业单位的公费医疗经费，按国家规定享受离休人员待遇的医疗经费。 23.卫生健康支出（类）行政事业单位医疗（款）公务员医疗补助（项）：指反映财政部门安排的公务员医疗补助经费。 24.住房保障支出（类）住房改革支出（款）住房公积金（项）：指反映行政事业单位按人力资源和社会保障部、财政部规定的基本工资和津贴补贴以及规定比例为职工缴纳的住房公积金。 25.其他支出（类）其他政府性基金及对应专项债务收人安排的支出（款）其他政府性基金安排的支出（项）：指反映其他政府性基金安排的支出(包括用以前年度欠款收人安排的支出)。
A132: 编制单位：泰顺县三魁镇第二幼儿园 | E132: 泰顺县三魁镇第二幼儿园
A133: 注意：本表只用于补充填写预算数，公开表不含此表。决算数不允许修改。若需调整决算数据，请调整具体公开表后，重新运算。 | B133: 注意：本表只用于补充填写预算数，公开表不含此表。决算数不允许修改。若需调整决算数据，请调整具体公开表后，重新运算。 | C133: 注意：本表只用于补充填写预算数，公开表不含此表。决算数不允许修改。若需调整决算数据，请调整具体公开表后，重新运算。 | D133: 注意：本表只用于补充填写预算数，公开表不含此表。决算数不允许修改。若需调整决算数据，请调整具体公开表后，重新运算。 | E133: 泰顺县三魁镇第二幼儿园
A134: 五、一般公共预算财政拨款支出决算情况说明相关数据 | B134: 五、一般公共预算财政拨款支出决算情况说明相关数据 | C134: 五、一般公共预算财政拨款支出决算情况说明相关数据 | D134: 五、一般公共预算财政拨款支出决算情况说明相关数据 | E134: 泰顺县三魁镇第二幼儿园
A135: 科目代码 | B135: 科目名称 | C135: 年初预算 | D135: 决算 | E135: 泰顺县三魁镇第二幼儿园
A136: 栏次 | B136: 1 | C136: 2 | D136: 3 | E136: 泰顺县三魁镇第二幼儿园
A137: 合计 | B137: 合计 | C137: 0 | D137: 2310782 | E137: 泰顺县三魁镇第二幼儿园
A138: 2050201 | B138: 学前教育 | C138: 1303744.28 | D138: 1936374.52 | E138: 泰顺县三魁镇第二幼儿园
A139: 2050999 | B139: 其他教育费附加安排的支出 | C139: 36000 | D139: 72000 | E139: 泰顺县三魁镇第二幼儿园
A140: 2080505 | B140: 机关事业单位基本养老保险缴费支出 | C140: 83117 | D140: 81104.13 | E140: 泰顺县三魁镇第二幼儿园
A141: 2080506 | B141: 机关事业单位职业年金缴费支出 | C141: 41559 | D141: 40552.07 | E141: 泰顺县三魁镇第二幼儿园
A142: 2101102 | B142: 事业单位医疗 | C142: 40394 | D142: 38951.28 | E142: 泰顺县三魁镇第二幼儿园
A143: 2101103 | B143: 公务员医疗补助 | C143: 26947 | D143: 26182 | E143: 泰顺县三魁镇第二幼儿园
A144: 2210201 | B144: 住房公积金 | C144: 121020 | D144: 115618 | E144: 泰顺县三魁镇第二幼儿园
A145: 2050299 | B145: 其他普通教育支出 | C145: 3512 | D145: 0 | E145: 泰顺县三魁镇第二幼儿园
A146: 七、政府性基金预算财政拨款收入支出情况说明相关数据 | B146: 七、政府性基金预算财政拨款收入支出情况说明相关数据 | C146: 七、政府性基金预算财政拨款收入支出情况说明相关数据 | D146: 七、政府性基金预算财政拨款收入支出情况说明相关数据 | E146: 泰顺县三魁镇第二幼儿园
A147: 科目代码 | B147: 科目名称 | C147: 年初预算 | D147: 决算 | E147: 泰顺县三魁镇第二幼儿园
A148: 栏次 | B148: 1 | C148: 2 | D148: 3 | E148: 泰顺县三魁镇第二幼儿园
A149: 合计 | B149: 合计 | C149: 0 | D149: 36000 | E149: 泰顺县三魁镇第二幼儿园
A150: 2290401 | B150: 其他政府性基金安排的支出 | C150: 0 | D150: 36000 | E150: 泰顺县三魁镇第二幼儿园
A151: 八、国有资本经营预算财政拨款支出决算情况说明相关数据 | B151: 八、国有资本经营预算财政拨款支出决算情况说明相关数据 | C151: 八、国有资本经营预算财政拨款支出决算情况说明相关数据 | E151: 泰顺县三魁镇第二幼儿园
A152: 科目代码 | B152: 科目名称 | C152: 年初预算 | D152: 决算 | E152: 泰顺县三魁镇第二幼儿园
A153: 栏次 | B153: 1 | C153: 2 | D153: 3 | E153: 泰顺县三魁镇第二幼儿园
A154: 合计 | B154: 合计 | E154: 泰顺县三魁镇第二幼儿园
E155: 泰顺县三魁镇第二幼儿园
A156: 十、机关运行经费年初预算 | B156: 是否开展项目重点绩效评价 | C156: 四、财政拨款支出年初预算数 | E156: 泰顺县三魁镇第二幼儿园
C157: 0 | E157: 泰顺县三魁镇第二幼儿园
A158: 循环提取“六、一般公共预算基本支出情况” | E158: 泰顺县三魁镇第二幼儿园
A159: 人员经费 | B159: 人员经费123.36万元，主要包括：基本工资、津贴补贴、绩效工资、机关事业单位基本养老保险缴费、职业年金缴费、职工基本医疗保险缴费、公务员医疗补助缴费、其他社会保障缴费、住房公积金、医疗费、其他工资福利支出 | C159: 日常公用经费 | D159: 日常公用经费12.84万元，主要包括：办公费、电费、差旅费、维修（护）费、劳务费、工会经费、福利费 | E159: 泰顺县三魁镇第二幼儿园
B160: — 1 — | E160: 泰顺县三魁镇第二幼儿园
B161: 公开配置表 | E161: 泰顺县东溪乡中心小学 | F161: =VLOOKUP(E161,核对!A:G,7,0) -> 17.教育支出（类）普通教育（款）小学教育（项）：指反映各部门举办的小学教育支出。政府各部门对社会组织等举办的小学的资助，如各类捐赠、补贴等，也在本科目反映。 18.教育支出（类）普通教育（款）其他普通教育支出（项）：指反映除上述项目以外其他用于普通教育方面的支出。 19.教育支出（类）教育费附加安排的支出（款）其他教育费附加安排的支出（项）：指反映除上述项目以外的教育费附加支出。 20.科学技术支出（类）其他科学技术支出（款）其他科学技术支出（项）：指反映其他科学技术支出中除以上各项外用于科技方面的支出。 21.文化旅游体育与传媒支出（类）其他文化旅游体育与传媒支出（款）其他文化旅游体育与传媒支出（项）：指反映除上述项目以外其他用于文化旅游体育与传媒方面的支出。 22.社会保障和就业支出（类）人力资源和社会保障管理事务（款）其他人力资源和社会保障管理事务支出（项）：指反映除上述项目以外其他用于人力资源和社会保障管理事务方面的支出。 23.社会保障和就业支出（类）行政事业单位养老支出（款）事业单位离退休（项）：指反映事业单位开支的离退休经费。 24.社会保障和就业支出（类）行政事业单位养老支出（款）机关事业单位基本养老保险缴费支出（项）：指反映机关事业单位实施养老保险制度由单位缴纳的基本养老保险费支出。 25.社会保障和就业支出（类）行政事业单位养老支出（款）机关事业单位职业年金缴费支出（项）：指反映机关事业单位实施养老保险制度由单位实际缴纳的职业年金支出（含职业年金补记支出）。 26.卫生健康支出（类）行政事业单位医疗（款）事业单位医疗（项）：指反映财政部门安排的事业单位基本医疗保险缴费经费，未参加医疗保险的事业单位的公费医疗经费，按国家规定享受离休人员待遇的医疗经费。 27.卫生健康支出（类）行政事业单位医疗（款）公务员医疗补助（项）：指反映财政部门安排的公务员医疗补助经费。 28.住房保障支出（类）住房改革支出（款）住房公积金（项）：指反映行政事业单位按人力资源和社会保障部、财政部规定的基本工资和津贴补贴以及规定比例为职工缴纳的住房公积金。 29.其他支出（类）其他政府性基金及对应专项债务收人安排的支出（款）其他政府性基金安排的支出（项）：指反映其他政府性基金安排的支出(包括用以前年度欠款收人安排的支出)。
A162: 编制单位：泰顺县东溪乡中心小学 | E162: 泰顺县东溪乡中心小学
A163: 注意：本表只用于补充填写预算数，公开表不含此表。决算数不允许修改。若需调整决算数据，请调整具体公开表后，重新运算。 | B163: 注意：本表只用于补充填写预算数，公开表不含此表。决算数不允许修改。若需调整决算数据，请调整具体公开表后，重新运算。 | C163: 注意：本表只用于补充填写预算数，公开表不含此表。决算数不允许修改。若需调整决算数据，请调整具体公开表后，重新运算。 | D163: 注意：本表只用于补充填写预算数，公开表不含此表。决算数不允许修改。若需调整决算数据，请调整具体公开表后，重新运算。 | E163: 泰顺县东溪乡中心小学
A164: 五、一般公共预算财政拨款支出决算情况说明相关数据 | B164: 五、一般公共预算财政拨款支出决算情况说明相关数据 | C164: 五、一般公共预算财政拨款支出决算情况说明相关数据 | D164: 五、一般公共预算财政拨款支出决算情况说明相关数据 | E164: 泰顺县东溪乡中心小学
A165: 科目代码 | B165: 科目名称 | C165: 年初预算 | D165: 决算 | E165: 泰顺县东溪乡中心小学
A166: 栏次 | B166: 1 | C166: 2 | D166: 3 | E166: 泰顺县东溪乡中心小学
A167: 合计 | B167: 合计 | C167: 0 | D167: 4742236.14 | E167: 泰顺县东溪乡中心小学
A168: 2050202 | B168: 小学教育 | C168: 2903534 | D168: 3112578.12 | E168: 泰顺县东溪乡中心小学
A169: 2050299 | B169: 其他普通教育支出 | C169: 27165.14 | D169: 189099.34 | E169: 泰顺县东溪乡中心小学
A170: 2050999 | B170: 其他教育费附加安排的支出 | C170: 0 | D170: 18000 | E170: 泰顺县东溪乡中心小学
A171: 2069999 | B171: 其他科学技术支出 | C171: 0 | D171: 12600 | E171: 泰顺县东溪乡中心小学
A172: 2079999 | B172: 其他文化旅游体育与传媒支出 | C172: 20000 | D172: 30000 | E172: 泰顺县东溪乡中心小学
A173: 2080199 | B173: 其他人力资源和社会保障管理事务支出 | C173: 0 | D173: 28525 | E173: 泰顺县东溪乡中心小学
A174: 2080502 | B174: 事业单位离退休 | C174: 160496 | D174: 160496 | E174: 泰顺县东溪乡中心小学
A175: 2080505 | B175: 机关事业单位基本养老保险缴费支出 | C175: 227343 | D175: 249268.16 | E175: 泰顺县东溪乡中心小学
A176: 2080506 | B176: 机关事业单位职业年金缴费支出 | C176: 122716 | D176: 124634.08 | E176: 泰顺县东溪乡中心小学
A177: 2101102 | B177: 事业单位医疗 | C177: 299244 | D177: 299367.2 | E177: 泰顺县东溪乡中心小学
A178: 2101103 | B178: 公务员医疗补助 | C178: 184781 | D178: 184780.24 | E178: 泰顺县东溪乡中心小学
A179: 2210201 | B179: 住房公积金 | C179: 330600 | D179: 332888 | E179: 泰顺县东溪乡中心小学
A180: 七、政府性基金预算财政拨款收入支出情况说明相关数据 | B180: 七、政府性基金预算财政拨款收入支出情况说明相关数据 | C180: 七、政府性基金预算财政拨款收入支出情况说明相关数据 | D180: 七、政府性基金预算财政拨款收入支出情况说明相关数据 | E180: 泰顺县东溪乡中心小学
A181: 科目代码 | B181: 科目名称 | C181: 年初预算 | D181: 决算 | E181: 泰顺县东溪乡中心小学
A182: 栏次 | B182: 1 | C182: 2 | D182: 3 | E182: 泰顺县东溪乡中心小学
A183: 合计 | B183: 合计 | C183: 0 | D183: 89000 | E183: 泰顺县东溪乡中心小学
A184: 2290401 | B184: 其他政府性基金安排的支出 | C184: 0 | D184: 89000 | E184: 泰顺县东溪乡中心小学
A185: 八、国有资本经营预算财政拨款支出决算情况说明相关数据 | B185: 八、国有资本经营预算财政拨款支出决算情况说明相关数据 | C185: 八、国有资本经营预算财政拨款支出决算情况说明相关数据 | E185: 泰顺县东溪乡中心小学
A186: 科目代码 | B186: 科目名称 | C186: 年初预算 | D186: 决算 | E186: 泰顺县东溪乡中心小学
A187: 栏次 | B187: 1 | C187: 2 | D187: 3 | E187: 泰顺县东溪乡中心小学
A188: 合计 | B188: 合计 | E188: 泰顺县东溪乡中心小学
E189: 泰顺县东溪乡中心小学
A190: 十、机关运行经费年初预算 | B190: 是否开展项目重点绩效评价 | C190: 四、财政拨款支出年初预算数 | E190: 泰顺县东溪乡中心小学
C191: 0 | E191: 泰顺县东溪乡中心小学
A192: 循环提取“六、一般公共预算基本支出情况” | E192: 泰顺县东溪乡中心小学
A193: 人员经费 | B193: 人员经费408.79万元，主要包括：基本工资、津贴补贴、绩效工资、机关事业单位基本养老保险缴费、职业年金缴费、职工基本医疗保险缴费、公务员医疗补助缴费、其他社会保障缴费、住房公积金、医疗费、其他工资福利支出、退休费、生活补助 | C193: 日常公用经费 | D193: 日常公用经费8.89万元，主要包括：工会经费、福利费 | E193: 泰顺县东溪乡中心小学
B194: — 1 — | E194: 泰顺县东溪乡中心小学
B195: 公开配置表 | E195: 泰顺县东溪乡幼儿园 | F195: =VLOOKUP(E195,核对!A:G,7,0) -> 17.教育支出（类）普通教育（款）学前教育（项）：指反映各部门举办的学前教育支出。政府各部门对社会组织等举办的幼儿园的资助，如各类捐赠、补贴等，也在本科目反映。 18.教育支出（类）教育费附加安排的支出（款）其他教育费附加安排的支出（项）：指反映除上述项目以外的教育费附加支出。 19.社会保障和就业支出（类）行政事业单位养老支出（款）机关事业单位基本养老保险缴费支出（项）：指反映机关事业单位实施养老保险制度由单位缴纳的基本养老保险费支出。 20.社会保障和就业支出（类）行政事业单位养老支出（款）机关事业单位职业年金缴费支出（项）：指反映机关事业单位实施养老保险制度由单位实际缴纳的职业年金支出（含职业年金补记支出）。 21.卫生健康支出（类）行政事业单位医疗（款）事业单位医疗（项）：指反映财政部门安排的事业单位基本医疗保险缴费经费，未参加医疗保险的事业单位的公费医疗经费，按国家规定享受离休人员待遇的医疗经费。 22.卫生健康支出（类）行政事业单位医疗（款）公务员医疗补助（项）：指反映财政部门安排的公务员医疗补助经费。 23.住房保障支出（类）住房改革支出（款）住房公积金（项）：指反映行政事业单位按人力资源和社会保障部、财政部规定的基本工资和津贴补贴以及规定比例为职工缴纳的住房公积金。 24.其他支出（类）其他政府性基金及对应专项债务收人安排的支出（款）其他政府性基金安排的支出（项）：指反映其他政府性基金安排的支出(包括用以前年度欠款收人安排的支出)。
A196: 编制单位：泰顺县东溪乡幼儿园 | E196: 泰顺县东溪乡幼儿园
A197: 注意：本表只用于补充填写预算数，公开表不含此表。决算数不允许修改。若需调整决算数据，请调整具体公开表后，重新运算。 | B197: 注意：本表只用于补充填写预算数，公开表不含此表。决算数不允许修改。若需调整决算数据，请调整具体公开表后，重新运算。 | C197: 注意：本表只用于补充填写预算数，公开表不含此表。决算数不允许修改。若需调整决算数据，请调整具体公开表后，重新运算。 | D197: 注意：本表只用于补充填写预算数，公开表不含此表。决算数不允许修改。若需调整决算数据，请调整具体公开表后，重新运算。 | E197: 泰顺县东溪乡幼儿园
A198: 五、一般公共预算财政拨款支出决算情况说明相关数据 | B198: 五、一般公共预算财政拨款支出决算情况说明相关数据 | C198: 五、一般公共预算财政拨款支出决算情况说明相关数据 | D198: 五、一般公共预算财政拨款支出决算情况说明相关数据 | E198: 泰顺县东溪乡幼儿园
A199: 科目代码 | B199: 科目名称 | C199: 年初预算 | D199: 决算 | E199: 泰顺县东溪乡幼儿园
A200: 栏次 | B200: 1 | C200: 2 | D200: 3 | E200: 泰顺县东溪乡幼儿园
... 2538 more rows

Sheet 核对 (hidden)
A1: 单位名称 | B1: 合计 | C1: 预算 | E1: 决算 | F1: 核对 | G1: 名称解释
C2: 一般公共预算资金 | D2: 政府性基金预算资金
A3: 合计 | B3: =SUM(B4:B85) ->  | C3: =SUM(C4:C85) ->  | D3: =SUM(D4:D85) ->  | E3: =SUM(E4:E85) -> 829444719.6 | F3: =B3=E3 -> 
A4: 泰顺县包垟乡幼儿园 | B4: =C4+D4 ->  | C4: =(SUMIF(#REF!,A4,#REF!)+SUMIF(#REF!,A4,#REF!))*10000 ->  | D4: =(SUMIF(#REF!,A4,#REF!)+SUMIF(#REF!,A4,#REF!))*10000 ->  | E4: =SUMIF(INDIRECT("参考数据!$E:$E"),核对!A4,INDIRECT("参考数据!$C:$C")) -> 1307639.24 | F4: =B4=E4 ->  | G4: 17.教育支出（类）普通教育（款）学前教育（项）：指反映各部门举办的学前教育支出。政府各部门对社会组织等举办的幼儿园的资助，如各类捐赠、补贴等，也在本科目反映。 18.教育支出（类）教育费附加安排的支出（款）其他教育费附加安排的支出（项）：指反映除上述项目以外的教育费附加支出。 19.社会保障和就业支出（类）行政事业单位养老支出（款）机关事业单位基本养老保险缴费支出（项）：指反映机关事业单位实施养老保险制度由单位缴纳的基本养老保险费支出。 20.社会保障和就业支出（类）行政事业单位养老支出（款）机关事业单位职业年金缴费支出（项）：指反映机关事业单位实施养老保险制度由单位实际缴纳的职业年金支出（含职业年金补记支出）。 21.卫生健康支出（类）行政事业单位医疗（款）事业单位医疗（项）：指反映财政部门安排的事业单位基本医疗保险缴费经费，未参加医疗保险的事业单位的公费医疗经费，按国家规定享受离休人员待遇的医疗经费。 22.卫生健康支出（类）行政事业单位医疗（款）公务员医疗补助（项）：指反映财政部门安排的公务员医疗补助经费。 23.住房保障支出（类）住房改革支出（款）住房公积金（项）：指反映行政事业单位按人力资源和社会保障部、财政部规定的基本工资和津贴补贴以及规定比例为职工缴纳的住房公积金。 24.其他支出（类）其他政府性基金及对应专项债务收人安排的支出（款）其他政府性基金安排的支出（项）：指反映其他政府性基金安排的支出(包括用以前年度欠款收人安排的支出)。
A5: 泰顺县包垟乡中心学校 | B5: =C5+D5 ->  | C5: =(SUMIF(#REF!,A5,#REF!)+SUMIF(#REF!,A5,#REF!))*10000 ->  | D5: =(SUMIF(#REF!,A5,#REF!)+SUMIF(#REF!,A5,#REF!))*10000 ->  | E5: =SUMIF(INDIRECT("参考数据!$E:$E"),核对!A5,INDIRECT("参考数据!$C:$C")) -> 4663195.08 | F5: =B5=E5 ->  | G5: 17.教育支出（类）普通教育（款）小学教育（项）：指反映各部门举办的小学教育支出。政府各部门对社会组织等举办的小学的资助，如各类捐赠、补贴等，也在本科目反映。 18.教育支出（类）普通教育（款）其他普通教育支出（项）：指反映除上述项目以外其他用于普通教育方面的支出。 19.教育支出（类）教育费附加安排的支出（款）其他教育费附加安排的支出（项）：指反映除上述项目以外的教育费附加支出。 20.科学技术支出（类）其他科学技术支出（款）其他科学技术支出（项）：指反映其他科学技术支出中除以上各项外用于科技方面的支出。 21.文化旅游体育与传媒支出（类）其他文化旅游体育与传媒支出（款）其他文化旅游体育与传媒支出（项）：指反映除上述项目以外其他用于文化旅游体育与传媒方面的支出。 22.社会保障和就业支出（类）人力资源和社会保障管理事务（款）其他人力资源和社会保障管理事务支出（项）：指反映除上述项目以外其他用于人力资源和社会保障管理事务方面的支出。 23.社会保障和就业支出（类）行政事业单位养老支出（款）事业单位离退休（项）：指反映事业单位开支的离退休经费。 24.社会保障和就业支出（类）行政事业单位养老支出（款）机关事业单位基本养老保险缴费支出（项）：指反映机关事业单位实施养老保险制度由单位缴纳的基本养老保险费支出。 25.社会保障和就业支出（类）行政事业单位养老支出（款）机关事业单位职业年金缴费支出（项）：指反映机关事业单位实施养老保险制度由单位实际缴纳的职业年金支出（含职业年金补记支出）。 26.卫生健康支出（类）行政事业单位医疗（款）事业单位医疗（项）：指反映财政部门安排的事业单位基本医疗保险缴费经费，未参加医疗保险的事业单位的公费医疗经费，按国家规定享受离休人员待遇的医疗经费。 27.卫生健康支出（类）行政事业单位医疗（款）公务员医疗补助（项）：指反映财政部门安排的公务员医疗补助经费。 28.住房保障支出（类）住房改革支出（款）住房公积金（项）：指反映行政事业单位按人力资源和社会保障部、财政部规定的基本工资和津贴补贴以及规定比例为职工缴纳的住房公积金。 29.其他支出（类）其他政府性基金及对应专项债务收人安排的支出（款）其他政府性基金安排的支出（项）：指反映其他政府性基金安排的支出(包括用以前年度欠款收人安排的支出)。
A6: 泰顺县北辰学校 | C6: =(SUMIF(#REF!,A6,#REF!)+SUMIF(#REF!,A6,#REF!))*10000 ->  | D6: =(SUMIF(#REF!,A6,#REF!)+SUMIF(#REF!,A6,#REF!))*10000 ->  | E6: =SUMIF(INDIRECT("参考数据!$E:$E"),核对!A6,INDIRECT("参考数据!$C:$C")) -> 31624576 | G6: 17.教育支出（类）普通教育（款）小学教育（项）：指反映各部门举办的小学教育支出。政府各部门对社会组织等举办的小学的资助，如各类捐赠、补贴等，也在本科目反映。 18.教育支出（类）普通教育（款）初中教育（项）：指反映各部门举办的初中教育支出。政府各部门对社会组织等举办的初中的资助，如捐赠、补贴等，也在本科目中反映。 19.教育支出（类）普通教育（款）其他普通教育支出（项）：指反映除上述项目以外其他用于普通教育方面的支出。 20.科学技术支出（类）其他科学技术支出（款）其他科学技术支出（项）：指反映其他科学技术支出中除以上各项外用于科技方面的支出。 21.社会保障和就业支出（类）行政事业单位养老支出（款）机关事业单位基本养老保险缴费支出（项）：指反映机关事业单位实施养老保险制度由单位缴纳的基本养老保险费支出。 22.社会保障和就业支出（类）行政事业单位养老支出（款）机关事业单位职业年金缴费支出（项）：指反映机关事业单位实施养老保险制度由单位实际缴纳的职业年金支出（含职业年金补记支出）。 23.卫生健康支出（类）行政事业单位医疗（款）事业单位医疗（项）：指反映财政部门安排的事业单位基本医疗保险缴费经费，未参加医疗保险的事业单位的公费医疗经费，按国家规定享受离休人员待遇的医疗经费。 24.卫生健康支出（类）行政事业单位医疗（款）公务员医疗补助（项）：指反映财政部门安排的公务员医疗补助经费。 25.住房保障支出（类）住房改革支出（款）住房公积金（项）：指反映行政事业单位按人力资源和社会保障部、财政部规定的基本工资和津贴补贴以及规定比例为职工缴纳的住房公积金。 26.其他支出（类）其他政府性基金及对应专项债务收人安排的支出（款）其他政府性基金安排的支出（项）：指反映其他政府性基金安排的支出(包括用以前年度欠款收人安排的支出)。
A7: 泰顺县北辰幼儿园 | C7: =(SUMIF(#REF!,A7,#REF!)+SUMIF(#REF!,A7,#REF!))*10000 ->  | D7: =(SUMIF(#REF!,A7,#REF!)+SUMIF(#REF!,A7,#REF!))*10000 ->  | E7: =SUMIF(INDIRECT("参考数据!$E:$E"),核对!A7,INDIRECT("参考数据!$C:$C")) -> 2241722 | G7: 17.教育支出（类）普通教育（款）学前教育（项）：指反映各部门举办的学前教育支出。政府各部门对社会组织等举办的幼儿园的资助，如各类捐赠、补贴等，也在本科目反映。 18.教育支出（类）教育费附加安排的支出（款）其他教育费附加安排的支出（项）：指反映除上述项目以外的教育费附加支出。 19.社会保障和就业支出（类）行政事业单位养老支出（款）机关事业单位基本养老保险缴费支出（项）：指反映机关事业单位实施养老保险制度由单位缴纳的基本养老保险费支出。 20.社会保障和就业支出（类）行政事业单位养老支出（款）机关事业单位职业年金缴费支出（项）：指反映机关事业单位实施养老保险制度由单位实际缴纳的职业年金支出（含职业年金补记支出）。 21.卫生健康支出（类）行政事业单位医疗（款）事业单位医疗（项）：指反映财政部门安排的事业单位基本医疗保险缴费经费，未参加医疗保险的事业单位的公费医疗经费，按国家规定享受离休人员待遇的医疗经费。 22.卫生健康支出（类）行政事业单位医疗（款）公务员医疗补助（项）：指反映财政部门安排的公务员医疗补助经费。 23.住房保障支出（类）住房改革支出（款）住房公积金（项）：指反映行政事业单位按人力资源和社会保障部、财政部规定的基本工资和津贴补贴以及规定比例为职工缴纳的住房公积金。 24.其他支出（类）其他政府性基金及对应专项债务收人安排的支出（款）其他政府性基金安排的支出（项）：指反映其他政府性基金安排的支出(包括用以前年度欠款收人安排的支出)。
A8: 泰顺县城关中学 | C8: =(SUMIF(#REF!,A8,#REF!)+SUMIF(#REF!,A8,#REF!))*10000 ->  | D8: =(SUMIF(#REF!,A8,#REF!)+SUMIF(#REF!,A8,#REF!))*10000 ->  | E8: =SUMIF(INDIRECT("参考数据!$E:$E"),核对!A8,INDIRECT("参考数据!$C:$C")) -> 24178416 | G8: 17.教育支出（类）普通教育（款）高中教育（项）：指反映各部门举办的普通高中教育支出。政府各部门对社会组织等举办的普通高中的资助，如捐赠、补贴等，也在本科目中反映。 18.教育支出（类）普通教育（款）其他普通教育支出（项）：指反映除上述项目以外其他用于普通教育方面的支出。 19.教育支出（类）教育费附加安排的支出（款）其他教育费附加安排的支出（项）：指反映除上述项目以外的教育费附加支出。 20.科学技术支出（类）其他科学技术支出（款）其他科学技术支出（项）：指反映其他科学技术支出中除以上各项外用于科技方面的支出。 21.社会保障和就业支出（类）人力资源和社会保障管理事务（款）其他人力资源和社会保障管理事务支出（项）：指反映除上述项目以外其他用于人力资源和社会保障管理事务方面的支出。 22.社会保障和就业支出（类）行政事业单位养老支出（款）事业单位离退休（项）：指反映事业单位开支的离退休经费。 23.社会保障和就业支出（类）行政事业单位养老支出（款）机关事业单位基本养老保险缴费支出（项）：指反映机关事业单位实施养老保险制度由单位缴纳的基本养老保险费支出。 24.社会保障和就业支出（类）行政事业单位养老支出（款）机关事业单位职业年金缴费支出（项）：指反映机关事业单位实施养老保险制度由单位实际缴纳的职业年金支出（含职业年金补记支出）。 25.卫生健康支出（类）行政事业单位医疗（款）事业单位医疗（项）：指反映财政部门安排的事业单位基本医疗保险缴费经费，未参加医疗保险的事业单位的公费医疗经费，按国家规定享受离休人员待遇的医疗经费。 26.卫生健康支出（类）行政事业单位医疗（款）公务员医疗补助（项）：指反映财政部门安排的公务员医疗补助经费。 27.住房保障支出（类）住房改革支出（款）住房公积金（项）：指反映行政事业单位按人力资源和社会保障部、财政部规定的基本工资和津贴补贴以及规定比例为职工缴纳的住房公积金。 28.其他支出（类）其他政府性基金及对应专项债务收人安排的支出（款）其他政府性基金安排的支出（项）：指反映其他政府性基金安排的支出(包括用以前年度欠款收人安排的支出)。
A9: 泰顺县大安乡幼儿园 | C9: =(SUMIF(#REF!,A9,#REF!)+SUMIF(#REF!,A9,#REF!))*10000 ->  | D9: =(SUMIF(#REF!,A9,#REF!)+SUMIF(#REF!,A9,#REF!))*10000 ->  | E9: =SUMIF(INDIRECT("参考数据!$E:$E"),核对!A9,INDIRECT("参考数据!$C:$C")) -> 2006617.81 | G9: 17.教育支出（类）普通教育（款）学前教育（项）：指反映各部门举办的学前教育支出。政府各部门对社会组织等举办的幼儿园的资助，如各类捐赠、补贴等，也在本科目反映。 18.教育支出（类）教育费附加安排的支出（款）其他教育费附加安排的支出（项）：指反映除上述项目以外的教育费附加支出。 19.社会保障和就业支出（类）行政事业单位养老支出（款）机关事业单位基本养老保险缴费支出（项）：指反映机关事业单位实施养老保险制度由单位缴纳的基本养老保险费支出。 20.社会保障和就业支出（类）行政事业单位养老支出（款）机关事业单位职业年金缴费支出（项）：指反映机关事业单位实施养老保险制度由单位实际缴纳的职业年金支出（含职业年金补记支出）。 21.卫生健康支出（类）行政事业单位医疗（款）事业单位医疗（项）：指反映财政部门安排的事业单位基本医疗保险缴费经费，未参加医疗保险的事业单位的公费医疗经费，按国家规定享受离休人员待遇的医疗经费。 22.卫生健康支出（类）行政事业单位医疗（款）公务员医疗补助（项）：指反映财政部门安排的公务员医疗补助经费。 23.住房保障支出（类）住房改革支出（款）住房公积金（项）：指反映行政事业单位按人力资源和社会保障部、财政部规定的基本工资和津贴补贴以及规定比例为职工缴纳的住房公积金。 24.其他支出（类）其他政府性基金及对应专项债务收人安排的支出（款）其他政府性基金安排的支出（项）：指反映其他政府性基金安排的支出(包括用以前年度欠款收人安排的支出)。
A10: 泰顺县大安乡中心学校 | C10: =(SUMIF(#REF!,A10,#REF!)+SUMIF(#REF!,A10,#REF!))*10000 ->  | D10: =(SUMIF(#REF!,A10,#REF!)+SUMIF(#REF!,A10,#REF!))*10000 ->  | E10: =SUMIF(INDIRECT("参考数据!$E:$E"),核对!A10,INDIRECT("参考数据!$C:$C")) -> 7102715.6 | G10: 17.教育支出（类）普通教育（款）小学教育（项）：指反映各部门举办的小学教育支出。政府各部门对社会组织等举办的小学的资助，如各类捐赠、补贴等，也在本科目反映。 18.教育支出（类）普通教育（款）其他普通教育支出（项）：指反映除上述项目以外其他用于普通教育方面的支出。 19.教育支出（类）教育费附加安排的支出（款）其他教育费附加安排的支出（项）：指反映除上述项目以外的教育费附加支出。 20.科学技术支出（类）其他科学技术支出（款）其他科学技术支出（项）：指反映其他科学技术支出中除以上各项外用于科技方面的支出。 21.文化旅游体育与传媒支出（类）其他文化旅游体育与传媒支出（款）其他文化旅游体育与传媒支出（项）：指反映除上述项目以外其他用于文化旅游体育与传媒方面的支出。 22.社会保障和就业支出（类）人力资源和社会保障管理事务（款）其他人力资源和社会保障管理事务支出（项）：指反映除上述项目以外其他用于人力资源和社会保障管理事务方面的支出。 23.社会保障和就业支出（类）行政事业单位养老支出（款）事业单位离退休（项）：指反映事业单位开支的离退休经费。 24.社会保障和就业支出（类）行政事业单位养老支出（款）机关事业单位基本养老保险缴费支出（项）：指反映机关事业单位实施养老保险制度由单位缴纳的基本养老保险费支出。 25.社会保障和就业支出（类）行政事业单位养老支出（款）机关事业单位职业年金缴费支出（项）：指反映机关事业单位实施养老保险制度由单位实际缴纳的职业年金支出（含职业年金补记支出）。 26.卫生健康支出（类）行政事业单位医疗（款）事业单位医疗（项）：指反映财政部门安排的事业单位基本医疗保险缴费经费，未参加医疗保险的事业单位的公费医疗经费，按国家规定享受离休人员待遇的医疗经费。 27.卫生健康支出（类）行政事业单位医疗（款）公务员医疗补助（项）：指反映财政部门安排的公务员医疗补助经费。 28.住房保障支出（类）住房改革支出（款）住房公积金（项）：指反映行政事业单位按人力资源和社会保障部、财政部规定的基本工资和津贴补贴以及规定比例为职工缴纳的住房公积金。 29.其他支出（类）其他政府性基金及对应专项债务收人安排的支出（款）其他政府性基金安排的支出（项）：指反映其他政府性基金安排的支出(包括用以前年度欠款收人安排的支出)。
A11: 泰顺县第八中学 | C11: =(SUMIF(#REF!,A11,#REF!)+SUMIF(#REF!,A11,#REF!))*10000 ->  | D11: =(SUMIF(#REF!,A11,#REF!)+SUMIF(#REF!,A11,#REF!))*10000 ->  | E11: =SUMIF(INDIRECT("参考数据!$E:$E"),核对!A11,INDIRECT("参考数据!$C:$C")) -> 4090936.75 | G11: 17.教育支出（类）普通教育（款）初中教育（项）：指反映各部门举办的初中教育支出。政府各部门对社会组织等举办的初中的资助，如捐赠、补贴等，也在本科目中反映。 18.教育支出（类）普通教育（款）其他普通教育支出（项）：指反映除上述项目以外其他用于普通教育方面的支出。 19.教育支出（类）教育费附加安排的支出（款）其他教育费附加安排的支出（项）：指反映除上述项目以外的教育费附加支出。 20.科学技术支出（类）其他科学技术支出（款）其他科学技术支出（项）：指反映其他科学技术支出中除以上各项外用于科技方面的支出。 21.社会保障和就业支出（类）人力资源和社会保障管理事务（款）其他人力资源和社会保障管理事务支出（项）：指反映除上述项目以外其他用于人力资源和社会保障管理事务方面的支出。 22.社会保障和就业支出（类）行政事业单位养老支出（款）事业单位离退休（项）：指反映事业单位开支的离退休经费。 23.社会保障和就业支出（类）行政事业单位养老支出（款）机关事业单位基本养老保险缴费支出（项）：指反映机关事业单位实施养老保险制度由单位缴纳的基本养老保险费支出。 24.社会保障和就业支出（类）行政事业单位养老支出（款）机关事业单位职业年金缴费支出（项）：指反映机关事业单位实施养老保险制度由单位实际缴纳的职业年金支出（含职业年金补记支出）。 25.卫生健康支出（类）行政事业单位医疗（款）事业单位医疗（项）：指反映财政部门安排的事业单位基本医疗保险缴费经费，未参加医疗保险的事业单位的公费医疗经费，按国家规定享受离休人员待遇的医疗经费。 26.卫生健康支出（类）行政事业单位医疗（款）公务员医疗补助（项）：指反映财政部门安排的公务员医疗补助经费。 27.住房保障支出（类）住房改革支出（款）住房公积金（项）：指反映行政事业单位按人力资源和社会保障部、财政部规定的基本工资和津贴补贴以及规定比例为职工缴纳的住房公积金。 28.其他支出（类）其他政府性基金及对应专项债务收人安排的支出（款）其他政府性基金安排的支出（项）：指反映其他政府性基金安排的支出(包括用以前年度欠款收人安排的支出)。
A12: 泰顺县第二实验小学 | C12: =(SUMIF(#REF!,A12,#REF!)+SUMIF(#REF!,A12,#REF!))*10000 ->  | D12: =(SUMIF(#REF!,A12,#REF!)+SUMIF(#REF!,A12,#REF!))*10000 ->  | E12: =SUMIF(INDIRECT("参考数据!$E:$E"),核对!A12,INDIRECT("参考数据!$C:$C")) -> 16881418 | G12: 17.教育支出（类）普通教育（款）小学教育（项）：指反映各部门举办的小学教育支出。政府各部门对社会组织等举办的小学的资助，如各类捐赠、补贴等，也在本科目反映。 18.教育支出（类）普通教育（款）其他普通教育支出（项）：指反映除上述项目以外其他用于普通教育方面的支出。 19.教育支出（类）教育费附加安排的支出（款）其他教育费附加安排的支出（项）：指反映除上述项目以外的教育费附加支出。 20.科学技术支出（类）其他科学技术支出（款）其他科学技术支出（项）：指反映其他科学技术支出中除以上各项外用于科技方面的支出。 21.文化旅游体育与传媒支出（类）其他文化旅游体育与传媒支出（款）其他文化旅游体育与传媒支出（项）：指反映除上述项目以外其他用于文化旅游体育与传媒方面的支出。 22.社会保障和就业支出（类）人力资源和社会保障管理事务（款）其他人力资源和社会保障管理事务支出（项）：指反映除上述项目以外其他用于人力资源和社会保障管理事务方面的支出。 23.社会保障和就业支出（类）行政事业单位养老支出（款）事业单位离退休（项）：指反映事业单位开支的离退休经费。 24.社会保障和就业支出（类）行政事业单位养老支出（款）机关事业单位基本养老保险缴费支出（项）：指反映机关事业单位实施养老保险制度由单位缴纳的基本养老保险费支出。 25.社会保障和就业支出（类）行政事业单位养老支出（款）机关事业单位职业年金缴费支出（项）：指反映机关事业单位实施养老保险制度由单位实际缴纳的职业年金支出（含职业年金补记支出）。 26.卫生健康支出（类）行政事业单位医疗（款）事业单位医疗（项）：指反映财政部门安排的事业单位基本医疗保险缴费经费，未参加医疗保险的事业单位的公费医疗经费，按国家规定享受离休人员待遇的医疗经费。 27.卫生健康支出（类）行政事业单位医疗（款）公务员医疗补助（项）：指反映财政部门安排的公务员医疗补助经费。 28.住房保障支出（类）住房改革支出（款）住房公积金（项）：指反映行政事业单位按人力资源和社会保障部、财政部规定的基本工资和津贴补贴以及规定比例为职工缴纳的住房公积金。 29.其他支出（类）其他政府性基金及对应专项债务收人安排的支出（款）其他政府性基金安排的支出（项）：指反映其他政府性基金安排的支出(包括用以前年度欠款收人安排的支出)。
A13: 泰顺县第六中学 | C13: =(SUMIF(#REF!,A13,#REF!)+SUMIF(#REF!,A13,#REF!))*10000 ->  | D13: =(SUMIF(#REF!,A13,#REF!)+SUMIF(#REF!,A13,#REF!))*10000 ->  | E13: =SUMIF(INDIRECT("参考数据!$E:$E"),核对!A13,INDIRECT("参考数据!$C:$C")) -> 9584303.16 | G13: 17.教育支出（类）普通教育（款）初中教育（项）：指反映各部门举办的初中教育支出。政府各部门对社会组织等举办的初中的资助，如捐赠、补贴等，也在本科目中反映。 18.教育支出（类）普通教育（款）其他普通教育支出（项）：指反映除上述项目以外其他用于普通教育方面的支出。 19.教育支出（类）教育费附加安排的支出（款）其他教育费附加安排的支出（项）：指反映除上述项目以外的教育费附加支出。 20.科学技术支出（类）其他科学技术支出（款）其他科学技术支出（项）：指反映其他科学技术支出中除以上各项外用于科技方面的支出。 21.社会保障和就业支出（类）人力资源和社会保障管理事务（款）其他人力资源和社会保障管理事务支出（项）：指反映除上述项目以外其他用于人力资源和社会保障管理事务方面的支出。 22.社会保障和就业支出（类）行政事业单位养老支出（款）事业单位离退休（项）：指反映事业单位开支的离退休经费。 23.社会保障和就业支出（类）行政事业单位养老支出（款）机关事业单位基本养老保险缴费支出（项）：指反映机关事业单位实施养老保险制度由单位缴纳的基本养老保险费支出。 24.社会保障和就业支出（类）行政事业单位养老支出（款）机关事业单位职业年金缴费支出（项）：指反映机关事业单位实施养老保险制度由单位实际缴纳的职业年金支出（含职业年金补记支出）。 25.卫生健康支出（类）行政事业单位医疗（款）事业单位医疗（项）：指反映财政部门安排的事业单位基本医疗保险缴费经费，未参加医疗保险的事业单位的公费医疗经费，按国家规定享受离休人员待遇的医疗经费。 26.卫生健康支出（类）行政事业单位医疗（款）公务员医疗补助（项）：指反映财政部门安排的公务员医疗补助经费。 27.住房保障支出（类）住房改革支出（款）住房公积金（项）：指反映行政事业单位按人力资源和社会保障部、财政部规定的基本工资和津贴补贴以及规定比例为职工缴纳的住房公积金。 28.其他支出（类）其他政府性基金及对应专项债务收人安排的支出（款）其他政府性基金安排的支出（项）：指反映其他政府性基金安排的支出(包括用以前年度欠款收人安排的支出)。 29.其他支出（类）彩票公益金安排的支出（款）用于体育事业的彩票公益金支出（项）：指反映用于体育事业的彩票公益金支出。
A14: 泰顺县第七中学 | C14: =(SUMIF(#REF!,A14,#REF!)+SUMIF(#REF!,A14,#REF!))*10000 ->  | D14: =(SUMIF(#REF!,A14,#REF!)+SUMIF(#REF!,A14,#REF!))*10000 ->  | E14: =SUMIF(INDIRECT("参考数据!$E:$E"),核对!A14,INDIRECT("参考数据!$C:$C")) -> 9533877.95 | G14: 17.一般公共服务支出（类）组织事务（款）其他组织事务支出（项）：指反映除上述项目以外其他用于中国共产党组织部门的事务支出。 18.教育支出（类）普通教育（款）初中教育（项）：指反映各部门举办的初中教育支出。政府各部门对社会组织等举办的初中的资助，如捐赠、补贴等，也在本科目中反映。 19.教育支出（类）普通教育（款）其他普通教育支出（项）：指反映除上述项目以外其他用于普通教育方面的支出。 20.教育支出（类）教育费附加安排的支出（款）其他教育费附加安排的支出（项）：指反映除上述项目以外的教育费附加支出。 21.科学技术支出（类）其他科学技术支出（款）其他科学技术支出（项）：指反映其他科学技术支出中除以上各项外用于科技方面的支出。 22.社会保障和就业支出（类）人力资源和社会保障管理事务（款）其他人力资源和社会保障管理事务支出（项）：指反映除上述项目以外其他用于人力资源和社会保障管理事务方面的支出。 23.社会保障和就业支出（类）行政事业单位养老支出（款）事业单位离退休（项）：指反映事业单位开支的离退休经费。 24.社会保障和就业支出（类）行政事业单位养老支出（款）机关事业单位基本养老保险缴费支出（项）：指反映机关事业单位实施养老保险制度由单位缴纳的基本养老保险费支出。 25.社会保障和就业支出（类）行政事业单位养老支出（款）机关事业单位职业年金缴费支出（项）：指反映机关事业单位实施养老保险制度由单位实际缴纳的职业年金支出（含职业年金补记支出）。 26.卫生健康支出（类）行政事业单位医疗（款）事业单位医疗（项）：指反映财政部门安排的事业单位基本医疗保险缴费经费，未参加医疗保险的事业单位的公费医疗经费，按国家规定享受离休人员待遇的医疗经费。 27.卫生健康支出（类）行政事业单位医疗（款）公务员医疗补助（项）：指反映财政部门安排的公务员医疗补助经费。 28.住房保障支出（类）住房改革支出（款）住房公积金（项）：指反映行政事业单位按人力资源和社会保障部、财政部规定的基本工资和津贴补贴以及规定比例为职工缴纳的住房公积金。 29.其他支出（类）其他政府性基金及对应专项债务收人安排的支出（款）其他政府性基金安排的支出（项）：指反映其他政府性基金安排的支出(包括用以前年度欠款收人安排的支出)。
A15: 泰顺县第三实验小学 | C15: =(SUMIF(#REF!,A15,#REF!)+SUMIF(#REF!,A15,#REF!))*10000 ->  | D15: =(SUMIF(#REF!,A15,#REF!)+SUMIF(#REF!,A15,#REF!))*10000 ->  | E15: =SUMIF(INDIRECT("参考数据!$E:$E"),核对!A15,INDIRECT("参考数据!$C:$C")) -> 12436936 | G15: 17.教育支出（类）普通教育（款）小学教育（项）：指反映各部门举办的小学教育支出。政府各部门对社会组织等举办的小学的资助，如各类捐赠、补贴等，也在本科目反映。 18.教育支出（类）普通教育（款）其他普通教育支出（项）：指反映除上述项目以外其他用于普通教育方面的支出。 19.教育支出（类）教育费附加安排的支出（款）其他教育费附加安排的支出（项）：指反映除上述项目以外的教育费附加支出。 20.科学技术支出（类）其他科学技术支出（款）其他科学技术支出（项）：指反映其他科学技术支出中除以上各项外用于科技方面的支出。 21.文化旅游体育与传媒支出（类）其他文化旅游体育与传媒支出（款）其他文化旅游体育与传媒支出（项）：指反映除上述项目以外其他用于文化旅游体育与传媒方面的支出。 22.社会保障和就业支出（类）人力资源和社会保障管理事务（款）其他人力资源和社会保障管理事务支出（项）：指反映除上述项目以外其他用于人力资源和社会保障管理事务方面的支出。 23.社会保障和就业支出（类）行政事业单位养老支出（款）事业单位离退休（项）：指反映事业单位开支的离退休经费。 24.社会保障和就业支出（类）行政事业单位养老支出（款）机关事业单位基本养老保险缴费支出（项）：指反映机关事业单位实施养老保险制度由单位缴纳的基本养老保险费支出。 25.社会保障和就业支出（类）行政事业单位养老支出（款）机关事业单位职业年金缴费支出（项）：指反映机关事业单位实施养老保险制度由单位实际缴纳的职业年金支出（含职业年金补记支出）。 26.卫生健康支出（类）行政事业单位医疗（款）事业单位医疗（项）：指反映财政部门安排的事业单位基本医疗保险缴费经费，未参加医疗保险的事业单位的公费医疗经费，按国家规定享受离休人员待遇的医疗经费。 27.卫生健康支出（类）行政事业单位医疗（款）公务员医疗补助（项）：指反映财政部门安排的公务员医疗补助经费。 28.住房保障支出（类）住房改革支出（款）住房公积金（项）：指反映行政事业单位按人力资源和社会保障部、财政部规定的基本工资和津贴补贴以及规定比例为职工缴纳的住房公积金。 29.其他支出（类）其他政府性基金及对应专项债务收人安排的支出（款）其他政府性基金安排的支出（项）：指反映其他政府性基金安排的支出(包括用以前年度欠款收人安排的支出)。
A16: 泰顺县东溪乡幼儿园 | C16: =(SUMIF(#REF!,A16,#REF!)+SUMIF(#REF!,A16,#REF!))*10000 ->  | D16: =(SUMIF(#REF!,A16,#REF!)+SUMIF(#REF!,A16,#REF!))*10000 ->  | E16: =SUMIF(INDIRECT("参考数据!$E:$E"),核对!A16,INDIRECT("参考数据!$C:$C")) -> 1052837.76 | G16: 17.教育支出（类）普通教育（款）学前教育（项）：指反映各部门举办的学前教育支出。政府各部门对社会组织等举办的幼儿园的资助，如各类捐赠、补贴等，也在本科目反映。 18.教育支出（类）教育费附加安排的支出（款）其他教育费附加安排的支出（项）：指反映除上述项目以外的教育费附加支出。 19.社会保障和就业支出（类）行政事业单位养老支出（款）机关事业单位基本养老保险缴费支出（项）：指反映机关事业单位实施养老保险制度由单位缴纳的基本养老保险费支出。 20.社会保障和就业支出（类）行政事业单位养老支出（款）机关事业单位职业年金缴费支出（项）：指反映机关事业单位实施养老保险制度由单位实际缴纳的职业年金支出（含职业年金补记支出）。 21.卫生健康支出（类）行政事业单位医疗（款）事业单位医疗（项）：指反映财政部门安排的事业单位基本医疗保险缴费经费，未参加医疗保险的事业单位的公费医疗经费，按国家规定享受离休人员待遇的医疗经费。 22.卫生健康支出（类）行政事业单位医疗（款）公务员医疗补助（项）：指反映财政部门安排的公务员医疗补助经费。 23.住房保障支出（类）住房改革支出（款）住房公积金（项）：指反映行政事业单位按人力资源和社会保障部、财政部规定的基本工资和津贴补贴以及规定比例为职工缴纳的住房公积金。 24.其他支出（类）其他政府性基金及对应专项债务收人安排的支出（款）其他政府性基金安排的支出（项）：指反映其他政府性基金安排的支出(包括用以前年度欠款收人安排的支出)。
A17: 泰顺县东溪乡中心小学 | C17: =(SUMIF(#REF!,A17,#REF!)+SUMIF(#REF!,A17,#REF!))*10000 ->  | D17: =(SUMIF(#REF!,A17,#REF!)+SUMIF(#REF!,A17,#REF!))*10000 ->  | E17: =SUMIF(INDIRECT("参考数据!$E:$E"),核对!A17,INDIRECT("参考数据!$C:$C")) -> 4275879.14 | G17: 17.教育支出（类）普通教育（款）小学教育（项）：指反映各部门举办的小学教育支出。政府各部门对社会组织等举办的小学的资助，如各类捐赠、补贴等，也在本科目反映。 18.教育支出（类）普通教育（款）其他普通教育支出（项）：指反映除上述项目以外其他用于普通教育方面的支出。 19.教育支出（类）教育费附加安排的支出（款）其他教育费附加安排的支出（项）：指反映除上述项目以外的教育费附加支出。 20.科学技术支出（类）其他科学技术支出（款）其他科学技术支出（项）：指反映其他科学技术支出中除以上各项外用于科技方面的支出。 21.文化旅游体育与传媒支出（类）其他文化旅游体育与传媒支出（款）其他文化旅游体育与传媒支出（项）：指反映除上述项目以外其他用于文化旅游体育与传媒方面的支出。 22.社会保障和就业支出（类）人力资源和社会保障管理事务（款）其他人力资源和社会保障管理事务支出（项）：指反映除上述项目以外其他用于人力资源和社会保障管理事务方面的支出。 23.社会保障和就业支出（类）行政事业单位养老支出（款）事业单位离退休（项）：指反映事业单位开支的离退休经费。 24.社会保障和就业支出（类）行政事业单位养老支出（款）机关事业单位基本养老保险缴费支出（项）：指反映机关事业单位实施养老保险制度由单位缴纳的基本养老保险费支出。 25.社会保障和就业支出（类）行政事业单位养老支出（款）机关事业单位职业年金缴费支出（项）：指反映机关事业单位实施养老保险制度由单位实际缴纳的职业年金支出（含职业年金补记支出）。 26.卫生健康支出（类）行政事业单位医疗（款）事业单位医疗（项）：指反映财政部门安排的事业单位基本医疗保险缴费经费，未参加医疗保险的事业单位的公费医疗经费，按国家规定享受离休人员待遇的医疗经费。 27.卫生健康支出（类）行政事业单位医疗（款）公务员医疗补助（项）：指反映财政部门安排的公务员医疗补助经费。 28.住房保障支出（类）住房改革支出（款）住房公积金（项）：指反映行政事业单位按人力资源和社会保障部、财政部规定的基本工资和津贴补贴以及规定比例为职工缴纳的住房公积金。 29.其他支出（类）其他政府性基金及对应专项债务收人安排的支出（款）其他政府性基金安排的支出（项）：指反映其他政府性基金安排的支出(包括用以前年度欠款收人安排的支出)。
A18: 泰顺县凤垟乡幼儿园 | C18: =(SUMIF(#REF!,A18,#REF!)+SUMIF(#REF!,A18,#REF!))*10000 ->  | D18: =(SUMIF(#REF!,A18,#REF!)+SUMIF(#REF!,A18,#REF!))*10000 ->  | E18: =SUMIF(INDIRECT("参考数据!$E:$E"),核对!A18,INDIRECT("参考数据!$C:$C")) -> 953216.07 | G18: 17.教育支出（类）普通教育（款）学前教育（项）：指反映各部门举办的学前教育支出。政府各部门对社会组织等举办的幼儿园的资助，如各类捐赠、补贴等，也在本科目反映。 18.教育支出（类）普通教育（款）其他普通教育支出（项）：指反映除上述项目以外其他用于普通教育方面的支出。 19.教育支出（类）教育费附加安排的支出（款）其他教育费附加安排的支出（项）：指反映除上述项目以外的教育费附加支出。 20.科学技术支出（类）其他科学技术支出（款）其他科学技术支出（项）：指反映其他科学技术支出中除以上各项外用于科技方面的支出。 21.社会保障和就业支出（类）行政事业单位养老支出（款）机关事业单位基本养老保险缴费支出（项）：指反映机关事业单位实施养老保险制度由单位缴纳的基本养老保险费支出。 22.社会保障和就业支出（类）行政事业单位养老支出（款）机关事业单位职业年金缴费支出（项）：指反映机关事业单位实施养老保险制度由单位实际缴纳的职业年金支出（含职业年金补记支出）。 23.卫生健康支出（类）行政事业单位医疗（款）事业单位医疗（项）：指反映财政部门安排的事业单位基本医疗保险缴费经费，未参加医疗保险的事业单位的公费医疗经费，按国家规定享受离休人员待遇的医疗经费。 24.卫生健康支出（类）行政事业单位医疗（款）公务员医疗补助（项）：指反映财政部门安排的公务员医疗补助经费。 25.住房保障支出（类）住房改革支出（款）住房公积金（项）：指反映行政事业单位按人力资源和社会保障部、财政部规定的基本工资和津贴补贴以及规定比例为职工缴纳的住房公积金。 26.其他支出（类）其他政府性基金及对应专项债务收人安排的支出（款）其他政府性基金安排的支出（项）：指反映其他政府性基金安排的支出(包括用以前年度欠款收人安排的支出)。
A19: 泰顺县凤垟乡中心小学 | C19: =(SUMIF(#REF!,A19,#REF!)+SUMIF(#REF!,A19,#REF!))*10000 ->  | D19: =(SUMIF(#REF!,A19,#REF!)+SUMIF(#REF!,A19,#REF!))*10000 ->  | E19: =SUMIF(INDIRECT("参考数据!$E:$E"),核对!A19,INDIRECT("参考数据!$C:$C")) -> 4506782.93 | G19: 17.教育支出（类）普通教育（款）小学教育（项）：指反映各部门举办的小学教育支出。政府各部门对社会组织等举办的小学的资助，如各类捐赠、补贴等，也在本科目反映。 18.教育支出（类）普通教育（款）其他普通教育支出（项）：指反映除上述项目以外其他用于普通教育方面的支出。 19.教育支出（类）教育费附加安排的支出（款）其他教育费附加安排的支出（项）：指反映除上述项目以外的教育费附加支出。 20.科学技术支出（类）其他科学技术支出（款）其他科学技术支出（项）：指反映其他科学技术支出中除以上各项外用于科技方面的支出。 21.文化旅游体育与传媒支出（类）其他文化旅游体育与传媒支出（款）其他文化旅游体育与传媒支出（项）：指反映除上述项目以外其他用于文化旅游体育与传媒方面的支出。 22.社会保障和就业支出（类）人力资源和社会保障管理事务（款）其他人力资源和社会保障管理事务支出（项）：指反映除上述项目以外其他用于人力资源和社会保障管理事务方面的支出。 23.社会保障和就业支出（类）行政事业单位养老支出（款）事业单位离退休（项）：指反映事业单位开支的离退休经费。 24.社会保障和就业支出（类）行政事业单位养老支出（款）机关事业单位基本养老保险缴费支出（项）：指反映机关事业单位实施养老保险制度由单位缴纳的基本养老保险费支出。 25.社会保障和就业支出（类）行政事业单位养老支出（款）机关事业单位职业年金缴费支出（项）：指反映机关事业单位实施养老保险制度由单位实际缴纳的职业年金支出（含职业年金补记支出）。 26.卫生健康支出（类）行政事业单位医疗（款）事业单位医疗（项）：指反映财政部门安排的事业单位基本医疗保险缴费经费，未参加医疗保险的事业单位的公费医疗经费，按国家规定享受离休人员待遇的医疗经费。 27.卫生健康支出（类）行政事业单位医疗（款）公务员医疗补助（项）：指反映财政部门安排的公务员医疗补助经费。 28.住房保障支出（类）住房改革支出（款）住房公积金（项）：指反映行政事业单位按人力资源和社会保障部、财政部规定的基本工资和津贴补贴以及规定比例为职工缴纳的住房公积金。 29.其他支出（类）其他政府性基金及对应专项债务收人安排的支出（款）其他政府性基金安排的支出（项）：指反映其他政府性基金安排的支出(包括用以前年度欠款收人安排的支出)。
A20: 泰顺县龟湖镇幼儿园 | C20: =(SUMIF(#REF!,A20,#REF!)+SUMIF(#REF!,A20,#REF!))*10000 ->  | D20: =(SUMIF(#REF!,A20,#REF!)+SUMIF(#REF!,A20,#REF!))*10000 ->  | E20: =SUMIF(INDIRECT("参考数据!$E:$E"),核对!A20,INDIRECT("参考数据!$C:$C")) -> 1826095.26 | G20: 17.教育支出（类）普通教育（款）学前教育（项）：指反映各部门举办的学前教育支出。政府各部门对社会组织等举办的幼儿园的资助，如各类捐赠、补贴等，也在本科目反映。 18.教育支出（类）教育费附加安排的支出（款）其他教育费附加安排的支出（项）：指反映除上述项目以外的教育费附加支出。 19.社会保障和就业支出（类）行政事业单位养老支出（款）机关事业单位基本养老保险缴费支出（项）：指反映机关事业单位实施养老保险制度由单位缴纳的基本养老保险费支出。 20.社会保障和就业支出（类）行政事业单位养老支出（款）机关事业单位职业年金缴费支出（项）：指反映机关事业单位实施养老保险制度由单位实际缴纳的职业年金支出（含职业年金补记支出）。 21.卫生健康支出（类）行政事业单位医疗（款）事业单位医疗（项）：指反映财政部门安排的事业单位基本医疗保险缴费经费，未参加医疗保险的事业单位的公费医疗经费，按国家规定享受离休人员待遇的医疗经费。 22.卫生健康支出（类）行政事业单位医疗（款）公务员医疗补助（项）：指反映财政部门安排的公务员医疗补助经费。 23.住房保障支出（类）住房改革支出（款）住房公积金（项）：指反映行政事业单位按人力资源和社会保障部、财政部规定的基本工资和津贴补贴以及规定比例为职工缴纳的住房公积金。 24.其他支出（类）其他政府性基金及对应专项债务收人安排的支出（款）其他政府性基金安排的支出（项）：指反映其他政府性基金安排的支出(包括用以前年度欠款收人安排的支出)。
A21: 泰顺县龟湖镇中心学校 | C21: =(SUMIF(#REF!,A21,#REF!)+SUMIF(#REF!,A21,#REF!))*10000 ->  | D21: =(SUMIF(#REF!,A21,#REF!)+SUMIF(#REF!,A21,#REF!))*10000 ->  | E21: =SUMIF(INDIRECT("参考数据!$E:$E"),核对!A21,INDIRECT("参考数据!$C:$C")) -> 9075204.64 | G21: 17.教育支出（类）普通教育（款）小学教育（项）：指反映各部门举办的小学教育支出。政府各部门对社会组织等举办的小学的资助，如各类捐赠、补贴等，也在本科目反映。 18.教育支出（类）普通教育（款）其他普通教育支出（项）：指反映除上述项目以外其他用于普通教育方面的支出。 19.教育支出（类）教育费附加安排的支出（款）其他教育费附加安排的支出（项）：指反映除上述项目以外的教育费附加支出。 20.科学技术支出（类）其他科学技术支出（款）其他科学技术支出（项）：指反映其他科学技术支出中除以上各项外用于科技方面的支出。 21.文化旅游体育与传媒支出（类）其他文化旅游体育与传媒支出（款）其他文化旅游体育与传媒支出（项）：指反映除上述项目以外其他用于文化旅游体育与传媒方面的支出。 22.社会保障和就业支出（类）人力资源和社会保障管理事务（款）其他人力资源和社会保障管理事务支出（项）：指反映除上述项目以外其他用于人力资源和社会保障管理事务方面的支出。 23.社会保障和就业支出（类）行政事业单位养老支出（款）事业单位离退休（项）：指反映事业单位开支的离退休经费。 24.社会保障和就业支出（类）行政事业单位养老支出（款）机关事业单位基本养老保险缴费支出（项）：指反映机关事业单位实施养老保险制度由单位缴纳的基本养老保险费支出。 25.社会保障和就业支出（类）行政事业单位养老支出（款）机关事业单位职业年金缴费支出（项）：指反映机关事业单位实施养老保险制度由单位实际缴纳的职业年金支出（含职业年金补记支出）。 26.卫生健康支出（类）行政事业单位医疗（款）事业单位医疗（项）：指反映财政部门安排的事业单位基本医疗保险缴费经费，未参加医疗保险的事业单位的公费医疗经费，按国家规定享受离休人员待遇的医疗经费。 27.卫生健康支出（类）行政事业单位医疗（款）公务员医疗补助（项）：指反映财政部门安排的公务员医疗补助经费。 28.住房保障支出（类）住房改革支出（款）住房公积金（项）：指反映行政事业单位按人力资源和社会保障部、财政部规定的基本工资和津贴补贴以及规定比例为职工缴纳的住房公积金。 29.其他支出（类）其他政府性基金及对应专项债务收人安排的支出（款）其他政府性基金安排的支出（项）：指反映其他政府性基金安排的支出(包括用以前年度欠款收人安排的支出)。
A22: 泰顺县机关幼儿园 | C22: =(SUMIF(#REF!,A22,#REF!)+SUMIF(#REF!,A22,#REF!))*10000 ->  | D22: =(SUMIF(#REF!,A22,#REF!)+SUMIF(#REF!,A22,#REF!))*10000 ->  | E22: =SUMIF(INDIRECT("参考数据!$E:$E"),核对!A22,INDIRECT("参考数据!$C:$C")) -> 5511874.2 | G22: 17.教育支出（类）普通教育（款）学前教育（项）：指反映各部门举办的学前教育支出。政府各部门对社会组织等举办的幼儿园的资助，如各类捐赠、补贴等，也在本科目反映。 18.教育支出（类）教育费附加安排的支出（款）其他教育费附加安排的支出（项）：指反映除上述项目以外的教育费附加支出。 19.科学技术支出（类）其他科学技术支出（款）其他科学技术支出（项）：指反映其他科学技术支出中除以上各项外用于科技方面的支出。 20.社会保障和就业支出（类）人力资源和社会保障管理事务（款）其他人力资源和社会保障管理事务支出（项）：指反映除上述项目以外其他用于人力资源和社会保障管理事务方面的支出。 21.社会保障和就业支出（类）行政事业单位养老支出（款）事业单位离退休（项）：指反映事业单位开支的离退休经费。 22.社会保障和就业支出（类）行政事业单位养老支出（款）机关事业单位基本养老保险缴费支出（项）：指反映机关事业单位实施养老保险制度由单位缴纳的基本养老保险费支出。 23.社会保障和就业支出（类）行政事业单位养老支出（款）机关事业单位职业年金缴费支出（项）：指反映机关事业单位实施养老保险制度由单位实际缴纳的职业年金支出（含职业年金补记支出）。 24.卫生健康支出（类）行政事业单位医疗（款）事业单位医疗（项）：指反映财政部门安排的事业单位基本医疗保险缴费经费，未参加医疗保险的事业单位的公费医疗经费，按国家规定享受离休人员待遇的医疗经费。 25.卫生健康支出（类）行政事业单位医疗（款）公务员医疗补助（项）：指反映财政部门安排的公务员医疗补助经费。 26.住房保障支出（类）住房改革支出（款）住房公积金（项）：指反映行政事业单位按人力资源和社会保障部、财政部规定的基本工资和津贴补贴以及规定比例为职工缴纳的住房公积金。 27.其他支出（类）其他政府性基金及对应专项债务收人安排的支出（款）其他政府性基金安排的支出（项）：指反映其他政府性基金安排的支出(包括用以前年度欠款收人安排的支出)。
A23: 泰顺县教师发展中心 | C23: =(SUMIF(#REF!,A23,#REF!)+SUMIF(#REF!,A23,#REF!))*10000 ->  | D23: =(SUMIF(#REF!,A23,#REF!)+SUMIF(#REF!,A23,#REF!))*10000 ->  | E23: =SUMIF(INDIRECT("参考数据!$E:$E"),核对!A23,INDIRECT("参考数据!$C:$C")) -> 11531351.62 | G23: 17.教育支出（类）教育管理事务（款）其他教育管理事务支出（项）：指反映除上述项目以外其他用于教育管理事务方面的支出。 18.教育支出（类）普通教育（款）其他普通教育支出（项）：指反映除上述项目以外其他用于普通教育方面的支出。 19.科学技术支出（类）其他科学技术支出（款）其他科学技术支出（项）：指反映其他科学技术支出中除以上各项外用于科技方面的支出。 20.社会保障和就业支出（类）人力资源和社会保障管理事务（款）其他人力资源和社会保障管理事务支出（项）：指反映除上述项目以外其他用于人力资源和社会保障管理事务方面的支出。 21.社会保障和就业支出（类）行政事业单位养老支出（款）事业单位离退休（项）：指反映事业单位开支的离退休经费。 22.社会保障和就业支出（类）行政事业单位养老支出（款）机关事业单位基本养老保险缴费支出（项）：指反映机关事业单位实施养老保险制度由单位缴纳的基本养老保险费支出。 23.社会保障和就业支出（类）行政事业单位养老支出（款）机关事业单位职业年金缴费支出（项）：指反映机关事业单位实施养老保险制度由单位实际缴纳的职业年金支出（含职业年金补记支出）。 24.卫生健康支出（类）行政事业单位医疗（款）事业单位医疗（项）：指反映财政部门安排的事业单位基本医疗保险缴费经费，未参加医疗保险的事业单位的公费医疗经费，按国家规定享受离休人员待遇的医疗经费。 25.卫生健康支出（类）行政事业单位医疗（款）公务员医疗补助（项）：指反映财政部门安排的公务员医疗补助经费。 26.住房保障支出（类）住房改革支出（款）住房公积金（项）：指反映行政事业单位按人力资源和社会保障部、财政部规定的基本工资和津贴补贴以及规定比例为职工缴纳的住房公积金。 27.其他支出（类）其他政府性基金及对应专项债务收人安排的支出（款）其他政府性基金安排的支出（项）：指反映其他政府性基金安排的支出(包括用以前年度欠款收人安排的支出)。
A24: 泰顺县教育局 | C24: =(SUMIF(#REF!,A24,#REF!)+SUMIF(#REF!,A24,#REF!))*10000 ->  | D24: =(SUMIF(#REF!,A24,#REF!)+SUMIF(#REF!,A24,#REF!))*10000 ->  | E24: =SUMIF(INDIRECT("参考数据!$E:$E"),核对!A24,INDIRECT("参考数据!$C:$C")) -> 191049305.8 | G24: 17.一般公共服务支出（类）宣传事务（款）其他宣传事务支出（项）：指反映除上述项目以外其他用于中国共产党宣传部门的事务支出。 18.教育支出（类）教育管理事务（款）行政运行（项）：指反映行政单位（包括实行公务员管理的事业单位）的基本支出。 19.教育支出（类）教育管理事务（款）其他教育管理事务支出（项）：指反映除上述项目以外其他用于教育管理事务方面的支出。 20.教育支出（类）普通教育（款）学前教育（项）：指反映各部门举办的学前教育支出。政府各部门对社会组织等举办的幼儿园的资助，如各类捐赠、补贴等，也在本科目反映。 21.教育支出（类）普通教育（款）小学教育（项）：指反映各部门举办的小学教育支出。政府各部门对社会组织等举办的小学的资助，如各类捐赠、补贴等，也在本科目反映。 22.教育支出（类）普通教育（款）初中教育（项）：指反映各部门举办的初中教育支出。政府各部门对社会组织等举办的初中的资助，如捐赠、补贴等，也在本科目中反映。 23.教育支出（类）普通教育（款）高中教育（项）：指反映各部门举办的普通高中教育支出。政府各部门对社会组织等举办的普通高中的资助，如捐赠、补贴等，也在本科目中反映。 24.教育支出（类）普通教育（款）其他普通教育支出（项）：指反映除上述项目以外其他用于普通教育方面的支出。 25.教育支出（类）职业教育（款）中等职业教育（项）：指反映各部门（不含人力资源社会保障部门）举办的中等职业教育支出。政府各部门对社会组织等举办的中等职业学校的资助，如捐赠、补贴等，也在本科目中反映。 26.教育支出（类）成人教育（款）成人高等教育（项）：指反映各部门举办函授、夜大、高等教育自学考试等方面的支出。 27.教育支出（类）成人教育（款）其他成人教育支出（项）：指反映除上述项目以外其他用于成人教育方面的支出。 28.科学技术支出（类）其他科学技术支出（款）其他科学技术支出（项）：指反映其他科学技术支出中除以上各项外用于科技方面的支出。 29.社会保障和就业支出（类）人力资源和社会保障管理事务（款）其他人力资源和社会保障管理事务支出（项）：指反映除上述项目以外其他用于人力资源和社会保障管理事务方面的支出。 30.社会保障和就业支出（类）行政事业单位养老支出（款）行政单位离退休（项）：指反映行政单位（包括实行公务员管理的事业单位）开支的离退休经费。 31.社会保障和就业支出（类）行政事业单位养老支出（款）机关事业单位基本养老保险缴费支出（项）：指反映机关事业单位实施养老保险制度由单位缴纳的基本养老保险费支出。 32.社会保障和就业支出（类）行政事业单位养老支出（款）机关事业单位职业年金缴费支出（项）：指反映机关事业单位实施养老保险制度由单位实际缴纳的职业年金支出（含职业年金补记支出）。 33.卫生健康支出（类）行政事业单位医疗（款）行政单位医疗（项）：指反映财政部门安排的行政单位（包括实行公务员管理的事业单位，下同）基本医疗保险缴费经费，未参加医疗保险的行政单位的公费医疗经费，按国家规定享受离休人员、红军老战士待遇人员的医疗经费。 34.卫生健康支出（类）行政事业单位医疗（款）公务员医疗补助（项）：指反映财政部门安排的公务员医疗补助经费。 35.城乡社区支出（类）国有土地使用权出让收入安排的支出（款）其他国有土地使用权出让收入安排的支出（项）：指反映土地出让收人用于其他方面的支出。不包括市县级政府当年按规定用土地出让收人向中央和省级政府缴纳的新增建设用地土地有偿使用费的支出。 36.城乡社区支出（类）其他城乡社区支出（款）其他城乡社区支出（项）：指反映除上述项目以外其他用于城乡社区方面的支出。 37.住房保障支出（类）住房改革支出（款）住房公积金（项）：指反映行政事业单位按人力资源和社会保障部、财政部规定的基本工资和津贴补贴以及规定比例为职工缴纳的住房公积金。 38.其他支出（类）其他政府性基金及对应专项债务收人安排的支出（款）其他政府性基金安排的支出（项）：指反映其他政府性基金安排的支出(包括用以前年度欠款收人安排的支出)。
A25: 泰顺县柳峰乡幼儿园 | C25: =(SUMIF(#REF!,A25,#REF!)+SUMIF(#REF!,A25,#REF!))*10000 ->  | D25: =(SUMIF(#REF!,A25,#REF!)+SUMIF(#REF!,A25,#REF!))*10000 ->  | E25: =SUMIF(INDIRECT("参考数据!$E:$E"),核对!A25,INDIRECT("参考数据!$C:$C")) -> 1010557.36 | G25: 17.教育支出（类）普通教育（款）学前教育（项）：指反映各部门举办的学前教育支出。政府各部门对社会组织等举办的幼儿园的资助，如各类捐赠、补贴等，也在本科目反映。 18.教育支出（类）教育费附加安排的支出（款）其他教育费附加安排的支出（项）：指反映除上述项目以外的教育费附加支出。 19.社会保障和就业支出（类）行政事业单位养老支出（款）机关事业单位基本养老保险缴费支出（项）：指反映机关事业单位实施养老保险制度由单位缴纳的基本养老保险费支出。 20.社会保障和就业支出（类）行政事业单位养老支出（款）机关事业单位职业年金缴费支出（项）：指反映机关事业单位实施养老保险制度由单位实际缴纳的职业年金支出（含职业年金补记支出）。 21.卫生健康支出（类）行政事业单位医疗（款）事业单位医疗（项）：指反映财政部门安排的事业单位基本医疗保险缴费经费，未参加医疗保险的事业单位的公费医疗经费，按国家规定享受离休人员待遇的医疗经费。 22.卫生健康支出（类）行政事业单位医疗（款）公务员医疗补助（项）：指反映财政部门安排的公务员医疗补助经费。 23.住房保障支出（类）住房改革支出（款）住房公积金（项）：指反映行政事业单位按人力资源和社会保障部、财政部规定的基本工资和津贴补贴以及规定比例为职工缴纳的住房公积金。 24.其他支出（类）其他政府性基金及对应专项债务收人安排的支出（款）其他政府性基金安排的支出（项）：指反映其他政府性基金安排的支出(包括用以前年度欠款收人安排的支出)。
A26: 泰顺县柳峰乡中心学校 | C26: =(SUMIF(#REF!,A26,#REF!)+SUMIF(#REF!,A26,#REF!))*10000 ->  | D26: =(SUMIF(#REF!,A26,#REF!)+SUMIF(#REF!,A26,#REF!))*10000 ->  | E26: =SUMIF(INDIRECT("参考数据!$E:$E"),核对!A26,INDIRECT("参考数据!$C:$C")) -> 6884012.69 | G26: 17.教育支出（类）普通教育（款）小学教育（项）：指反映各部门举办的小学教育支出。政府各部门对社会组织等举办的小学的资助，如各类捐赠、补贴等，也在本科目反映。 18.教育支出（类）普通教育（款）其他普通教育支出（项）：指反映除上述项目以外其他用于普通教育方面的支出。 19.教育支出（类）教育费附加安排的支出（款）其他教育费附加安排的支出（项）：指反映除上述项目以外的教育费附加支出。 20.科学技术支出（类）其他科学技术支出（款）其他科学技术支出（项）：指反映其他科学技术支出中除以上各项外用于科技方面的支出。 21.文化旅游体育与传媒支出（类）其他文化旅游体育与传媒支出（款）其他文化旅游体育与传媒支出（项）：指反映除上述项目以外其他用于文化旅游体育与传媒方面的支出。 22.社会保障和就业支出（类）人力资源和社会保障管理事务（款）其他人力资源和社会保障管理事务支出（项）：指反映除上述项目以外其他用于人力资源和社会保障管理事务方面的支出。 23.社会保障和就业支出（类）行政事业单位养老支出（款）事业单位离退休（项）：指反映事业单位开支的离退休经费。 24.社会保障和就业支出（类）行政事业单位养老支出（款）机关事业单位基本养老保险缴费支出（项）：指反映机关事业单位实施养老保险制度由单位缴纳的基本养老保险费支出。 25.社会保障和就业支出（类）行政事业单位养老支出（款）机关事业单位职业年金缴费支出（项）：指反映机关事业单位实施养老保险制度由单位实际缴纳的职业年金支出（含职业年金补记支出）。 26.卫生健康支出（类）行政事业单位医疗（款）事业单位医疗（项）：指反映财政部门安排的事业单位基本医疗保险缴费经费，未参加医疗保险的事业单位的公费医疗经费，按国家规定享受离休人员待遇的医疗经费。 27.卫生健康支出（类）行政事业单位医疗（款）公务员医疗补助（项）：指反映财政部门安排的公务员医疗补助经费。 28.住房保障支出（类）住房改革支出（款）住房公积金（项）：指反映行政事业单位按人力资源和社会保障部、财政部规定的基本工资和津贴补贴以及规定比例为职工缴纳的住房公积金。 29.其他支出（类）其他政府性基金及对应专项债务收人安排的支出（款）其他政府性基金安排的支出（项）：指反映其他政府性基金安排的支出(包括用以前年度欠款收人安排的支出)。
A27: 泰顺县鹿泰实验幼儿园 | C27: =(SUMIF(#REF!,A27,#REF!)+SUMIF(#REF!,A27,#REF!))*10000 ->  | D27: =(SUMIF(#REF!,A27,#REF!)+SUMIF(#REF!,A27,#REF!))*10000 ->  | E27: =SUMIF(INDIRECT("参考数据!$E:$E"),核对!A27,INDIRECT("参考数据!$C:$C")) -> 4756485.58 | G27: 17.教育支出（类）普通教育（款）学前教育（项）：指反映各部门举办的学前教育支出。政府各部门对社会组织等举办的幼儿园的资助，如各类捐赠、补贴等，也在本科目反映。 18.教育支出（类）教育费附加安排的支出（款）其他教育费附加安排的支出（项）：指反映除上述项目以外的教育费附加支出。 19.科学技术支出（类）其他科学技术支出（款）其他科学技术支出（项）：指反映其他科学技术支出中除以上各项外用于科技方面的支出。 20.社会保障和就业支出（类）行政事业单位养老支出（款）机关事业单位基本养老保险缴费支出（项）：指反映机关事业单位实施养老保险制度由单位缴纳的基本养老保险费支出。 21.社会保障和就业支出（类）行政事业单位养老支出（款）机关事业单位职业年金缴费支出（项）：指反映机关事业单位实施养老保险制度由单位实际缴纳的职业年金支出（含职业年金补记支出）。 22.卫生健康支出（类）行政事业单位医疗（款）事业单位医疗（项）：指反映财政部门安排的事业单位基本医疗保险缴费经费，未参加医疗保险的事业单位的公费医疗经费，按国家规定享受离休人员待遇的医疗经费。 23.卫生健康支出（类）行政事业单位医疗（款）公务员医疗补助（项）：指反映财政部门安排的公务员医疗补助经费。 24.住房保障支出（类）住房改革支出（款）住房公积金（项）：指反映行政事业单位按人力资源和社会保障部、财政部规定的基本工资和津贴补贴以及规定比例为职工缴纳的住房公积金。 25.其他支出（类）其他政府性基金及对应专项债务收人安排的支出（款）其他政府性基金安排的支出（项）：指反映其他政府性基金安排的支出(包括用以前年度欠款收人安排的支出)。
A28: 泰顺县罗阳二中 | C28: =(SUMIF(#REF!,A28,#REF!)+SUMIF(#REF!,A28,#REF!))*10000 ->  | D28: =(SUMIF(#REF!,A28,#REF!)+SUMIF(#REF!,A28,#REF!))*10000 ->  | E28: =SUMIF(INDIRECT("参考数据!$E:$E"),核对!A28,INDIRECT("参考数据!$C:$C")) -> 21675640.57 | G28: 17.教育支出（类）普通教育（款）初中教育（项）：指反映各部门举办的初中教育支出。政府各部门对社会组织等举办的初中的资助，如捐赠、补贴等，也在本科目中反映。 18.教育支出（类）普通教育（款）其他普通教育支出（项）：指反映除上述项目以外其他用于普通教育方面的支出。 19.科学技术支出（类）其他科学技术支出（款）其他科学技术支出（项）：指反映其他科学技术支出中除以上各项外用于科技方面的支出。 20.社会保障和就业支出（类）人力资源和社会保障管理事务（款）其他人力资源和社会保障管理事务支出（项）：指反映除上述项目以外其他用于人力资源和社会保障管理事务方面的支出。 21.社会保障和就业支出（类）行政事业单位养老支出（款）事业单位离退休（项）：指反映事业单位开支的离退休经费。 22.社会保障和就业支出（类）行政事业单位养老支出（款）机关事业单位基本养老保险缴费支出（项）：指反映机关事业单位实施养老保险制度由单位缴纳的基本养老保险费支出。 23.社会保障和就业支出（类）行政事业单位养老支出（款）机关事业单位职业年金缴费支出（项）：指反映机关事业单位实施养老保险制度由单位实际缴纳的职业年金支出（含职业年金补记支出）。 24.卫生健康支出（类）行政事业单位医疗（款）事业单位医疗（项）：指反映财政部门安排的事业单位基本医疗保险缴费经费，未参加医疗保险的事业单位的公费医疗经费，按国家规定享受离休人员待遇的医疗经费。 25.卫生健康支出（类）行政事业单位医疗（款）公务员医疗补助（项）：指反映财政部门安排的公务员医疗补助经费。 26.住房保障支出（类）住房改革支出（款）住房公积金（项）：指反映行政事业单位按人力资源和社会保障部、财政部规定的基本工资和津贴补贴以及规定比例为职工缴纳的住房公积金。 27.其他支出（类）其他政府性基金及对应专项债务收人安排的支出（款）其他政府性基金安排的支出（项）：指反映其他政府性基金安排的支出(包括用以前年度欠款收人安排的支出)。 28.其他支出（类）彩票公益金安排的支出（款）用于体育事业的彩票公益金支出（项）：指反映用于体育事业的彩票公益金支出。
A29: 泰顺县罗阳镇第二小学 | C29: =(SUMIF(#REF!,A29,#REF!)+SUMIF(#REF!,A29,#REF!))*10000 ->  | D29: =(SUMIF(#REF!,A29,#REF!)+SUMIF(#REF!,A29,#REF!))*10000 ->  | E29: =SUMIF(INDIRECT("参考数据!$E:$E"),核对!A29,INDIRECT("参考数据!$C:$C")) -> 17879676.54 | G29: 17.教育支出（类）普通教育（款）小学教育（项）：指反映各部门举办的小学教育支出。政府各部门对社会组织等举办的小学的资助，如各类捐赠、补贴等，也在本科目反映。 18.教育支出（类）普通教育（款）其他普通教育支出（项）：指反映除上述项目以外其他用于普通教育方面的支出。 19.教育支出（类）教育费附加安排的支出（款）其他教育费附加安排的支出（项）：指反映除上述项目以外的教育费附加支出。 20.科学技术支出（类）其他科学技术支出（款）其他科学技术支出（项）：指反映其他科学技术支出中除以上各项外用于科技方面的支出。 21.文化旅游体育与传媒支出（类）其他文化旅游体育与传媒支出（款）其他文化旅游体育与传媒支出（项）：指反映除上述项目以外其他用于文化旅游体育与传媒方面的支出。 22.社会保障和就业支出（类）人力资源和社会保障管理事务（款）其他人力资源和社会保障管理事务支出（项）：指反映除上述项目以外其他用于人力资源和社会保障管理事务方面的支出。 23.社会保障和就业支出（类）行政事业单位养老支出（款）事业单位离退休（项）：指反映事业单位开支的离退休经费。 24.社会保障和就业支出（类）行政事业单位养老支出（款）机关事业单位基本养老保险缴费支出（项）：指反映机关事业单位实施养老保险制度由单位缴纳的基本养老保险费支出。 25.社会保障和就业支出（类）行政事业单位养老支出（款）机关事业单位职业年金缴费支出（项）：指反映机关事业单位实施养老保险制度由单位实际缴纳的职业年金支出（含职业年金补记支出）。 26.卫生健康支出（类）行政事业单位医疗（款）事业单位医疗（项）：指反映财政部门安排的事业单位基本医疗保险缴费经费，未参加医疗保险的事业单位的公费医疗经费，按国家规定享受离休人员待遇的医疗经费。 27.卫生健康支出（类）行政事业单位医疗（款）公务员医疗补助（项）：指反映财政部门安排的公务员医疗补助经费。 28.住房保障支出（类）住房改革支出（款）住房公积金（项）：指反映行政事业单位按人力资源和社会保障部、财政部规定的基本工资和津贴补贴以及规定比例为职工缴纳的住房公积金。 29.其他支出（类）其他政府性基金及对应专项债务收人安排的支出（款）其他政府性基金安排的支出（项）：指反映其他政府性基金安排的支出(包括用以前年度欠款收人安排的支出)。 30.其他支出（类）彩票公益金安排的支出（款）用于体育事业的彩票公益金支出（项）：指反映用于体育事业的彩票公益金支出。
A30: 泰顺县罗阳镇南院中心小学 | C30: =(SUMIF(#REF!,A30,#REF!)+SUMIF(#REF!,A30,#REF!))*10000 ->  | D30: =(SUMIF(#REF!,A30,#REF!)+SUMIF(#REF!,A30,#REF!))*10000 ->  | E30: =SUMIF(INDIRECT("参考数据!$E:$E"),核对!A30,INDIRECT("参考数据!$C:$C")) -> 768225 | G30: 17.教育支出（类）普通教育（款）小学教育（项）：指反映各部门举办的小学教育支出。政府各部门对社会组织等举办的小学的资助，如各类捐赠、补贴等，也在本科目反映。 18.教育支出（类）普通教育（款）其他普通教育支出（项）：指反映除上述项目以外其他用于普通教育方面的支出。 19.科学技术支出（类）其他科学技术支出（款）其他科学技术支出（项）：指反映其他科学技术支出中除以上各项外用于科技方面的支出。 20.社会保障和就业支出（类）行政事业单位养老支出（款）事业单位离退休（项）：指反映事业单位开支的离退休经费。 21.社会保障和就业支出（类）行政事业单位养老支出（款）机关事业单位基本养老保险缴费支出（项）：指反映机关事业单位实施养老保险制度由单位缴纳的基本养老保险费支出。 22.社会保障和就业支出（类）行政事业单位养老支出（款）机关事业单位职业年金缴费支出（项）：指反映机关事业单位实施养老保险制度由单位实际缴纳的职业年金支出（含职业年金补记支出）。 23.卫生健康支出（类）行政事业单位医疗（款）事业单位医疗（项）：指反映财政部门安排的事业单位基本医疗保险缴费经费，未参加医疗保险的事业单位的公费医疗经费，按国家规定享受离休人员待遇的医疗经费。 24.卫生健康支出（类）行政事业单位医疗（款）公务员医疗补助（项）：指反映财政部门安排的公务员医疗补助经费。 25.住房保障支出（类）住房改革支出（款）住房公积金（项）：指反映行政事业单位按人力资源和社会保障部、财政部规定的基本工资和津贴补贴以及规定比例为职工缴纳的住房公积金。
A31: 泰顺县罗阳镇下洪中心学校 | C31: =(SUMIF(#REF!,A31,#REF!)+SUMIF(#REF!,A31,#REF!))*10000 ->  | D31: =(SUMIF(#REF!,A31,#REF!)+SUMIF(#REF!,A31,#REF!))*10000 ->  | E31: =SUMIF(INDIRECT("参考数据!$E:$E"),核对!A31,INDIRECT("参考数据!$C:$C")) -> 8636619 | G31: 17.教育支出（类）普通教育（款）小学教育（项）：指反映各部门举办的小学教育支出。政府各部门对社会组织等举办的小学的资助，如各类捐赠、补贴等，也在本科目反映。 18.教育支出（类）普通教育（款）其他普通教育支出（项）：指反映除上述项目以外其他用于普通教育方面的支出。 19.教育支出（类）教育费附加安排的支出（款）其他教育费附加安排的支出（项）：指反映除上述项目以外的教育费附加支出。 20.科学技术支出（类）其他科学技术支出（款）其他科学技术支出（项）：指反映其他科学技术支出中除以上各项外用于科技方面的支出。 21.文化旅游体育与传媒支出（类）其他文化旅游体育与传媒支出（款）其他文化旅游体育与传媒支出（项）：指反映除上述项目以外其他用于文化旅游体育与传媒方面的支出。 22.社会保障和就业支出（类）人力资源和社会保障管理事务（款）其他人力资源和社会保障管理事务支出（项）：指反映除上述项目以外其他用于人力资源和社会保障管理事务方面的支出。 23.社会保障和就业支出（类）行政事业单位养老支出（款）事业单位离退休（项）：指反映事业单位开支的离退休经费。 24.社会保障和就业支出（类）行政事业单位养老支出（款）机关事业单位基本养老保险缴费支出（项）：指反映机关事业单位实施养老保险制度由单位缴纳的基本养老保险费支出。 25.社会保障和就业支出（类）行政事业单位养老支出（款）机关事业单位职业年金缴费支出（项）：指反映机关事业单位实施养老保险制度由单位实际缴纳的职业年金支出（含职业年金补记支出）。 26.卫生健康支出（类）行政事业单位医疗（款）事业单位医疗（项）：指反映财政部门安排的事业单位基本医疗保险缴费经费，未参加医疗保险的事业单位的公费医疗经费，按国家规定享受离休人员待遇的医疗经费。 27.卫生健康支出（类）行政事业单位医疗（款）公务员医疗补助（项）：指反映财政部门安排的公务员医疗补助经费。 28.住房保障支出（类）住房改革支出（款）住房公积金（项）：指反映行政事业单位按人力资源和社会保障部、财政部规定的基本工资和津贴补贴以及规定比例为职工缴纳的住房公积金。 29.其他支出（类）其他政府性基金及对应专项债务收人安排的支出（款）其他政府性基金安排的支出（项）：指反映其他政府性基金安排的支出(包括用以前年度欠款收人安排的支出)。
A32: 泰顺县罗阳镇中心小学 | C32: =(SUMIF(#REF!,A32,#REF!)+SUMIF(#REF!,A32,#REF!))*10000 ->  | D32: =(SUMIF(#REF!,A32,#REF!)+SUMIF(#REF!,A32,#REF!))*10000 ->  | E32: =SUMIF(INDIRECT("参考数据!$E:$E"),核对!A32,INDIRECT("参考数据!$C:$C")) -> 12017819.19 | G32: 17.教育支出（类）普通教育（款）小学教育（项）：指反映各部门举办的小学教育支出。政府各部门对社会组织等举办的小学的资助，如各类捐赠、补贴等，也在本科目反映。 18.教育支出（类）普通教育（款）其他普通教育支出（项）：指反映除上述项目以外其他用于普通教育方面的支出。 19.教育支出（类）教育费附加安排的支出（款）其他教育费附加安排的支出（项）：指反映除上述项目以外的教育费附加支出。 20.科学技术支出（类）其他科学技术支出（款）其他科学技术支出（项）：指反映其他科学技术支出中除以上各项外用于科技方面的支出。 21.社会保障和就业支出（类）人力资源和社会保障管理事务（款）其他人力资源和社会保障管理事务支出（项）：指反映除上述项目以外其他用于人力资源和社会保障管理事务方面的支出。 22.社会保障和就业支出（类）行政事业单位养老支出（款）事业单位离退休（项）：指反映事业单位开支的离退休经费。 23.社会保障和就业支出（类）行政事业单位养老支出（款）机关事业单位基本养老保险缴费支出（项）：指反映机关事业单位实施养老保险制度由单位缴纳的基本养老保险费支出。 24.社会保障和就业支出（类）行政事业单位养老支出（款）机关事业单位职业年金缴费支出（项）：指反映机关事业单位实施养老保险制度由单位实际缴纳的职业年金支出（含职业年金补记支出）。 25.卫生健康支出（类）行政事业单位医疗（款）事业单位医疗（项）：指反映财政部门安排的事业单位基本医疗保险缴费经费，未参加医疗保险的事业单位的公费医疗经费，按国家规定享受离休人员待遇的医疗经费。 26.卫生健康支出（类）行政事业单位医疗（款）公务员医疗补助（项）：指反映财政部门安排的公务员医疗补助经费。 27.住房保障支出（类）住房改革支出（款）住房公积金（项）：指反映行政事业单位按人力资源和社会保障部、财政部规定的基本工资和津贴补贴以及规定比例为职工缴纳的住房公积金。 28.其他支出（类）其他政府性基金及对应专项债务收人安排的支出（款）其他政府性基金安排的支出（项）：指反映其他政府性基金安排的支出(包括用以前年度欠款收人安排的支出)。
A33: 泰顺县罗阳镇洲岭中心小学 | C33: =(SUMIF(#REF!,A33,#REF!)+SUMIF(#REF!,A33,#REF!))*10000 ->  | D33: =(SUMIF(#REF!,A33,#REF!)+SUMIF(#REF!,A33,#REF!))*10000 ->  | E33: =SUMIF(INDIRECT("参考数据!$E:$E"),核对!A33,INDIRECT("参考数据!$C:$C")) -> 724275 | G33: 17.教育支出（类）普通教育（款）小学教育（项）：指反映各部门举办的小学教育支出。政府各部门对社会组织等举办的小学的资助，如各类捐赠、补贴等，也在本科目反映。 18.教育支出（类）普通教育（款）其他普通教育支出（项）：指反映除上述项目以外其他用于普通教育方面的支出。 19.科学技术支出（类）其他科学技术支出（款）其他科学技术支出（项）：指反映其他科学技术支出中除以上各项外用于科技方面的支出。 20.社会保障和就业支出（类）人力资源和社会保障管理事务（款）其他人力资源和社会保障管理事务支出（项）：指反映除上述项目以外其他用于人力资源和社会保障管理事务方面的支出。 21.社会保障和就业支出（类）行政事业单位养老支出（款）事业单位离退休（项）：指反映事业单位开支的离退休经费。 22.社会保障和就业支出（类）行政事业单位养老支出（款）机关事业单位基本养老保险缴费支出（项）：指反映机关事业单位实施养老保险制度由单位缴纳的基本养老保险费支出。 23.社会保障和就业支出（类）行政事业单位养老支出（款）机关事业单位职业年金缴费支出（项）：指反映机关事业单位实施养老保险制度由单位实际缴纳的职业年金支出（含职业年金补记支出）。 24.卫生健康支出（类）行政事业单位医疗（款）事业单位医疗（项）：指反映财政部门安排的事业单位基本医疗保险缴费经费，未参加医疗保险的事业单位的公费医疗经费，按国家规定享受离休人员待遇的医疗经费。 25.卫生健康支出（类）行政事业单位医疗（款）公务员医疗补助（项）：指反映财政部门安排的公务员医疗补助经费。 26.住房保障支出（类）住房改革支出（款）住房公积金（项）：指反映行政事业单位按人力资源和社会保障部、财政部规定的基本工资和津贴补贴以及规定比例为职工缴纳的住房公积金。
A34: 泰顺县民族中学 | C34: =(SUMIF(#REF!,A34,#REF!)+SUMIF(#REF!,A34,#REF!))*10000 ->  | D34: =(SUMIF(#REF!,A34,#REF!)+SUMIF(#REF!,A34,#REF!))*10000 ->  | E34: =SUMIF(INDIRECT("参考数据!$E:$E"),核对!A34,INDIRECT("参考数据!$C:$C")) -> 9379938.18 | G34: 17.教育支出（类）普通教育（款）初中教育（项）：指反映各部门举办的初中教育支出。政府各部门对社会组织等举办的初中的资助，如捐赠、补贴等，也在本科目中反映。 18.教育支出（类）普通教育（款）其他普通教育支出（项）：指反映除上述项目以外其他用于普通教育方面的支出。 19.教育支出（类）教育费附加安排的支出（款）其他教育费附加安排的支出（项）：指反映除上述项目以外的教育费附加支出。 20.科学技术支出（类）其他科学技术支出（款）其他科学技术支出（项）：指反映其他科学技术支出中除以上各项外用于科技方面的支出。 21.社会保障和就业支出（类）人力资源和社会保障管理事务（款）其他人力资源和社会保障管理事务支出（项）：指反映除上述项目以外其他用于人力资源和社会保障管理事务方面的支出。 22.社会保障和就业支出（类）行政事业单位养老支出（款）事业单位离退休（项）：指反映事业单位开支的离退休经费。 23.社会保障和就业支出（类）行政事业单位养老支出（款）机关事业单位基本养老保险缴费支出（项）：指反映机关事业单位实施养老保险制度由单位缴纳的基本养老保险费支出。 24.社会保障和就业支出（类）行政事业单位养老支出（款）机关事业单位职业年金缴费支出（项）：指反映机关事业单位实施养老保险制度由单位实际缴纳的职业年金支出（含职业年金补记支出）。 25.卫生健康支出（类）行政事业单位医疗（款）事业单位医疗（项）：指反映财政部门安排的事业单位基本医疗保险缴费经费，未参加医疗保险的事业单位的公费医疗经费，按国家规定享受离休人员待遇的医疗经费。 26.卫生健康支出（类）行政事业单位医疗（款）公务员医疗补助（项）：指反映财政部门安排的公务员医疗补助经费。 27.住房保障支出（类）住房改革支出（款）住房公积金（项）：指反映行政事业单位按人力资源和社会保障部、财政部规定的基本工资和津贴补贴以及规定比例为职工缴纳的住房公积金。 28.其他支出（类）其他政府性基金及对应专项债务收人安排的支出（款）其他政府性基金安排的支出（项）：指反映其他政府性基金安排的支出(包括用以前年度欠款收人安排的支出)。
A35: 泰顺县南浦溪镇幼儿园 | C35: =(SUMIF(#REF!,A35,#REF!)+SUMIF(#REF!,A35,#REF!))*10000 ->  | D35: =(SUMIF(#REF!,A35,#REF!)+SUMIF(#REF!,A35,#REF!))*10000 ->  | E35: =SUMIF(INDIRECT("参考数据!$E:$E"),核对!A35,INDIRECT("参考数据!$C:$C")) -> 1521182.75 | G35: 17.教育支出（类）普通教育（款）学前教育（项）：指反映各部门举办的学前教育支出。政府各部门对社会组织等举办的幼儿园的资助，如各类捐赠、补贴等，也在本科目反映。 18.教育支出（类）教育费附加安排的支出（款）其他教育费附加安排的支出（项）：指反映除上述项目以外的教育费附加支出。 19.社会保障和就业支出（类）行政事业单位养老支出（款）机关事业单位基本养老保险缴费支出（项）：指反映机关事业单位实施养老保险制度由单位缴纳的基本养老保险费支出。 20.社会保障和就业支出（类）行政事业单位养老支出（款）机关事业单位职业年金缴费支出（项）：指反映机关事业单位实施养老保险制度由单位实际缴纳的职业年金支出（含职业年金补记支出）。 21.卫生健康支出（类）行政事业单位医疗（款）事业单位医疗（项）：指反映财政部门安排的事业单位基本医疗保险缴费经费，未参加医疗保险的事业单位的公费医疗经费，按国家规定享受离休人员待遇的医疗经费。 22.卫生健康支出（类）行政事业单位医疗（款）公务员医疗补助（项）：指反映财政部门安排的公务员医疗补助经费。 23.住房保障支出（类）住房改革支出（款）住房公积金（项）：指反映行政事业单位按人力资源和社会保障部、财政部规定的基本工资和津贴补贴以及规定比例为职工缴纳的住房公积金。 24.其他支出（类）其他政府性基金及对应专项债务收人安排的支出（款）其他政府性基金安排的支出（项）：指反映其他政府性基金安排的支出(包括用以前年度欠款收人安排的支出)。
A36: 泰顺县南浦溪镇中心学校 | C36: =(SUMIF(#REF!,A36,#REF!)+SUMIF(#REF!,A36,#REF!))*10000 ->  | D36: =(SUMIF(#REF!,A36,#REF!)+SUMIF(#REF!,A36,#REF!))*10000 ->  | E36: =SUMIF(INDIRECT("参考数据!$E:$E"),核对!A36,INDIRECT("参考数据!$C:$C")) -> 7743301.39 | G36: 17.教育支出（类）普通教育（款）小学教育（项）：指反映各部门举办的小学教育支出。政府各部门对社会组织等举办的小学的资助，如各类捐赠、补贴等，也在本科目反映。 18.教育支出（类）普通教育（款）其他普通教育支出（项）：指反映除上述项目以外其他用于普通教育方面的支出。 19.教育支出（类）教育费附加安排的支出（款）其他教育费附加安排的支出（项）：指反映除上述项目以外的教育费附加支出。 20.科学技术支出（类）其他科学技术支出（款）其他科学技术支出（项）：指反映其他科学技术支出中除以上各项外用于科技方面的支出。 21.文化旅游体育与传媒支出（类）其他文化旅游体育与传媒支出（款）其他文化旅游体育与传媒支出（项）：指反映除上述项目以外其他用于文化旅游体育与传媒方面的支出。 22.社会保障和就业支出（类）人力资源和社会保障管理事务（款）其他人力资源和社会保障管理事务支出（项）：指反映除上述项目以外其他用于人力资源和社会保障管理事务方面的支出。 23.社会保障和就业支出（类）行政事业单位养老支出（款）事业单位离退休（项）：指反映事业单位开支的离退休经费。 24.社会保障和就业支出（类）行政事业单位养老支出（款）机关事业单位基本养老保险缴费支出（项）：指反映机关事业单位实施养老保险制度由单位缴纳的基本养老保险费支出。 25.社会保障和就业支出（类）行政事业单位养老支出（款）机关事业单位职业年金缴费支出（项）：指反映机关事业单位实施养老保险制度由单位实际缴纳的职业年金支出（含职业年金补记支出）。 26.卫生健康支出（类）行政事业单位医疗（款）事业单位医疗（项）：指反映财政部门安排的事业单位基本医疗保险缴费经费，未参加医疗保险的事业单位的公费医疗经费，按国家规定享受离休人员待遇的医疗经费。 27.卫生健康支出（类）行政事业单位医疗（款）公务员医疗补助（项）：指反映财政部门安排的公务员医疗补助经费。 28.住房保障支出（类）住房改革支出（款）住房公积金（项）：指反映行政事业单位按人力资源和社会保障部、财政部规定的基本工资和津贴补贴以及规定比例为职工缴纳的住房公积金。 29.其他支出（类）其他政府性基金及对应专项债务收人安排的支出（款）其他政府性基金安排的支出（项）：指反映其他政府性基金安排的支出(包括用以前年度欠款收人安排的支出)。 30.其他支出（类）彩票公益金安排的支出（款）用于体育事业的彩票公益金支出（项）：指反映用于体育事业的彩票公益金支出。
A37: 泰顺县培智实验学校 | C37: =(SUMIF(#REF!,A37,#REF!)+SUMIF(#REF!,A37,#REF!))*10000 ->  | D37: =(SUMIF(#REF!,A37,#REF!)+SUMIF(#REF!,A37,#REF!))*10000 ->  | E37: =SUMIF(INDIRECT("参考数据!$E:$E"),核对!A37,INDIRECT("参考数据!$C:$C")) -> 10432772.91 | G37: 17.教育支出（类）普通教育（款）其他普通教育支出（项）：指反映除上述项目以外其他用于普通教育方面的支出。 18.教育支出（类）特殊教育（款）特殊学校教育（项）：指反映各部门举办盲童学校、聋哑学校、智力落后儿童学校、其他生理缺陷儿童学校的支出。 19.科学技术支出（类）其他科学技术支出（款）其他科学技术支出（项）：指反映其他科学技术支出中除以上各项外用于科技方面的支出。 20.社会保障和就业支出（类）人力资源和社会保障管理事务（款）其他人力资源和社会保障管理事务支出（项）：指反映除上述项目以外其他用于人力资源和社会保障管理事务方面的支出。 21.社会保障和就业支出（类）行政事业单位养老支出（款）事业单位离退休（项）：指反映事业单位开支的离退休经费。 22.社会保障和就业支出（类）行政事业单位养老支出（款）机关事业单位基本养老保险缴费支出（项）：指反映机关事业单位实施养老保险制度由单位缴纳的基本养老保险费支出。 23.社会保障和就业支出（类）行政事业单位养老支出（款）机关事业单位职业年金缴费支出（项）：指反映机关事业单位实施养老保险制度由单位实际缴纳的职业年金支出（含职业年金补记支出）。 24.社会保障和就业支出（类）残疾人事业（款）其他残疾人事业支出（项）：指反映除上述项目以外其他用于残疾人事业方面的支出。 25.卫生健康支出（类）行政事业单位医疗（款）事业单位医疗（项）：指反映财政部门安排的事业单位基本医疗保险缴费经费，未参加医疗保险的事业单位的公费医疗经费，按国家规定享受离休人员待遇的医疗经费。 26.卫生健康支出（类）行政事业单位医疗（款）公务员医疗补助（项）：指反映财政部门安排的公务员医疗补助经费。 27.住房保障支出（类）住房改革支出（款）住房公积金（项）：指反映行政事业单位按人力资源和社会保障部、财政部规定的基本工资和津贴补贴以及规定比例为职工缴纳的住房公积金。 28.其他支出（类）其他政府性基金及对应专项债务收人安排的支出（款）其他政府性基金安排的支出（项）：指反映其他政府性基金安排的支出(包括用以前年度欠款收人安排的支出)。
A38: 泰顺县彭溪镇富洋小学 | C38: =(SUMIF(#REF!,A38,#REF!)+SUMIF(#REF!,A38,#REF!))*10000 ->  | D38: =(SUMIF(#REF!,A38,#REF!)+SUMIF(#REF!,A38,#REF!))*10000 ->  | E38: =SUMIF(INDIRECT("参考数据!$E:$E"),核对!A38,INDIRECT("参考数据!$C:$C")) -> 3085184.85 | G38: 17.教育支出（类）普通教育（款）小学教育（项）：指反映各部门举办的小学教育支出。政府各部门对社会组织等举办的小学的资助，如各类捐赠、补贴等，也在本科目反映。 18.教育支出（类）普通教育（款）其他普通教育支出（项）：指反映除上述项目以外其他用于普通教育方面的支出。 19.文化旅游体育与传媒支出（类）其他文化旅游体育与传媒支出（款）其他文化旅游体育与传媒支出（项）：指反映除上述项目以外其他用于文化旅游体育与传媒方面的支出。 20.社会保障和就业支出（类）人力资源和社会保障管理事务（款）其他人力资源和社会保障管理事务支出（项）：指反映除上述项目以外其他用于人力资源和社会保障管理事务方面的支出。 21.社会保障和就业支出（类）行政事业单位养老支出（款）事业单位离退休（项）：指反映事业单位开支的离退休经费。 22.社会保障和就业支出（类）行政事业单位养老支出（款）机关事业单位基本养老保险缴费支出（项）：指反映机关事业单位实施养老保险制度由单位缴纳的基本养老保险费支出。 23.社会保障和就业支出（类）行政事业单位养老支出（款）机关事业单位职业年金缴费支出（项）：指反映机关事业单位实施养老保险制度由单位实际缴纳的职业年金支出（含职业年金补记支出）。 24.卫生健康支出（类）行政事业单位医疗（款）事业单位医疗（项）：指反映财政部门安排的事业单位基本医疗保险缴费经费，未参加医疗保险的事业单位的公费医疗经费，按国家规定享受离休人员待遇的医疗经费。 25.卫生健康支出（类）行政事业单位医疗（款）公务员医疗补助（项）：指反映财政部门安排的公务员医疗补助经费。 26.住房保障支出（类）住房改革支出（款）住房公积金（项）：指反映行政事业单位按人力资源和社会保障部、财政部规定的基本工资和津贴补贴以及规定比例为职工缴纳的住房公积金。 27.其他支出（类）其他政府性基金及对应专项债务收人安排的支出（款）其他政府性基金安排的支出（项）：指反映其他政府性基金安排的支出(包括用以前年度欠款收人安排的支出)。
A39: 泰顺县彭溪镇幼儿园 | C39: =(SUMIF(#REF!,A39,#REF!)+SUMIF(#REF!,A39,#REF!))*10000 ->  | D39: =(SUMIF(#REF!,A39,#REF!)+SUMIF(#REF!,A39,#REF!))*10000 ->  | E39: =SUMIF(INDIRECT("参考数据!$E:$E"),核对!A39,INDIRECT("参考数据!$C:$C")) -> 3290708.06 | G39: 17.教育支出（类）普通教育（款）学前教育（项）：指反映各部门举办的学前教育支出。政府各部门对社会组织等举办的幼儿园的资助，如各类捐赠、补贴等，也在本科目反映。 18.教育支出（类）普通教育（款）其他普通教育支出（项）：指反映除上述项目以外其他用于普通教育方面的支出。 19.教育支出（类）教育费附加安排的支出（款）其他教育费附加安排的支出（项）：指反映除上述项目以外的教育费附加支出。 20.社会保障和就业支出（类）行政事业单位养老支出（款）机关事业单位基本养老保险缴费支出（项）：指反映机关事业单位实施养老保险制度由单位缴纳的基本养老保险费支出。 21.社会保障和就业支出（类）行政事业单位养老支出（款）机关事业单位职业年金缴费支出（项）：指反映机关事业单位实施养老保险制度由单位实际缴纳的职业年金支出（含职业年金补记支出）。 22.卫生健康支出（类）行政事业单位医疗（款）事业单位医疗（项）：指反映财政部门安排的事业单位基本医疗保险缴费经费，未参加医疗保险的事业单位的公费医疗经费，按国家规定享受离休人员待遇的医疗经费。 23.卫生健康支出（类）行政事业单位医疗（款）公务员医疗补助（项）：指反映财政部门安排的公务员医疗补助经费。 24.住房保障支出（类）住房改革支出（款）住房公积金（项）：指反映行政事业单位按人力资源和社会保障部、财政部规定的基本工资和津贴补贴以及规定比例为职工缴纳的住房公积金。 25.其他支出（类）其他政府性基金及对应专项债务收人安排的支出（款）其他政府性基金安排的支出（项）：指反映其他政府性基金安排的支出(包括用以前年度欠款收人安排的支出)。
A40: 泰顺县彭溪镇月湖中心小学 | C40: =(SUMIF(#REF!,A40,#REF!)+SUMIF(#REF!,A40,#REF!))*10000 ->  | D40: =(SUMIF(#REF!,A40,#REF!)+SUMIF(#REF!,A40,#REF!))*10000 ->  | E40: =SUMIF(INDIRECT("参考数据!$E:$E"),核对!A40,INDIRECT("参考数据!$C:$C")) -> 3508052.4 | G40: 17.教育支出（类）普通教育（款）小学教育（项）：指反映各部门举办的小学教育支出。政府各部门对社会组织等举办的小学的资助，如各类捐赠、补贴等，也在本科目反映。 18.教育支出（类）普通教育（款）其他普通教育支出（项）：指反映除上述项目以外其他用于普通教育方面的支出。 19.教育支出（类）教育费附加安排的支出（款）其他教育费附加安排的支出（项）：指反映除上述项目以外的教育费附加支出。 20.文化旅游体育与传媒支出（类）其他文化旅游体育与传媒支出（款）其他文化旅游体育与传媒支出（项）：指反映除上述项目以外其他用于文化旅游体育与传媒方面的支出。 21.社会保障和就业支出（类）人力资源和社会保障管理事务（款）其他人力资源和社会保障管理事务支出（项）：指反映除上述项目以外其他用于人力资源和社会保障管理事务方面的支出。 22.社会保障和就业支出（类）行政事业单位养老支出（款）事业单位离退休（项）：指反映事业单位开支的离退休经费。 23.社会保障和就业支出（类）行政事业单位养老支出（款）机关事业单位基本养老保险缴费支出（项）：指反映机关事业单位实施养老保险制度由单位缴纳的基本养老保险费支出。 24.社会保障和就业支出（类）行政事业单位养老支出（款）机关事业单位职业年金缴费支出（项）：指反映机关事业单位实施养老保险制度由单位实际缴纳的职业年金支出（含职业年金补记支出）。 25.卫生健康支出（类）行政事业单位医疗（款）事业单位医疗（项）：指反映财政部门安排的事业单位基本医疗保险缴费经费，未参加医疗保险的事业单位的公费医疗经费，按国家规定享受离休人员待遇的医疗经费。 26.卫生健康支出（类）行政事业单位医疗（款）公务员医疗补助（项）：指反映财政部门安排的公务员医疗补助经费。 27.住房保障支出（类）住房改革支出（款）住房公积金（项）：指反映行政事业单位按人力资源和社会保障部、财政部规定的基本工资和津贴补贴以及规定比例为职工缴纳的住房公积金。 28.其他支出（类）其他政府性基金及对应专项债务收人安排的支出（款）其他政府性基金安排的支出（项）：指反映其他政府性基金安排的支出(包括用以前年度欠款收人安排的支出)。
A41: 泰顺县彭溪镇中心小学 | C41: =(SUMIF(#REF!,A41,#REF!)+SUMIF(#REF!,A41,#REF!))*10000 ->  | D41: =(SUMIF(#REF!,A41,#REF!)+SUMIF(#REF!,A41,#REF!))*10000 ->  | E41: =SUMIF(INDIRECT("参考数据!$E:$E"),核对!A41,INDIRECT("参考数据!$C:$C")) -> 6585240.72 | G41: 17.教育支出（类）普通教育（款）小学教育（项）：指反映各部门举办的小学教育支出。政府各部门对社会组织等举办的小学的资助，如各类捐赠、补贴等，也在本科目反映。 18.教育支出（类）普通教育（款）其他普通教育支出（项）：指反映除上述项目以外其他用于普通教育方面的支出。 19.教育支出（类）教育费附加安排的支出（款）其他教育费附加安排的支出（项）：指反映除上述项目以外的教育费附加支出。 20.科学技术支出（类）其他科学技术支出（款）其他科学技术支出（项）：指反映其他科学技术支出中除以上各项外用于科技方面的支出。 21.文化旅游体育与传媒支出（类）其他文化旅游体育与传媒支出（款）其他文化旅游体育与传媒支出（项）：指反映除上述项目以外其他用于文化旅游体育与传媒方面的支出。 22.社会保障和就业支出（类）人力资源和社会保障管理事务（款）其他人力资源和社会保障管理事务支出（项）：指反映除上述项目以外其他用于人力资源和社会保障管理事务方面的支出。 23.社会保障和就业支出（类）行政事业单位养老支出（款）事业单位离退休（项）：指反映事业单位开支的离退休经费。 24.社会保障和就业支出（类）行政事业单位养老支出（款）机关事业单位基本养老保险缴费支出（项）：指反映机关事业单位实施养老保险制度由单位缴纳的基本养老保险费支出。 25.社会保障和就业支出（类）行政事业单位养老支出（款）机关事业单位职业年金缴费支出（项）：指反映机关事业单位实施养老保险制度由单位实际缴纳的职业年金支出（含职业年金补记支出）。 26.卫生健康支出（类）行政事业单位医疗（款）事业单位医疗（项）：指反映财政部门安排的事业单位基本医疗保险缴费经费，未参加医疗保险的事业单位的公费医疗经费，按国家规定享受离休人员待遇的医疗经费。 27.卫生健康支出（类）行政事业单位医疗（款）公务员医疗补助（项）：指反映财政部门安排的公务员医疗补助经费。 28.住房保障支出（类）住房改革支出（款）住房公积金（项）：指反映行政事业单位按人力资源和社会保障部、财政部规定的基本工资和津贴补贴以及规定比例为职工缴纳的住房公积金。 29.其他支出（类）其他政府性基金及对应专项债务收人安排的支出（款）其他政府性基金安排的支出（项）：指反映其他政府性基金安排的支出(包括用以前年度欠款收人安排的支出)。
A42: 泰顺县三魁镇第二小学 | C42: =(SUMIF(#REF!,A42,#REF!)+SUMIF(#REF!,A42,#REF!))*10000 ->  | D42: =(SUMIF(#REF!,A42,#REF!)+SUMIF(#REF!,A42,#REF!))*10000 ->  | E42: =SUMIF(INDIRECT("参考数据!$E:$E"),核对!A42,INDIRECT("参考数据!$C:$C")) -> 3721782.43 | G42: 17.教育支出（类）普通教育（款）小学教育（项）：指反映各部门举办的小学教育支出。政府各部门对社会组织等举办的小学的资助，如各类捐赠、补贴等，也在本科目反映。 18.教育支出（类）普通教育（款）其他普通教育支出（项）：指反映除上述项目以外其他用于普通教育方面的支出。 19.教育支出（类）教育费附加安排的支出（款）其他教育费附加安排的支出（项）：指反映除上述项目以外的教育费附加支出。 20.科学技术支出（类）其他科学技术支出（款）其他科学技术支出（项）：指反映其他科学技术支出中除以上各项外用于科技方面的支出。 21.文化旅游体育与传媒支出（类）其他文化旅游体育与传媒支出（款）其他文化旅游体育与传媒支出（项）：指反映除上述项目以外其他用于文化旅游体育与传媒方面的支出。 22.社会保障和就业支出（类）人力资源和社会保障管理事务（款）其他人力资源和社会保障管理事务支出（项）：指反映除上述项目以外其他用于人力资源和社会保障管理事务方面的支出。 23.社会保障和就业支出（类）行政事业单位养老支出（款）事业单位离退休（项）：指反映事业单位开支的离退休经费。 24.社会保障和就业支出（类）行政事业单位养老支出（款）机关事业单位基本养老保险缴费支出（项）：指反映机关事业单位实施养老保险制度由单位缴纳的基本养老保险费支出。 25.社会保障和就业支出（类）行政事业单位养老支出（款）机关事业单位职业年金缴费支出（项）：指反映机关事业单位实施养老保险制度由单位实际缴纳的职业年金支出（含职业年金补记支出）。 26.卫生健康支出（类）行政事业单位医疗（款）事业单位医疗（项）：指反映财政部门安排的事业单位基本医疗保险缴费经费，未参加医疗保险的事业单位的公费医疗经费，按国家规定享受离休人员待遇的医疗经费。 27.卫生健康支出（类）行政事业单位医疗（款）公务员医疗补助（项）：指反映财政部门安排的公务员医疗补助经费。 28.住房保障支出（类）住房改革支出（款）住房公积金（项）：指反映行政事业单位按人力资源和社会保障部、财政部规定的基本工资和津贴补贴以及规定比例为职工缴纳的住房公积金。 29.其他支出（类）其他政府性基金及对应专项债务收人安排的支出（款）其他政府性基金安排的支出（项）：指反映其他政府性基金安排的支出(包括用以前年度欠款收人安排的支出)。
A43: 泰顺县三魁镇第二幼儿园 | C43: =(SUMIF(#REF!,A43,#REF!)+SUMIF(#REF!,A43,#REF!))*10000 ->  | D43: =(SUMIF(#REF!,A43,#REF!)+SUMIF(#REF!,A43,#REF!))*10000 ->  | E43: =SUMIF(INDIRECT("参考数据!$E:$E"),核对!A43,INDIRECT("参考数据!$C:$C")) -> 1656293.28 | G43: 17.教育支出（类）普通教育（款）学前教育（项）：指反映各部门举办的学前教育支出。政府各部门对社会组织等举办的幼儿园的资助，如各类捐赠、补贴等，也在本科目反映。 18.教育支出（类）普通教育（款）其他普通教育支出（项）：指反映除上述项目以外其他用于普通教育方面的支出。 19.教育支出（类）教育费附加安排的支出（款）其他教育费附加安排的支出（项）：指反映除上述项目以外的教育费附加支出。 20.社会保障和就业支出（类）行政事业单位养老支出（款）机关事业单位基本养老保险缴费支出（项）：指反映机关事业单位实施养老保险制度由单位缴纳的基本养老保险费支出。 21.社会保障和就业支出（类）行政事业单位养老支出（款）机关事业单位职业年金缴费支出（项）：指反映机关事业单位实施养老保险制度由单位实际缴纳的职业年金支出（含职业年金补记支出）。 22.卫生健康支出（类）行政事业单位医疗（款）事业单位医疗（项）：指反映财政部门安排的事业单位基本医疗保险缴费经费，未参加医疗保险的事业单位的公费医疗经费，按国家规定享受离休人员待遇的医疗经费。 23.卫生健康支出（类）行政事业单位医疗（款）公务员医疗补助（项）：指反映财政部门安排的公务员医疗补助经费。 24.住房保障支出（类）住房改革支出（款）住房公积金（项）：指反映行政事业单位按人力资源和社会保障部、财政部规定的基本工资和津贴补贴以及规定比例为职工缴纳的住房公积金。 25.其他支出（类）其他政府性基金及对应专项债务收人安排的支出（款）其他政府性基金安排的支出（项）：指反映其他政府性基金安排的支出(包括用以前年度欠款收人安排的支出)。
A44: 泰顺县三魁镇幼儿园 | C44: =(SUMIF(#REF!,A44,#REF!)+SUMIF(#REF!,A44,#REF!))*10000 ->  | D44: =(SUMIF(#REF!,A44,#REF!)+SUMIF(#REF!,A44,#REF!))*10000 ->  | E44: =SUMIF(INDIRECT("参考数据!$E:$E"),核对!A44,INDIRECT("参考数据!$C:$C")) -> 4071130.47 | G44: 17.教育支出（类）普通教育（款）学前教育（项）：指反映各部门举办的学前教育支出。政府各部门对社会组织等举办的幼儿园的资助，如各类捐赠、补贴等，也在本科目反映。 18.教育支出（类）普通教育（款）其他普通教育支出（项）：指反映除上述项目以外其他用于普通教育方面的支出。 19.教育支出（类）教育费附加安排的支出（款）其他教育费附加安排的支出（项）：指反映除上述项目以外的教育费附加支出。 20.科学技术支出（类）其他科学技术支出（款）其他科学技术支出（项）：指反映其他科学技术支出中除以上各项外用于科技方面的支出。 21.社会保障和就业支出（类）行政事业单位养老支出（款）机关事业单位基本养老保险缴费支出（项）：指反映机关事业单位实施养老保险制度由单位缴纳的基本养老保险费支出。 22.社会保障和就业支出（类）行政事业单位养老支出（款）机关事业单位职业年金缴费支出（项）：指反映机关事业单位实施养老保险制度由单位实际缴纳的职业年金支出（含职业年金补记支出）。 23.卫生健康支出（类）行政事业单位医疗（款）事业单位医疗（项）：指反映财政部门安排的事业单位基本医疗保险缴费经费，未参加医疗保险的事业单位的公费医疗经费，按国家规定享受离休人员待遇的医疗经费。 24.卫生健康支出（类）行政事业单位医疗（款）公务员医疗补助（项）：指反映财政部门安排的公务员医疗补助经费。 25.住房保障支出（类）住房改革支出（款）住房公积金（项）：指反映行政事业单位按人力资源和社会保障部、财政部规定的基本工资和津贴补贴以及规定比例为职工缴纳的住房公积金。 26.其他支出（类）其他政府性基金及对应专项债务收人安排的支出（款）其他政府性基金安排的支出（项）：指反映其他政府性基金安排的支出(包括用以前年度欠款收人安排的支出)。
A45: 泰顺县三魁镇中心小学 | C45: =(SUMIF(#REF!,A45,#REF!)+SUMIF(#REF!,A45,#REF!))*10000 ->  | D45: =(SUMIF(#REF!,A45,#REF!)+SUMIF(#REF!,A45,#REF!))*10000 ->  | E45: =SUMIF(INDIRECT("参考数据!$E:$E"),核对!A45,INDIRECT("参考数据!$C:$C")) -> 18363177 | G45: 17.教育支出（类）普通教育（款）小学教育（项）：指反映各部门举办的小学教育支出。政府各部门对社会组织等举办的小学的资助，如各类捐赠、补贴等，也在本科目反映。 18.教育支出（类）普通教育（款）其他普通教育支出（项）：指反映除上述项目以外其他用于普通教育方面的支出。 19.教育支出（类）教育费附加安排的支出（款）其他教育费附加安排的支出（项）：指反映除上述项目以外的教育费附加支出。 20.科学技术支出（类）其他科学技术支出（款）其他科学技术支出（项）：指反映其他科学技术支出中除以上各项外用于科技方面的支出。 21.文化旅游体育与传媒支出（类）其他文化旅游体育与传媒支出（款）其他文化旅游体育与传媒支出（项）：指反映除上述项目以外其他用于文化旅游体育与传媒方面的支出。 22.社会保障和就业支出（类）人力资源和社会保障管理事务（款）其他人力资源和社会保障管理事务支出（项）：指反映除上述项目以外其他用于人力资源和社会保障管理事务方面的支出。 23.社会保障和就业支出（类）行政事业单位养老支出（款）事业单位离退休（项）：指反映事业单位开支的离退休经费。 24.社会保障和就业支出（类）行政事业单位养老支出（款）机关事业单位基本养老保险缴费支出（项）：指反映机关事业单位实施养老保险制度由单位缴纳的基本养老保险费支出。 25.社会保障和就业支出（类）行政事业单位养老支出（款）机关事业单位职业年金缴费支出（项）：指反映机关事业单位实施养老保险制度由单位实际缴纳的职业年金支出（含职业年金补记支出）。 26.卫生健康支出（类）行政事业单位医疗（款）事业单位医疗（项）：指反映财政部门安排的事业单位基本医疗保险缴费经费，未参加医疗保险的事业单位的公费医疗经费，按国家规定享受离休人员待遇的医疗经费。 27.卫生健康支出（类）行政事业单位医疗（款）公务员医疗补助（项）：指反映财政部门安排的公务员医疗补助经费。 28.住房保障支出（类）住房改革支出（款）住房公积金（项）：指反映行政事业单位按人力资源和社会保障部、财政部规定的基本工资和津贴补贴以及规定比例为职工缴纳的住房公积金。 29.其他支出（类）其他政府性基金及对应专项债务收人安排的支出（款）其他政府性基金安排的支出（项）：指反映其他政府性基金安排的支出(包括用以前年度欠款收人安排的支出)。
A46: 泰顺县实验小学 | C46: =(SUMIF(#REF!,A46,#REF!)+SUMIF(#REF!,A46,#REF!))*10000 ->  | D46: =(SUMIF(#REF!,A46,#REF!)+SUMIF(#REF!,A46,#REF!))*10000 ->  | E46: =SUMIF(INDIRECT("参考数据!$E:$E"),核对!A46,INDIRECT("参考数据!$C:$C")) -> 13752200.06 | G46: 17.教育支出（类）普通教育（款）小学教育（项）：指反映各部门举办的小学教育支出。政府各部门对社会组织等举办的小学的资助，如各类捐赠、补贴等，也在本科目反映。 18.教育支出（类）普通教育（款）其他普通教育支出（项）：指反映除上述项目以外其他用于普通教育方面的支出。 19.教育支出（类）教育费附加安排的支出（款）其他教育费附加安排的支出（项）：指反映除上述项目以外的教育费附加支出。 20.科学技术支出（类）其他科学技术支出（款）其他科学技术支出（项）：指反映其他科学技术支出中除以上各项外用于科技方面的支出。 21.社会保障和就业支出（类）人力资源和社会保障管理事务（款）其他人力资源和社会保障管理事务支出（项）：指反映除上述项目以外其他用于人力资源和社会保障管理事务方面的支出。 22.社会保障和就业支出（类）行政事业单位养老支出（款）事业单位离退休（项）：指反映事业单位开支的离退休经费。 23.社会保障和就业支出（类）行政事业单位养老支出（款）机关事业单位基本养老保险缴费支出（项）：指反映机关事业单位实施养老保险制度由单位缴纳的基本养老保险费支出。 24.社会保障和就业支出（类）行政事业单位养老支出（款）机关事业单位职业年金缴费支出（项）：指反映机关事业单位实施养老保险制度由单位实际缴纳的职业年金支出（含职业年金补记支出）。 25.卫生健康支出（类）行政事业单位医疗（款）事业单位医疗（项）：指反映财政部门安排的事业单位基本医疗保险缴费经费，未参加医疗保险的事业单位的公费医疗经费，按国家规定享受离休人员待遇的医疗经费。 26.卫生健康支出（类）行政事业单位医疗（款）公务员医疗补助（项）：指反映财政部门安排的公务员医疗补助经费。 27.住房保障支出（类）住房改革支出（款）住房公积金（项）：指反映行政事业单位按人力资源和社会保障部、财政部规定的基本工资和津贴补贴以及规定比例为职工缴纳的住房公积金。 28.其他支出（类）其他政府性基金及对应专项债务收人安排的支出（款）其他政府性基金安排的支出（项）：指反映其他政府性基金安排的支出(包括用以前年度欠款收人安排的支出)。
A47: 泰顺县实验幼儿园 | C47: =(SUMIF(#REF!,A47,#REF!)+SUMIF(#REF!,A47,#REF!))*10000 ->  | D47: =(SUMIF(#REF!,A47,#REF!)+SUMIF(#REF!,A47,#REF!))*10000 ->  | E47: =SUMIF(INDIRECT("参考数据!$E:$E"),核对!A47,INDIRECT("参考数据!$C:$C")) -> 4246938 | G47: 17.教育支出（类）普通教育（款）学前教育（项）：指反映各部门举办的学前教育支出。政府各部门对社会组织等举办的幼儿园的资助，如各类捐赠、补贴等，也在本科目反映。 18.教育支出（类）普通教育（款）其他普通教育支出（项）：指反映除上述项目以外其他用于普通教育方面的支出。 19.教育支出（类）教育费附加安排的支出（款）其他教育费附加安排的支出（项）：指反映除上述项目以外的教育费附加支出。 20.科学技术支出（类）其他科学技术支出（款）其他科学技术支出（项）：指反映其他科学技术支出中除以上各项外用于科技方面的支出。 21.社会保障和就业支出（类）行政事业单位养老支出（款）机关事业单位基本养老保险缴费支出（项）：指反映机关事业单位实施养老保险制度由单位缴纳的基本养老保险费支出。 22.社会保障和就业支出（类）行政事业单位养老支出（款）机关事业单位职业年金缴费支出（项）：指反映机关事业单位实施养老保险制度由单位实际缴纳的职业年金支出（含职业年金补记支出）。 23.卫生健康支出（类）行政事业单位医疗（款）事业单位医疗（项）：指反映财政部门安排的事业单位基本医疗保险缴费经费，未参加医疗保险的事业单位的公费医疗经费，按国家规定享受离休人员待遇的医疗经费。 24.卫生健康支出（类）行政事业单位医疗（款）公务员医疗补助（项）：指反映财政部门安排的公务员医疗补助经费。 25.住房保障支出（类）住房改革支出（款）住房公积金（项）：指反映行政事业单位按人力资源和社会保障部、财政部规定的基本工资和津贴补贴以及规定比例为职工缴纳的住房公积金。 26.其他支出（类）其他政府性基金及对应专项债务收人安排的支出（款）其他政府性基金安排的支出（项）：指反映其他政府性基金安排的支出(包括用以前年度欠款收人安排的支出)。
A48: 泰顺县实验中学 | C48: =(SUMIF(#REF!,A48,#REF!)+SUMIF(#REF!,A48,#REF!))*10000 ->  | D48: =(SUMIF(#REF!,A48,#REF!)+SUMIF(#REF!,A48,#REF!))*10000 ->  | E48: =SUMIF(INDIRECT("参考数据!$E:$E"),核对!A48,INDIRECT("参考数据!$C:$C")) -> 35819382.82 | G48: 17.教育支出（类）普通教育（款）初中教育（项）：指反映各部门举办的初中教育支出。政府各部门对社会组织等举办的初中的资助，如捐赠、补贴等，也在本科目中反映。 18.教育支出（类）普通教育（款）其他普通教育支出（项）：指反映除上述项目以外其他用于普通教育方面的支出。 19.教育支出（类）教育费附加安排的支出（款）其他教育费附加安排的支出（项）：指反映除上述项目以外的教育费附加支出。 20.科学技术支出（类）其他科学技术支出（款）其他科学技术支出（项）：指反映其他科学技术支出中除以上各项外用于科技方面的支出。 21.社会保障和就业支出（类）人力资源和社会保障管理事务（款）其他人力资源和社会保障管理事务支出（项）：指反映除上述项目以外其他用于人力资源和社会保障管理事务方面的支出。 22.社会保障和就业支出（类）行政事业单位养老支出（款）事业单位离退休（项）：指反映事业单位开支的离退休经费。 23.社会保障和就业支出（类）行政事业单位养老支出（款）机关事业单位基本养老保险缴费支出（项）：指反映机关事业单位实施养老保险制度由单位缴纳的基本养老保险费支出。 24.社会保障和就业支出（类）行政事业单位养老支出（款）机关事业单位职业年金缴费支出（项）：指反映机关事业单位实施养老保险制度由单位实际缴纳的职业年金支出（含职业年金补记支出）。 25.卫生健康支出（类）行政事业单位医疗（款）事业单位医疗（项）：指反映财政部门安排的事业单位基本医疗保险缴费经费，未参加医疗保险的事业单位的公费医疗经费，按国家规定享受离休人员待遇的医疗经费。 26.卫生健康支出（类）行政事业单位医疗（款）公务员医疗补助（项）：指反映财政部门安排的公务员医疗补助经费。 27.住房保障支出（类）住房改革支出（款）住房公积金（项）：指反映行政事业单位按人力资源和社会保障部、财政部规定的基本工资和津贴补贴以及规定比例为职工缴纳的住房公积金。 28.其他支出（类）其他政府性基金及对应专项债务收人安排的支出（款）其他政府性基金安排的支出（项）：指反映其他政府性基金安排的支出(包括用以前年度欠款收人安排的支出)。
A49: 泰顺县仕阳镇第二小学 | C49: =(SUMIF(#REF!,A49,#REF!)+SUMIF(#REF!,A49,#REF!))*10000 ->  | D49: =(SUMIF(#REF!,A49,#REF!)+SUMIF(#REF!,A49,#REF!))*10000 ->  | E49: =SUMIF(INDIRECT("参考数据!$E:$E"),核对!A49,INDIRECT("参考数据!$C:$C")) -> 3990089.64 | G49: 17.教育支出（类）普通教育（款）小学教育（项）：指反映各部门举办的小学教育支出。政府各部门对社会组织等举办的小学的资助，如各类捐赠、补贴等，也在本科目反映。 18.教育支出（类）普通教育（款）其他普通教育支出（项）：指反映除上述项目以外其他用于普通教育方面的支出。 19.教育支出（类）教育费附加安排的支出（款）其他教育费附加安排的支出（项）：指反映除上述项目以外的教育费附加支出。 20.科学技术支出（类）其他科学技术支出（款）其他科学技术支出（项）：指反映其他科学技术支出中除以上各项外用于科技方面的支出。 21.文化旅游体育与传媒支出（类）其他文化旅游体育与传媒支出（款）其他文化旅游体育与传媒支出（项）：指反映除上述项目以外其他用于文化旅游体育与传媒方面的支出。 22.社会保障和就业支出（类）人力资源和社会保障管理事务（款）其他人力资源和社会保障管理事务支出（项）：指反映除上述项目以外其他用于人力资源和社会保障管理事务方面的支出。 23.社会保障和就业支出（类）行政事业单位养老支出（款）事业单位离退休（项）：指反映事业单位开支的离退休经费。 24.社会保障和就业支出（类）行政事业单位养老支出（款）机关事业单位基本养老保险缴费支出（项）：指反映机关事业单位实施养老保险制度由单位缴纳的基本养老保险费支出。 25.社会保障和就业支出（类）行政事业单位养老支出（款）机关事业单位职业年金缴费支出（项）：指反映机关事业单位实施养老保险制度由单位实际缴纳的职业年金支出（含职业年金补记支出）。 26.卫生健康支出（类）行政事业单位医疗（款）事业单位医疗（项）：指反映财政部门安排的事业单位基本医疗保险缴费经费，未参加医疗保险的事业单位的公费医疗经费，按国家规定享受离休人员待遇的医疗经费。 27.卫生健康支出（类）行政事业单位医疗（款）公务员医疗补助（项）：指反映财政部门安排的公务员医疗补助经费。 28.住房保障支出（类）住房改革支出（款）住房公积金（项）：指反映行政事业单位按人力资源和社会保障部、财政部规定的基本工资和津贴补贴以及规定比例为职工缴纳的住房公积金。 29.其他支出（类）其他政府性基金及对应专项债务收人安排的支出（款）其他政府性基金安排的支出（项）：指反映其他政府性基金安排的支出(包括用以前年度欠款收人安排的支出)。
A50: 泰顺县仕阳镇万排中心小学 | C50: =(SUMIF(#REF!,A50,#REF!)+SUMIF(#REF!,A50,#REF!))*10000 ->  | D50: =(SUMIF(#REF!,A50,#REF!)+SUMIF(#REF!,A50,#REF!))*10000 ->  | E50: =SUMIF(INDIRECT("参考数据!$E:$E"),核对!A50,INDIRECT("参考数据!$C:$C")) -> 1275515.14 | G50: 17.教育支出（类）普通教育（款）小学教育（项）：指反映各部门举办的小学教育支出。政府各部门对社会组织等举办的小学的资助，如各类捐赠、补贴等，也在本科目反映。 18.教育支出（类）普通教育（款）其他普通教育支出（项）：指反映除上述项目以外其他用于普通教育方面的支出。 19.教育支出（类）教育费附加安排的支出（款）其他教育费附加安排的支出（项）：指反映除上述项目以外的教育费附加支出。 20.社会保障和就业支出（类）人力资源和社会保障管理事务（款）其他人力资源和社会保障管理事务支出（项）：指反映除上述项目以外其他用于人力资源和社会保障管理事务方面的支出。 21.社会保障和就业支出（类）行政事业单位养老支出（款）事业单位离退休（项）：指反映事业单位开支的离退休经费。 22.社会保障和就业支出（类）行政事业单位养老支出（款）机关事业单位基本养老保险缴费支出（项）：指反映机关事业单位实施养老保险制度由单位缴纳的基本养老保险费支出。 23.社会保障和就业支出（类）行政事业单位养老支出（款）机关事业单位职业年金缴费支出（项）：指反映机关事业单位实施养老保险制度由单位实际缴纳的职业年金支出（含职业年金补记支出）。 24.卫生健康支出（类）行政事业单位医疗（款）事业单位医疗（项）：指反映财政部门安排的事业单位基本医疗保险缴费经费，未参加医疗保险的事业单位的公费医疗经费，按国家规定享受离休人员待遇的医疗经费。 25.卫生健康支出（类）行政事业单位医疗（款）公务员医疗补助（项）：指反映财政部门安排的公务员医疗补助经费。 26.住房保障支出（类）住房改革支出（款）住房公积金（项）：指反映行政事业单位按人力资源和社会保障部、财政部规定的基本工资和津贴补贴以及规定比例为职工缴纳的住房公积金。 27.其他支出（类）其他政府性基金及对应专项债务收人安排的支出（款）其他政府性基金安排的支出（项）：指反映其他政府性基金安排的支出(包括用以前年度欠款收人安排的支出)。
A51: 泰顺县仕阳镇幼儿园 | C51: =(SUMIF(#REF!,A51,#REF!)+SUMIF(#REF!,A51,#REF!))*10000 ->  | D51: =(SUMIF(#REF!,A51,#REF!)+SUMIF(#REF!,A51,#REF!))*10000 ->  | E51: =SUMIF(INDIRECT("参考数据!$E:$E"),核对!A51,INDIRECT("参考数据!$C:$C")) -> 2203718.64 | G51: 17.教育支出（类）普通教育（款）学前教育（项）：指反映各部门举办的学前教育支出。政府各部门对社会组织等举办的幼儿园的资助，如各类捐赠、补贴等，也在本科目反映。 18.教育支出（类）普通教育（款）其他普通教育支出（项）：指反映除上述项目以外其他用于普通教育方面的支出。 19.教育支出（类）教育费附加安排的支出（款）其他教育费附加安排的支出（项）：指反映除上述项目以外的教育费附加支出。 20.科学技术支出（类）其他科学技术支出（款）其他科学技术支出（项）：指反映其他科学技术支出中除以上各项外用于科技方面的支出。 21.社会保障和就业支出（类）行政事业单位养老支出（款）机关事业单位基本养老保险缴费支出（项）：指反映机关事业单位实施养老保险制度由单位缴纳的基本养老保险费支出。 22.社会保障和就业支出（类）行政事业单位养老支出（款）机关事业单位职业年金缴费支出（项）：指反映机关事业单位实施养老保险制度由单位实际缴纳的职业年金支出（含职业年金补记支出）。 23.卫生健康支出（类）行政事业单位医疗（款）事业单位医疗（项）：指反映财政部门安排的事业单位基本医疗保险缴费经费，未参加医疗保险的事业单位的公费医疗经费，按国家规定享受离休人员待遇的医疗经费。 24.卫生健康支出（类）行政事业单位医疗（款）公务员医疗补助（项）：指反映财政部门安排的公务员医疗补助经费。 25.住房保障支出（类）住房改革支出（款）住房公积金（项）：指反映行政事业单位按人力资源和社会保障部、财政部规定的基本工资和津贴补贴以及规定比例为职工缴纳的住房公积金。 26.其他支出（类）其他政府性基金及对应专项债务收人安排的支出（款）其他政府性基金安排的支出（项）：指反映其他政府性基金安排的支出(包括用以前年度欠款收人安排的支出)。
A52: 泰顺县仕阳镇中心小学 | C52: =(SUMIF(#REF!,A52,#REF!)+SUMIF(#REF!,A52,#REF!))*10000 ->  | D52: =(SUMIF(#REF!,A52,#REF!)+SUMIF(#REF!,A52,#REF!))*10000 ->  | E52: =SUMIF(INDIRECT("参考数据!$E:$E"),核对!A52,INDIRECT("参考数据!$C:$C")) -> 11971089.93 | G52: 17.教育支出（类）普通教育（款）小学教育（项）：指反映各部门举办的小学教育支出。政府各部门对社会组织等举办的小学的资助，如各类捐赠、补贴等，也在本科目反映。 18.教育支出（类）普通教育（款）其他普通教育支出（项）：指反映除上述项目以外其他用于普通教育方面的支出。 19.教育支出（类）教育费附加安排的支出（款）其他教育费附加安排的支出（项）：指反映除上述项目以外的教育费附加支出。 20.科学技术支出（类）其他科学技术支出（款）其他科学技术支出（项）：指反映其他科学技术支出中除以上各项外用于科技方面的支出。 21.文化旅游体育与传媒支出（类）其他文化旅游体育与传媒支出（款）其他文化旅游体育与传媒支出（项）：指反映除上述项目以外其他用于文化旅游体育与传媒方面的支出。 22.社会保障和就业支出（类）人力资源和社会保障管理事务（款）其他人力资源和社会保障管理事务支出（项）：指反映除上述项目以外其他用于人力资源和社会保障管理事务方面的支出。 23.社会保障和就业支出（类）行政事业单位养老支出（款）事业单位离退休（项）：指反映事业单位开支的离退休经费。 24.社会保障和就业支出（类）行政事业单位养老支出（款）机关事业单位基本养老保险缴费支出（项）：指反映机关事业单位实施养老保险制度由单位缴纳的基本养老保险费支出。 25.社会保障和就业支出（类）行政事业单位养老支出（款）机关事业单位职业年金缴费支出（项）：指反映机关事业单位实施养老保险制度由单位实际缴纳的职业年金支出（含职业年金补记支出）。 26.卫生健康支出（类）行政事业单位医疗（款）事业单位医疗（项）：指反映财政部门安排的事业单位基本医疗保险缴费经费，未参加医疗保险的事业单位的公费医疗经费，按国家规定享受离休人员待遇的医疗经费。 27.卫生健康支出（类）行政事业单位医疗（款）公务员医疗补助（项）：指反映财政部门安排的公务员医疗补助经费。 28.住房保障支出（类）住房改革支出（款）住房公积金（项）：指反映行政事业单位按人力资源和社会保障部、财政部规定的基本工资和津贴补贴以及规定比例为职工缴纳的住房公积金。 29.其他支出（类）其他政府性基金及对应专项债务收人安排的支出（款）其他政府性基金安排的支出（项）：指反映其他政府性基金安排的支出(包括用以前年度欠款收人安排的支出)。
A53: 泰顺县司前畲族镇第二幼儿园 | C53: =(SUMIF(#REF!,A53,#REF!)+SUMIF(#REF!,A53,#REF!))*10000 ->  | D53: =(SUMIF(#REF!,A53,#REF!)+SUMIF(#REF!,A53,#REF!))*10000 ->  | E53: =SUMIF(INDIRECT("参考数据!$E:$E"),核对!A53,INDIRECT("参考数据!$C:$C")) -> 2376418.85 | G53: 17.教育支出（类）普通教育（款）学前教育（项）：指反映各部门举办的学前教育支出。政府各部门对社会组织等举办的幼儿园的资助，如各类捐赠、补贴等，也在本科目反映。 18.教育支出（类）普通教育（款）其他普通教育支出（项）：指反映除上述项目以外其他用于普通教育方面的支出。 19.教育支出（类）教育费附加安排的支出（款）其他教育费附加安排的支出（项）：指反映除上述项目以外的教育费附加支出。 20.科学技术支出（类）其他科学技术支出（款）其他科学技术支出（项）：指反映其他科学技术支出中除以上各项外用于科技方面的支出。 21.社会保障和就业支出（类）行政事业单位养老支出（款）机关事业单位基本养老保险缴费支出（项）：指反映机关事业单位实施养老保险制度由单位缴纳的基本养老保险费支出。 22.社会保障和就业支出（类）行政事业单位养老支出（款）机关事业单位职业年金缴费支出（项）：指反映机关事业单位实施养老保险制度由单位实际缴纳的职业年金支出（含职业年金补记支出）。 23.卫生健康支出（类）行政事业单位医疗（款）事业单位医疗（项）：指反映财政部门安排的事业单位基本医疗保险缴费经费，未参加医疗保险的事业单位的公费医疗经费，按国家规定享受离休人员待遇的医疗经费。 24.卫生健康支出（类）行政事业单位医疗（款）公务员医疗补助（项）：指反映财政部门安排的公务员医疗补助经费。 25.住房保障支出（类）住房改革支出（款）住房公积金（项）：指反映行政事业单位按人力资源和社会保障部、财政部规定的基本工资和津贴补贴以及规定比例为职工缴纳的住房公积金。 26.其他支出（类）其他政府性基金及对应专项债务收人安排的支出（款）其他政府性基金安排的支出（项）：指反映其他政府性基金安排的支出(包括用以前年度欠款收人安排的支出)。
A54: 泰顺县司前畲族镇幼儿园 | C54: =(SUMIF(#REF!,A54,#REF!)+SUMIF(#REF!,A54,#REF!))*10000 ->  | D54: =(SUMIF(#REF!,A54,#REF!)+SUMIF(#REF!,A54,#REF!))*10000 ->  | E54: =SUMIF(INDIRECT("参考数据!$E:$E"),核对!A54,INDIRECT("参考数据!$C:$C")) -> 3502160.13 | G54: 17.教育支出（类）普通教育（款）学前教育（项）：指反映各部门举办的学前教育支出。政府各部门对社会组织等举办的幼儿园的资助，如各类捐赠、补贴等，也在本科目反映。 18.教育支出（类）普通教育（款）其他普通教育支出（项）：指反映除上述项目以外其他用于普通教育方面的支出。 19.教育支出（类）教育费附加安排的支出（款）其他教育费附加安排的支出（项）：指反映除上述项目以外的教育费附加支出。 20.科学技术支出（类）其他科学技术支出（款）其他科学技术支出（项）：指反映其他科学技术支出中除以上各项外用于科技方面的支出。 21.社会保障和就业支出（类）行政事业单位养老支出（款）机关事业单位基本养老保险缴费支出（项）：指反映机关事业单位实施养老保险制度由单位缴纳的基本养老保险费支出。 22.社会保障和就业支出（类）行政事业单位养老支出（款）机关事业单位职业年金缴费支出（项）：指反映机关事业单位实施养老保险制度由单位实际缴纳的职业年金支出（含职业年金补记支出）。 23.卫生健康支出（类）行政事业单位医疗（款）事业单位医疗（项）：指反映财政部门安排的事业单位基本医疗保险缴费经费，未参加医疗保险的事业单位的公费医疗经费，按国家规定享受离休人员待遇的医疗经费。 24.卫生健康支出（类）行政事业单位医疗（款）公务员医疗补助（项）：指反映财政部门安排的公务员医疗补助经费。 25.住房保障支出（类）住房改革支出（款）住房公积金（项）：指反映行政事业单位按人力资源和社会保障部、财政部规定的基本工资和津贴补贴以及规定比例为职工缴纳的住房公积金。 26.其他支出（类）其他政府性基金及对应专项债务收人安排的支出（款）其他政府性基金安排的支出（项）：指反映其他政府性基金安排的支出(包括用以前年度欠款收人安排的支出)。
A55: 泰顺县司前畲族镇中心小学 | C55: =(SUMIF(#REF!,A55,#REF!)+SUMIF(#REF!,A55,#REF!))*10000 ->  | D55: =(SUMIF(#REF!,A55,#REF!)+SUMIF(#REF!,A55,#REF!))*10000 ->  | E55: =SUMIF(INDIRECT("参考数据!$E:$E"),核对!A55,INDIRECT("参考数据!$C:$C")) -> 17160437 | G55: 17.教育支出（类）普通教育（款）小学教育（项）：指反映各部门举办的小学教育支出。政府各部门对社会组织等举办的小学的资助，如各类捐赠、补贴等，也在本科目反映。 18.教育支出（类）普通教育（款）其他普通教育支出（项）：指反映除上述项目以外其他用于普通教育方面的支出。 19.教育支出（类）教育费附加安排的支出（款）其他教育费附加安排的支出（项）：指反映除上述项目以外的教育费附加支出。 20.科学技术支出（类）其他科学技术支出（款）其他科学技术支出（项）：指反映其他科学技术支出中除以上各项外用于科技方面的支出。 21.文化旅游体育与传媒支出（类）其他文化旅游体育与传媒支出（款）其他文化旅游体育与传媒支出（项）：指反映除上述项目以外其他用于文化旅游体育与传媒方面的支出。 22.社会保障和就业支出（类）人力资源和社会保障管理事务（款）其他人力资源和社会保障管理事务支出（项）：指反映除上述项目以外其他用于人力资源和社会保障管理事务方面的支出。 23.社会保障和就业支出（类）行政事业单位养老支出（款）事业单位离退休（项）：指反映事业单位开支的离退休经费。 24.社会保障和就业支出（类）行政事业单位养老支出（款）机关事业单位基本养老保险缴费支出（项）：指反映机关事业单位实施养老保险制度由单位缴纳的基本养老保险费支出。 25.社会保障和就业支出（类）行政事业单位养老支出（款）机关事业单位职业年金缴费支出（项）：指反映机关事业单位实施养老保险制度由单位实际缴纳的职业年金支出（含职业年金补记支出）。 26.卫生健康支出（类）行政事业单位医疗（款）事业单位医疗（项）：指反映财政部门安排的事业单位基本医疗保险缴费经费，未参加医疗保险的事业单位的公费医疗经费，按国家规定享受离休人员待遇的医疗经费。 27.卫生健康支出（类）行政事业单位医疗（款）公务员医疗补助（项）：指反映财政部门安排的公务员医疗补助经费。 28.住房保障支出（类）住房改革支出（款）住房公积金（项）：指反映行政事业单位按人力资源和社会保障部、财政部规定的基本工资和津贴补贴以及规定比例为职工缴纳的住房公积金。 29.其他支出（类）其他政府性基金及对应专项债务收人安排的支出（款）其他政府性基金安排的支出（项）：指反映其他政府性基金安排的支出(包括用以前年度欠款收人安排的支出)。
A56: 泰顺县泗溪镇第二小学 | C56: =(SUMIF(#REF!,A56,#REF!)+SUMIF(#REF!,A56,#REF!))*10000 ->  | D56: =(SUMIF(#REF!,A56,#REF!)+SUMIF(#REF!,A56,#REF!))*10000 ->  | E56: =SUMIF(INDIRECT("参考数据!$E:$E"),核对!A56,INDIRECT("参考数据!$C:$C")) -> 4627560 | G56: 17.教育支出（类）普通教育（款）小学教育（项）：指反映各部门举办的小学教育支出。政府各部门对社会组织等举办的小学的资助，如各类捐赠、补贴等，也在本科目反映。 18.教育支出（类）普通教育（款）其他普通教育支出（项）：指反映除上述项目以外其他用于普通教育方面的支出。 19.教育支出（类）教育费附加安排的支出（款）其他教育费附加安排的支出（项）：指反映除上述项目以外的教育费附加支出。 20.科学技术支出（类）其他科学技术支出（款）其他科学技术支出（项）：指反映其他科学技术支出中除以上各项外用于科技方面的支出。 21.社会保障和就业支出（类）人力资源和社会保障管理事务（款）其他人力资源和社会保障管理事务支出（项）：指反映除上述项目以外其他用于人力资源和社会保障管理事务方面的支出。 22.社会保障和就业支出（类）行政事业单位养老支出（款）事业单位离退休（项）：指反映事业单位开支的离退休经费。 23.社会保障和就业支出（类）行政事业单位养老支出（款）机关事业单位基本养老保险缴费支出（项）：指反映机关事业单位实施养老保险制度由单位缴纳的基本养老保险费支出。 24.社会保障和就业支出（类）行政事业单位养老支出（款）机关事业单位职业年金缴费支出（项）：指反映机关事业单位实施养老保险制度由单位实际缴纳的职业年金支出（含职业年金补记支出）。 25.卫生健康支出（类）行政事业单位医疗（款）事业单位医疗（项）：指反映财政部门安排的事业单位基本医疗保险缴费经费，未参加医疗保险的事业单位的公费医疗经费，按国家规定享受离休人员待遇的医疗经费。 26.卫生健康支出（类）行政事业单位医疗（款）公务员医疗补助（项）：指反映财政部门安排的公务员医疗补助经费。 27.住房保障支出（类）住房改革支出（款）住房公积金（项）：指反映行政事业单位按人力资源和社会保障部、财政部规定的基本工资和津贴补贴以及规定比例为职工缴纳的住房公积金。 28.其他支出（类）其他政府性基金及对应专项债务收人安排的支出（款）其他政府性基金安排的支出（项）：指反映其他政府性基金安排的支出(包括用以前年度欠款收人安排的支出)。 29.其他支出（类）彩票公益金安排的支出（款）用于体育事业的彩票公益金支出（项）：指反映用于体育事业的彩票公益金支出。
A57: 泰顺县泗溪镇第二幼儿园 | C57: =(SUMIF(#REF!,A57,#REF!)+SUMIF(#REF!,A57,#REF!))*10000 ->  | D57: =(SUMIF(#REF!,A57,#REF!)+SUMIF(#REF!,A57,#REF!))*10000 ->  | E57: =SUMIF(INDIRECT("参考数据!$E:$E"),核对!A57,INDIRECT("参考数据!$C:$C")) -> 888767.19 | G57: 17.教育支出（类）普通教育（款）学前教育（项）：指反映各部门举办的学前教育支出。政府各部门对社会组织等举办的幼儿园的资助，如各类捐赠、补贴等，也在本科目反映。 18.教育支出（类）普通教育（款）其他普通教育支出（项）：指反映除上述项目以外其他用于普通教育方面的支出。 19.教育支出（类）教育费附加安排的支出（款）其他教育费附加安排的支出（项）：指反映除上述项目以外的教育费附加支出。 20.社会保障和就业支出（类）行政事业单位养老支出（款）机关事业单位基本养老保险缴费支出（项）：指反映机关事业单位实施养老保险制度由单位缴纳的基本养老保险费支出。 21.社会保障和就业支出（类）行政事业单位养老支出（款）机关事业单位职业年金缴费支出（项）：指反映机关事业单位实施养老保险制度由单位实际缴纳的职业年金支出（含职业年金补记支出）。 22.卫生健康支出（类）行政事业单位医疗（款）事业单位医疗（项）：指反映财政部门安排的事业单位基本医疗保险缴费经费，未参加医疗保险的事业单位的公费医疗经费，按国家规定享受离休人员待遇的医疗经费。 23.卫生健康支出（类）行政事业单位医疗（款）公务员医疗补助（项）：指反映财政部门安排的公务员医疗补助经费。 24.住房保障支出（类）住房改革支出（款）住房公积金（项）：指反映行政事业单位按人力资源和社会保障部、财政部规定的基本工资和津贴补贴以及规定比例为职工缴纳的住房公积金。 25.其他支出（类）其他政府性基金及对应专项债务收人安排的支出（款）其他政府性基金安排的支出（项）：指反映其他政府性基金安排的支出(包括用以前年度欠款收人安排的支出)。
A58: 泰顺县泗溪镇横坑中心小学 | C58: =(SUMIF(#REF!,A58,#REF!)+SUMIF(#REF!,A58,#REF!))*10000 ->  | D58: =(SUMIF(#REF!,A58,#REF!)+SUMIF(#REF!,A58,#REF!))*10000 ->  | E58: =SUMIF(INDIRECT("参考数据!$E:$E"),核对!A58,INDIRECT("参考数据!$C:$C")) -> 2616978.01 | G58: 17.教育支出（类）普通教育（款）小学教育（项）：指反映各部门举办的小学教育支出。政府各部门对社会组织等举办的小学的资助，如各类捐赠、补贴等，也在本科目反映。 18.教育支出（类）普通教育（款）其他普通教育支出（项）：指反映除上述项目以外其他用于普通教育方面的支出。 19.教育支出（类）教育费附加安排的支出（款）其他教育费附加安排的支出（项）：指反映除上述项目以外的教育费附加支出。 20.文化旅游体育与传媒支出（类）其他文化旅游体育与传媒支出（款）其他文化旅游体育与传媒支出（项）：指反映除上述项目以外其他用于文化旅游体育与传媒方面的支出。 21.社会保障和就业支出（类）人力资源和社会保障管理事务（款）其他人力资源和社会保障管理事务支出（项）：指反映除上述项目以外其他用于人力资源和社会保障管理事务方面的支出。 22.社会保障和就业支出（类）行政事业单位养老支出（款）事业单位离退休（项）：指反映事业单位开支的离退休经费。 23.社会保障和就业支出（类）行政事业单位养老支出（款）机关事业单位基本养老保险缴费支出（项）：指反映机关事业单位实施养老保险制度由单位缴纳的基本养老保险费支出。 24.社会保障和就业支出（类）行政事业单位养老支出（款）机关事业单位职业年金缴费支出（项）：指反映机关事业单位实施养老保险制度由单位实际缴纳的职业年金支出（含职业年金补记支出）。 25.卫生健康支出（类）行政事业单位医疗（款）事业单位医疗（项）：指反映财政部门安排的事业单位基本医疗保险缴费经费，未参加医疗保险的事业单位的公费医疗经费，按国家规定享受离休人员待遇的医疗经费。 26.卫生健康支出（类）行政事业单位医疗（款）公务员医疗补助（项）：指反映财政部门安排的公务员医疗补助经费。 27.住房保障支出（类）住房改革支出（款）住房公积金（项）：指反映行政事业单位按人力资源和社会保障部、财政部规定的基本工资和津贴补贴以及规定比例为职工缴纳的住房公积金。 28.其他支出（类）其他政府性基金及对应专项债务收人安排的支出（款）其他政府性基金安排的支出（项）：指反映其他政府性基金安排的支出(包括用以前年度欠款收人安排的支出)。
A59: 泰顺县泗溪镇九峰中心小学 | C59: =(SUMIF(#REF!,A59,#REF!)+SUMIF(#REF!,A59,#REF!))*10000 ->  | D59: =(SUMIF(#REF!,A59,#REF!)+SUMIF(#REF!,A59,#REF!))*10000 ->  | E59: =SUMIF(INDIRECT("参考数据!$E:$E"),核对!A59,INDIRECT("参考数据!$C:$C")) -> 2733528.37 | G59: 17.教育支出（类）普通教育（款）小学教育（项）：指反映各部门举办的小学教育支出。政府各部门对社会组织等举办的小学的资助，如各类捐赠、补贴等，也在本科目反映。 18.教育支出（类）普通教育（款）其他普通教育支出（项）：指反映除上述项目以外其他用于普通教育方面的支出。 19.教育支出（类）教育费附加安排的支出（款）其他教育费附加安排的支出（项）：指反映除上述项目以外的教育费附加支出。 20.文化旅游体育与传媒支出（类）其他文化旅游体育与传媒支出（款）其他文化旅游体育与传媒支出（项）：指反映除上述项目以外其他用于文化旅游体育与传媒方面的支出。 21.社会保障和就业支出（类）人力资源和社会保障管理事务（款）其他人力资源和社会保障管理事务支出（项）：指反映除上述项目以外其他用于人力资源和社会保障管理事务方面的支出。 22.社会保障和就业支出（类）行政事业单位养老支出（款）事业单位离退休（项）：指反映事业单位开支的离退休经费。 23.社会保障和就业支出（类）行政事业单位养老支出（款）机关事业单位基本养老保险缴费支出（项）：指反映机关事业单位实施养老保险制度由单位缴纳的基本养老保险费支出。 24.社会保障和就业支出（类）行政事业单位养老支出（款）机关事业单位职业年金缴费支出（项）：指反映机关事业单位实施养老保险制度由单位实际缴纳的职业年金支出（含职业年金补记支出）。 25.卫生健康支出（类）行政事业单位医疗（款）事业单位医疗（项）：指反映财政部门安排的事业单位基本医疗保险缴费经费，未参加医疗保险的事业单位的公费医疗经费，按国家规定享受离休人员待遇的医疗经费。 26.卫生健康支出（类）行政事业单位医疗（款）公务员医疗补助（项）：指反映财政部门安排的公务员医疗补助经费。 27.住房保障支出（类）住房改革支出（款）住房公积金（项）：指反映行政事业单位按人力资源和社会保障部、财政部规定的基本工资和津贴补贴以及规定比例为职工缴纳的住房公积金。 28.其他支出（类）其他政府性基金及对应专项债务收人安排的支出（款）其他政府性基金安排的支出（项）：指反映其他政府性基金安排的支出(包括用以前年度欠款收人安排的支出)。
A60: 泰顺县泗溪镇幼儿园 | C60: =(SUMIF(#REF!,A60,#REF!)+SUMIF(#REF!,A60,#REF!))*10000 ->  | D60: =(SUMIF(#REF!,A60,#REF!)+SUMIF(#REF!,A60,#REF!))*10000 ->  | E60: =SUMIF(INDIRECT("参考数据!$E:$E"),核对!A60,INDIRECT("参考数据!$C:$C")) -> 3967974.79 | G60: 17.教育支出（类）普通教育（款）学前教育（项）：指反映各部门举办的学前教育支出。政府各部门对社会组织等举办的幼儿园的资助，如各类捐赠、补贴等，也在本科目反映。 18.教育支出（类）普通教育（款）其他普通教育支出（项）：指反映除上述项目以外其他用于普通教育方面的支出。 19.教育支出（类）教育费附加安排的支出（款）其他教育费附加安排的支出（项）：指反映除上述项目以外的教育费附加支出。 20.社会保障和就业支出（类）行政事业单位养老支出（款）机关事业单位基本养老保险缴费支出（项）：指反映机关事业单位实施养老保险制度由单位缴纳的基本养老保险费支出。 21.社会保障和就业支出（类）行政事业单位养老支出（款）机关事业单位职业年金缴费支出（项）：指反映机关事业单位实施养老保险制度由单位实际缴纳的职业年金支出（含职业年金补记支出）。 22.卫生健康支出（类）行政事业单位医疗（款）事业单位医疗（项）：指反映财政部门安排的事业单位基本医疗保险缴费经费，未参加医疗保险的事业单位的公费医疗经费，按国家规定享受离休人员待遇的医疗经费。 23.卫生健康支出（类）行政事业单位医疗（款）公务员医疗补助（项）：指反映财政部门安排的公务员医疗补助经费。 24.住房保障支出（类）住房改革支出（款）住房公积金（项）：指反映行政事业单位按人力资源和社会保障部、财政部规定的基本工资和津贴补贴以及规定比例为职工缴纳的住房公积金。 25.其他支出（类）其他政府性基金及对应专项债务收人安排的支出（款）其他政府性基金安排的支出（项）：指反映其他政府性基金安排的支出(包括用以前年度欠款收人安排的支出)。
A61: 泰顺县泗溪镇中心小学 | C61: =(SUMIF(#REF!,A61,#REF!)+SUMIF(#REF!,A61,#REF!))*10000 ->  | D61: =(SUMIF(#REF!,A61,#REF!)+SUMIF(#REF!,A61,#REF!))*10000 ->  | E61: =SUMIF(INDIRECT("参考数据!$E:$E"),核对!A61,INDIRECT("参考数据!$C:$C")) -> 14521257.33 | G61: 17.教育支出（类）普通教育（款）小学教育（项）：指反映各部门举办的小学教育支出。政府各部门对社会组织等举办的小学的资助，如各类捐赠、补贴等，也在本科目反映。 18.教育支出（类）普通教育（款）其他普通教育支出（项）：指反映除上述项目以外其他用于普通教育方面的支出。 19.教育支出（类）教育费附加安排的支出（款）其他教育费附加安排的支出（项）：指反映除上述项目以外的教育费附加支出。 20.科学技术支出（类）其他科学技术支出（款）其他科学技术支出（项）：指反映其他科学技术支出中除以上各项外用于科技方面的支出。 21.文化旅游体育与传媒支出（类）其他文化旅游体育与传媒支出（款）其他文化旅游体育与传媒支出（项）：指反映除上述项目以外其他用于文化旅游体育与传媒方面的支出。 22.社会保障和就业支出（类）人力资源和社会保障管理事务（款）其他人力资源和社会保障管理事务支出（项）：指反映除上述项目以外其他用于人力资源和社会保障管理事务方面的支出。 23.社会保障和就业支出（类）行政事业单位养老支出（款）事业单位离退休（项）：指反映事业单位开支的离退休经费。 24.社会保障和就业支出（类）行政事业单位养老支出（款）机关事业单位基本养老保险缴费支出（项）：指反映机关事业单位实施养老保险制度由单位缴纳的基本养老保险费支出。 25.社会保障和就业支出（类）行政事业单位养老支出（款）机关事业单位职业年金缴费支出（项）：指反映机关事业单位实施养老保险制度由单位实际缴纳的职业年金支出（含职业年金补记支出）。 26.卫生健康支出（类）行政事业单位医疗（款）事业单位医疗（项）：指反映财政部门安排的事业单位基本医疗保险缴费经费，未参加医疗保险的事业单位的公费医疗经费，按国家规定享受离休人员待遇的医疗经费。 27.卫生健康支出（类）行政事业单位医疗（款）公务员医疗补助（项）：指反映财政部门安排的公务员医疗补助经费。 28.住房保障支出（类）住房改革支出（款）住房公积金（项）：指反映行政事业单位按人力资源和社会保障部、财政部规定的基本工资和津贴补贴以及规定比例为职工缴纳的住房公积金。 29.其他支出（类）其他政府性基金及对应专项债务收人安排的支出（款）其他政府性基金安排的支出（项）：指反映其他政府性基金安排的支出(包括用以前年度欠款收人安排的支出)。
A62: 泰顺县文祥小学 | C62: =(SUMIF(#REF!,A62,#REF!)+SUMIF(#REF!,A62,#REF!))*10000 ->  | D62: =(SUMIF(#REF!,A62,#REF!)+SUMIF(#REF!,A62,#REF!))*10000 ->  | E62: =SUMIF(INDIRECT("参考数据!$E:$E"),核对!A62,INDIRECT("参考数据!$C:$C")) -> 28140262.28 | G62: 17.教育支出（类）普通教育（款）小学教育（项）：指反映各部门举办的小学教育支出。政府各部门对社会组织等举办的小学的资助，如各类捐赠、补贴等，也在本科目反映。 18.教育支出（类）普通教育（款）其他普通教育支出（项）：指反映除上述项目以外其他用于普通教育方面的支出。 19.教育支出（类）教育费附加安排的支出（款）其他教育费附加安排的支出（项）：指反映除上述项目以外的教育费附加支出。 20.科学技术支出（类）其他科学技术支出（款）其他科学技术支出（项）：指反映其他科学技术支出中除以上各项外用于科技方面的支出。 21.社会保障和就业支出（类）行政事业单位养老支出（款）事业单位离退休（项）：指反映事业单位开支的离退休经费。 22.社会保障和就业支出（类）行政事业单位养老支出（款）机关事业单位基本养老保险缴费支出（项）：指反映机关事业单位实施养老保险制度由单位缴纳的基本养老保险费支出。 23.社会保障和就业支出（类）行政事业单位养老支出（款）机关事业单位职业年金缴费支出（项）：指反映机关事业单位实施养老保险制度由单位实际缴纳的职业年金支出（含职业年金补记支出）。 24.卫生健康支出（类）行政事业单位医疗（款）事业单位医疗（项）：指反映财政部门安排的事业单位基本医疗保险缴费经费，未参加医疗保险的事业单位的公费医疗经费，按国家规定享受离休人员待遇的医疗经费。 25.卫生健康支出（类）行政事业单位医疗（款）公务员医疗补助（项）：指反映财政部门安排的公务员医疗补助经费。 26.住房保障支出（类）住房改革支出（款）住房公积金（项）：指反映行政事业单位按人力资源和社会保障部、财政部规定的基本工资和津贴补贴以及规定比例为职工缴纳的住房公积金。 27.其他支出（类）其他政府性基金及对应专项债务收人安排的支出（款）其他政府性基金安排的支出（项）：指反映其他政府性基金安排的支出(包括用以前年度欠款收人安排的支出)。 28.其他支出（类）彩票公益金安排的支出（款）用于体育事业的彩票公益金支出（项）：指反映用于体育事业的彩票公益金支出。
A63: 泰顺县文祥幼儿园 | C63: =(SUMIF(#REF!,A63,#REF!)+SUMIF(#REF!,A63,#REF!))*10000 ->  | D63: =(SUMIF(#REF!,A63,#REF!)+SUMIF(#REF!,A63,#REF!))*10000 ->  | E63: =SUMIF(INDIRECT("参考数据!$E:$E"),核对!A63,INDIRECT("参考数据!$C:$C")) -> 3728711.29 | G63: 17.教育支出（类）普通教育（款）学前教育（项）：指反映各部门举办的学前教育支出。政府各部门对社会组织等举办的幼儿园的资助，如各类捐赠、补贴等，也在本科目反映。 18.教育支出（类）教育费附加安排的支出（款）其他教育费附加安排的支出（项）：指反映除上述项目以外的教育费附加支出。 19.社会保障和就业支出（类）行政事业单位养老支出（款）机关事业单位基本养老保险缴费支出（项）：指反映机关事业单位实施养老保险制度由单位缴纳的基本养老保险费支出。 20.社会保障和就业支出（类）行政事业单位养老支出（款）机关事业单位职业年金缴费支出（项）：指反映机关事业单位实施养老保险制度由单位实际缴纳的职业年金支出（含职业年金补记支出）。 21.卫生健康支出（类）行政事业单位医疗（款）事业单位医疗（项）：指反映财政部门安排的事业单位基本医疗保险缴费经费，未参加医疗保险的事业单位的公费医疗经费，按国家规定享受离休人员待遇的医疗经费。 22.卫生健康支出（类）行政事业单位医疗（款）公务员医疗补助（项）：指反映财政部门安排的公务员医疗补助经费。 23.住房保障支出（类）住房改革支出（款）住房公积金（项）：指反映行政事业单位按人力资源和社会保障部、财政部规定的基本工资和津贴补贴以及规定比例为职工缴纳的住房公积金。 24.其他支出（类）其他政府性基金及对应专项债务收人安排的支出（款）其他政府性基金安排的支出（项）：指反映其他政府性基金安排的支出(包括用以前年度欠款收人安排的支出)。
A64: 泰顺县西旸镇垟溪中心小学 | C64: =(SUMIF(#REF!,A64,#REF!)+SUMIF(#REF!,A64,#REF!))*10000 ->  | D64: =(SUMIF(#REF!,A64,#REF!)+SUMIF(#REF!,A64,#REF!))*10000 ->  | E64: =SUMIF(INDIRECT("参考数据!$E:$E"),核对!A64,INDIRECT("参考数据!$C:$C")) -> 3064617.48 | G64: 17.教育支出（类）普通教育（款）小学教育（项）：指反映各部门举办的小学教育支出。政府各部门对社会组织等举办的小学的资助，如各类捐赠、补贴等，也在本科目反映。 18.教育支出（类）普通教育（款）其他普通教育支出（项）：指反映除上述项目以外其他用于普通教育方面的支出。 19.教育支出（类）教育费附加安排的支出（款）其他教育费附加安排的支出（项）：指反映除上述项目以外的教育费附加支出。 20.科学技术支出（类）其他科学技术支出（款）其他科学技术支出（项）：指反映其他科学技术支出中除以上各项外用于科技方面的支出。 21.文化旅游体育与传媒支出（类）其他文化旅游体育与传媒支出（款）其他文化旅游体育与传媒支出（项）：指反映除上述项目以外其他用于文化旅游体育与传媒方面的支出。 22.社会保障和就业支出（类）人力资源和社会保障管理事务（款）其他人力资源和社会保障管理事务支出（项）：指反映除上述项目以外其他用于人力资源和社会保障管理事务方面的支出。 23.社会保障和就业支出（类）行政事业单位养老支出（款）事业单位离退休（项）：指反映事业单位开支的离退休经费。 24.社会保障和就业支出（类）行政事业单位养老支出（款）机关事业单位基本养老保险缴费支出（项）：指反映机关事业单位实施养老保险制度由单位缴纳的基本养老保险费支出。 25.社会保障和就业支出（类）行政事业单位养老支出（款）机关事业单位职业年金缴费支出（项）：指反映机关事业单位实施养老保险制度由单位实际缴纳的职业年金支出（含职业年金补记支出）。 26.卫生健康支出（类）行政事业单位医疗（款）事业单位医疗（项）：指反映财政部门安排的事业单位基本医疗保险缴费经费，未参加医疗保险的事业单位的公费医疗经费，按国家规定享受离休人员待遇的医疗经费。 27.卫生健康支出（类）行政事业单位医疗（款）公务员医疗补助（项）：指反映财政部门安排的公务员医疗补助经费。 28.住房保障支出（类）住房改革支出（款）住房公积金（项）：指反映行政事业单位按人力资源和社会保障部、财政部规定的基本工资和津贴补贴以及规定比例为职工缴纳的住房公积金。 29.其他支出（类）其他政府性基金及对应专项债务收人安排的支出（款）其他政府性基金安排的支出（项）：指反映其他政府性基金安排的支出(包括用以前年度欠款收人安排的支出)。
A65: 泰顺县西旸镇幼儿园 | C65: =(SUMIF(#REF!,A65,#REF!)+SUMIF(#REF!,A65,#REF!))*10000 ->  | D65: =(SUMIF(#REF!,A65,#REF!)+SUMIF(#REF!,A65,#REF!))*10000 ->  | E65: =SUMIF(INDIRECT("参考数据!$E:$E"),核对!A65,INDIRECT("参考数据!$C:$C")) -> 2804911 | G65: 17.教育支出（类）普通教育（款）学前教育（项）：指反映各部门举办的学前教育支出。政府各部门对社会组织等举办的幼儿园的资助，如各类捐赠、补贴等，也在本科目反映。 18.教育支出（类）普通教育（款）其他普通教育支出（项）：指反映除上述项目以外其他用于普通教育方面的支出。 19.教育支出（类）教育费附加安排的支出（款）其他教育费附加安排的支出（项）：指反映除上述项目以外的教育费附加支出。 20.科学技术支出（类）其他科学技术支出（款）其他科学技术支出（项）：指反映其他科学技术支出中除以上各项外用于科技方面的支出。 21.社会保障和就业支出（类）人力资源和社会保障管理事务（款）其他人力资源和社会保障管理事务支出（项）：指反映除上述项目以外其他用于人力资源和社会保障管理事务方面的支出。 22.社会保障和就业支出（类）行政事业单位养老支出（款）事业单位离退休（项）：指反映事业单位开支的离退休经费。 23.社会保障和就业支出（类）行政事业单位养老支出（款）机关事业单位基本养老保险缴费支出（项）：指反映机关事业单位实施养老保险制度由单位缴纳的基本养老保险费支出。 24.社会保障和就业支出（类）行政事业单位养老支出（款）机关事业单位职业年金缴费支出（项）：指反映机关事业单位实施养老保险制度由单位实际缴纳的职业年金支出（含职业年金补记支出）。 25.卫生健康支出（类）行政事业单位医疗（款）事业单位医疗（项）：指反映财政部门安排的事业单位基本医疗保险缴费经费，未参加医疗保险的事业单位的公费医疗经费，按国家规定享受离休人员待遇的医疗经费。 26.卫生健康支出（类）行政事业单位医疗（款）公务员医疗补助（项）：指反映财政部门安排的公务员医疗补助经费。 27.住房保障支出（类）住房改革支出（款）住房公积金（项）：指反映行政事业单位按人力资源和社会保障部、财政部规定的基本工资和津贴补贴以及规定比例为职工缴纳的住房公积金。 28.其他支出（类）其他政府性基金及对应专项债务收人安排的支出（款）其他政府性基金安排的支出（项）：指反映其他政府性基金安排的支出(包括用以前年度欠款收人安排的支出)。
A66: 泰顺县西旸镇中心小学 | C66: =(SUMIF(#REF!,A66,#REF!)+SUMIF(#REF!,A66,#REF!))*10000 ->  | D66: =(SUMIF(#REF!,A66,#REF!)+SUMIF(#REF!,A66,#REF!))*10000 ->  | E66: =SUMIF(INDIRECT("参考数据!$E:$E"),核对!A66,INDIRECT("参考数据!$C:$C")) -> 7429786 | G66: 17.教育支出（类）普通教育（款）小学教育（项）：指反映各部门举办的小学教育支出。政府各部门对社会组织等举办的小学的资助，如各类捐赠、补贴等，也在本科目反映。 18.教育支出（类）普通教育（款）其他普通教育支出（项）：指反映除上述项目以外其他用于普通教育方面的支出。 19.文化旅游体育与传媒支出（类）其他文化旅游体育与传媒支出（款）其他文化旅游体育与传媒支出（项）：指反映除上述项目以外其他用于文化旅游体育与传媒方面的支出。 20.社会保障和就业支出（类）人力资源和社会保障管理事务（款）其他人力资源和社会保障管理事务支出（项）：指反映除上述项目以外其他用于人力资源和社会保障管理事务方面的支出。 21.社会保障和就业支出（类）行政事业单位养老支出（款）事业单位离退休（项）：指反映事业单位开支的离退休经费。 22.社会保障和就业支出（类）行政事业单位养老支出（款）机关事业单位基本养老保险缴费支出（项）：指反映机关事业单位实施养老保险制度由单位缴纳的基本养老保险费支出。 23.社会保障和就业支出（类）行政事业单位养老支出（款）机关事业单位职业年金缴费支出（项）：指反映机关事业单位实施养老保险制度由单位实际缴纳的职业年金支出（含职业年金补记支出）。 24.卫生健康支出（类）行政事业单位医疗（款）事业单位医疗（项）：指反映财政部门安排的事业单位基本医疗保险缴费经费，未参加医疗保险的事业单位的公费医疗经费，按国家规定享受离休人员待遇的医疗经费。 25.卫生健康支出（类）行政事业单位医疗（款）公务员医疗补助（项）：指反映财政部门安排的公务员医疗补助经费。 26.住房保障支出（类）住房改革支出（款）住房公积金（项）：指反映行政事业单位按人力资源和社会保障部、财政部规定的基本工资和津贴补贴以及规定比例为职工缴纳的住房公积金。 27.其他支出（类）其他政府性基金及对应专项债务收人安排的支出（款）其他政府性基金安排的支出（项）：指反映其他政府性基金安排的支出(包括用以前年度欠款收人安排的支出)。
A67: 泰顺县筱村镇第二小学 | C67: =(SUMIF(#REF!,A67,#REF!)+SUMIF(#REF!,A67,#REF!))*10000 ->  | D67: =(SUMIF(#REF!,A67,#REF!)+SUMIF(#REF!,A67,#REF!))*10000 ->  | E67: =SUMIF(INDIRECT("参考数据!$E:$E"),核对!A67,INDIRECT("参考数据!$C:$C")) -> 10465073 | G67: 17.教育支出（类）普通教育（款）小学教育（项）：指反映各部门举办的小学教育支出。政府各部门对社会组织等举办的小学的资助，如各类捐赠、补贴等，也在本科目反映。 18.教育支出（类）普通教育（款）其他普通教育支出（项）：指反映除上述项目以外其他用于普通教育方面的支出。 19.科学技术支出（类）其他科学技术支出（款）其他科学技术支出（项）：指反映其他科学技术支出中除以上各项外用于科技方面的支出。 20.文化旅游体育与传媒支出（类）其他文化旅游体育与传媒支出（款）其他文化旅游体育与传媒支出（项）：指反映除上述项目以外其他用于文化旅游体育与传媒方面的支出。 21.社会保障和就业支出（类）人力资源和社会保障管理事务（款）其他人力资源和社会保障管理事务支出（项）：指反映除上述项目以外其他用于人力资源和社会保障管理事务方面的支出。 22.社会保障和就业支出（类）行政事业单位养老支出（款）事业单位离退休（项）：指反映事业单位开支的离退休经费。 23.社会保障和就业支出（类）行政事业单位养老支出（款）机关事业单位基本养老保险缴费支出（项）：指反映机关事业单位实施养老保险制度由单位缴纳的基本养老保险费支出。 24.社会保障和就业支出（类）行政事业单位养老支出（款）机关事业单位职业年金缴费支出（项）：指反映机关事业单位实施养老保险制度由单位实际缴纳的职业年金支出（含职业年金补记支出）。 25.卫生健康支出（类）行政事业单位医疗（款）事业单位医疗（项）：指反映财政部门安排的事业单位基本医疗保险缴费经费，未参加医疗保险的事业单位的公费医疗经费，按国家规定享受离休人员待遇的医疗经费。 26.卫生健康支出（类）行政事业单位医疗（款）公务员医疗补助（项）：指反映财政部门安排的公务员医疗补助经费。 27.住房保障支出（类）住房改革支出（款）住房公积金（项）：指反映行政事业单位按人力资源和社会保障部、财政部规定的基本工资和津贴补贴以及规定比例为职工缴纳的住房公积金。 28.其他支出（类）其他政府性基金及对应专项债务收人安排的支出（款）其他政府性基金安排的支出（项）：指反映其他政府性基金安排的支出(包括用以前年度欠款收人安排的支出)。 29.其他支出（类）彩票公益金安排的支出（款）用于体育事业的彩票公益金支出（项）：指反映用于体育事业的彩票公益金支出。
A68: 泰顺县筱村镇翁山中心小学 | C68: =(SUMIF(#REF!,A68,#REF!)+SUMIF(#REF!,A68,#REF!))*10000 ->  | D68: =(SUMIF(#REF!,A68,#REF!)+SUMIF(#REF!,A68,#REF!))*10000 ->  | E68: =SUMIF(INDIRECT("参考数据!$E:$E"),核对!A68,INDIRECT("参考数据!$C:$C")) -> 2836405.41 | G68: 17.教育支出（类）普通教育（款）小学教育（项）：指反映各部门举办的小学教育支出。政府各部门对社会组织等举办的小学的资助，如各类捐赠、补贴等，也在本科目反映。 18.教育支出（类）普通教育（款）其他普通教育支出（项）：指反映除上述项目以外其他用于普通教育方面的支出。 19.教育支出（类）教育费附加安排的支出（款）其他教育费附加安排的支出（项）：指反映除上述项目以外的教育费附加支出。 20.科学技术支出（类）其他科学技术支出（款）其他科学技术支出（项）：指反映其他科学技术支出中除以上各项外用于科技方面的支出。 21.文化旅游体育与传媒支出（类）其他文化旅游体育与传媒支出（款）其他文化旅游体育与传媒支出（项）：指反映除上述项目以外其他用于文化旅游体育与传媒方面的支出。 22.社会保障和就业支出（类）人力资源和社会保障管理事务（款）其他人力资源和社会保障管理事务支出（项）：指反映除上述项目以外其他用于人力资源和社会保障管理事务方面的支出。 23.社会保障和就业支出（类）行政事业单位养老支出（款）事业单位离退休（项）：指反映事业单位开支的离退休经费。 24.社会保障和就业支出（类）行政事业单位养老支出（款）机关事业单位基本养老保险缴费支出（项）：指反映机关事业单位实施养老保险制度由单位缴纳的基本养老保险费支出。 25.社会保障和就业支出（类）行政事业单位养老支出（款）机关事业单位职业年金缴费支出（项）：指反映机关事业单位实施养老保险制度由单位实际缴纳的职业年金支出（含职业年金补记支出）。 26.卫生健康支出（类）行政事业单位医疗（款）事业单位医疗（项）：指反映财政部门安排的事业单位基本医疗保险缴费经费，未参加医疗保险的事业单位的公费医疗经费，按国家规定享受离休人员待遇的医疗经费。 27.卫生健康支出（类）行政事业单位医疗（款）公务员医疗补助（项）：指反映财政部门安排的公务员医疗补助经费。 28.住房保障支出（类）住房改革支出（款）住房公积金（项）：指反映行政事业单位按人力资源和社会保障部、财政部规定的基本工资和津贴补贴以及规定比例为职工缴纳的住房公积金。 29.其他支出（类）其他政府性基金及对应专项债务收人安排的支出（款）其他政府性基金安排的支出（项）：指反映其他政府性基金安排的支出(包括用以前年度欠款收人安排的支出)。
A69: 泰顺县筱村镇幼儿园 | B69: =C69+D69 ->  | C69: =(SUMIF(#REF!,A69,#REF!)+SUMIF(#REF!,A69,#REF!))*10000 ->  | D69: =(SUMIF(#REF!,A69,#REF!)+SUMIF(#REF!,A69,#REF!))*10000 ->  | E69: =SUMIF(INDIRECT("参考数据!$E:$E"),核对!A69,INDIRECT("参考数据!$C:$C")) -> 3685486.3 | F69: =B69=E69 ->  | G69: 17.教育支出（类）普通教育（款）学前教育（项）：指反映各部门举办的学前教育支出。政府各部门对社会组织等举办的幼儿园的资助，如各类捐赠、补贴等，也在本科目反映。 18.教育支出（类）教育费附加安排的支出（款）其他教育费附加安排的支出（项）：指反映除上述项目以外的教育费附加支出。 19.社会保障和就业支出（类）行政事业单位养老支出（款）机关事业单位基本养老保险缴费支出（项）：指反映机关事业单位实施养老保险制度由单位缴纳的基本养老保险费支出。 20.社会保障和就业支出（类）行政事业单位养老支出（款）机关事业单位职业年金缴费支出（项）：指反映机关事业单位实施养老保险制度由单位实际缴纳的职业年金支出（含职业年金补记支出）。 21.卫生健康支出（类）行政事业单位医疗（款）事业单位医疗（项）：指反映财政部门安排的事业单位基本医疗保险缴费经费，未参加医疗保险的事业单位的公费医疗经费，按国家规定享受离休人员待遇的医疗经费。 22.卫生健康支出（类）行政事业单位医疗（款）公务员医疗补助（项）：指反映财政部门安排的公务员医疗补助经费。 23.住房保障支出（类）住房改革支出（款）住房公积金（项）：指反映行政事业单位按人力资源和社会保障部、财政部规定的基本工资和津贴补贴以及规定比例为职工缴纳的住房公积金。 24.其他支出（类）其他政府性基金及对应专项债务收人安排的支出（款）其他政府性基金安排的支出（项）：指反映其他政府性基金安排的支出(包括用以前年度欠款收人安排的支出)。
A70: 泰顺县筱村镇中心小学 | C70: =(SUMIF(#REF!,A70,#REF!)+SUMIF(#REF!,A70,#REF!))*10000 ->  | D70: =(SUMIF(#REF!,A70,#REF!)+SUMIF(#REF!,A70,#REF!))*10000 ->  | E70: =SUMIF(INDIRECT("参考数据!$E:$E"),核对!A70,INDIRECT("参考数据!$C:$C")) -> 6321621.94 | G70: 17.教育支出（类）普通教育（款）小学教育（项）：指反映各部门举办的小学教育支出。政府各部门对社会组织等举办的小学的资助，如各类捐赠、补贴等，也在本科目反映。 18.教育支出（类）普通教育（款）其他普通教育支出（项）：指反映除上述项目以外其他用于普通教育方面的支出。 19.教育支出（类）教育费附加安排的支出（款）其他教育费附加安排的支出（项）：指反映除上述项目以外的教育费附加支出。 20.科学技术支出（类）其他科学技术支出（款）其他科学技术支出（项）：指反映其他科学技术支出中除以上各项外用于科技方面的支出。 21.文化旅游体育与传媒支出（类）其他文化旅游体育与传媒支出（款）其他文化旅游体育与传媒支出（项）：指反映除上述项目以外其他用于文化旅游体育与传媒方面的支出。 22.社会保障和就业支出（类）人力资源和社会保障管理事务（款）其他人力资源和社会保障管理事务支出（项）：指反映除上述项目以外其他用于人力资源和社会保障管理事务方面的支出。 23.社会保障和就业支出（类）行政事业单位养老支出（款）事业单位离退休（项）：指反映事业单位开支的离退休经费。 24.社会保障和就业支出（类）行政事业单位养老支出（款）机关事业单位基本养老保险缴费支出（项）：指反映机关事业单位实施养老保险制度由单位缴纳的基本养老保险费支出。 25.社会保障和就业支出（类）行政事业单位养老支出（款）机关事业单位职业年金缴费支出（项）：指反映机关事业单位实施养老保险制度由单位实际缴纳的职业年金支出（含职业年金补记支出）。 26.卫生健康支出（类）行政事业单位医疗（款）事业单位医疗（项）：指反映财政部门安排的事业单位基本医疗保险缴费经费，未参加医疗保险的事业单位的公费医疗经费，按国家规定享受离休人员待遇的医疗经费。 27.卫生健康支出（类）行政事业单位医疗（款）公务员医疗补助（项）：指反映财政部门安排的公务员医疗补助经费。 28.住房保障支出（类）住房改革支出（款）住房公积金（项）：指反映行政事业单位按人力资源和社会保障部、财政部规定的基本工资和津贴补贴以及规定比例为职工缴纳的住房公积金。 29.其他支出（类）其他政府性基金及对应专项债务收人安排的支出（款）其他政府性基金安排的支出（项）：指反映其他政府性基金安排的支出(包括用以前年度欠款收人安排的支出)。
A71: 泰顺县雪溪乡幼儿园 | C71: =(SUMIF(#REF!,A71,#REF!)+SUMIF(#REF!,A71,#REF!))*10000 ->  | D71: =(SUMIF(#REF!,A71,#REF!)+SUMIF(#REF!,A71,#REF!))*10000 ->  | E71: =SUMIF(INDIRECT("参考数据!$E:$E"),核对!A71,INDIRECT("参考数据!$C:$C")) -> 1023465.74 | G71: 17.教育支出（类）普通教育（款）学前教育（项）：指反映各部门举办的学前教育支出。政府各部门对社会组织等举办的幼儿园的资助，如各类捐赠、补贴等，也在本科目反映。 18.社会保障和就业支出（类）行政事业单位养老支出（款）机关事业单位基本养老保险缴费支出（项）：指反映机关事业单位实施养老保险制度由单位缴纳的基本养老保险费支出。 19.社会保障和就业支出（类）行政事业单位养老支出（款）机关事业单位职业年金缴费支出（项）：指反映机关事业单位实施养老保险制度由单位实际缴纳的职业年金支出（含职业年金补记支出）。 20.卫生健康支出（类）行政事业单位医疗（款）事业单位医疗（项）：指反映财政部门安排的事业单位基本医疗保险缴费经费，未参加医疗保险的事业单位的公费医疗经费，按国家规定享受离休人员待遇的医疗经费。 21.卫生健康支出（类）行政事业单位医疗（款）公务员医疗补助（项）：指反映财政部门安排的公务员医疗补助经费。 22.住房保障支出（类）住房改革支出（款）住房公积金（项）：指反映行政事业单位按人力资源和社会保障部、财政部规定的基本工资和津贴补贴以及规定比例为职工缴纳的住房公积金。 23.其他支出（类）其他政府性基金及对应专项债务收人安排的支出（款）其他政府性基金安排的支出（项）：指反映其他政府性基金安排的支出(包括用以前年度欠款收人安排的支出)。
A72: 泰顺县雪溪乡中心小学 | C72: =(SUMIF(#REF!,A72,#REF!)+SUMIF(#REF!,A72,#REF!))*10000 ->  | D72: =(SUMIF(#REF!,A72,#REF!)+SUMIF(#REF!,A72,#REF!))*10000 ->  | E72: =SUMIF(INDIRECT("参考数据!$E:$E"),核对!A72,INDIRECT("参考数据!$C:$C")) -> 3169181.97 | G72: 17.教育支出（类）普通教育（款）小学教育（项）：指反映各部门举办的小学教育支出。政府各部门对社会组织等举办的小学的资助，如各类捐赠、补贴等，也在本科目反映。 18.教育支出（类）普通教育（款）其他普通教育支出（项）：指反映除上述项目以外其他用于普通教育方面的支出。 19.教育支出（类）教育费附加安排的支出（款）其他教育费附加安排的支出（项）：指反映除上述项目以外的教育费附加支出。 20.科学技术支出（类）其他科学技术支出（款）其他科学技术支出（项）：指反映其他科学技术支出中除以上各项外用于科技方面的支出。 21.文化旅游体育与传媒支出（类）其他文化旅游体育与传媒支出（款）其他文化旅游体育与传媒支出（项）：指反映除上述项目以外其他用于文化旅游体育与传媒方面的支出。 22.社会保障和就业支出（类）人力资源和社会保障管理事务（款）其他人力资源和社会保障管理事务支出（项）：指反映除上述项目以外其他用于人力资源和社会保障管理事务方面的支出。 23.社会保障和就业支出（类）行政事业单位养老支出（款）事业单位离退休（项）：指反映事业单位开支的离退休经费。 24.社会保障和就业支出（类）行政事业单位养老支出（款）机关事业单位基本养老保险缴费支出（项）：指反映机关事业单位实施养老保险制度由单位缴纳的基本养老保险费支出。 25.社会保障和就业支出（类）行政事业单位养老支出（款）机关事业单位职业年金缴费支出（项）：指反映机关事业单位实施养老保险制度由单位实际缴纳的职业年金支出（含职业年金补记支出）。 26.卫生健康支出（类）行政事业单位医疗（款）事业单位医疗（项）：指反映财政部门安排的事业单位基本医疗保险缴费经费，未参加医疗保险的事业单位的公费医疗经费，按国家规定享受离休人员待遇的医疗经费。 27.卫生健康支出（类）行政事业单位医疗（款）公务员医疗补助（项）：指反映财政部门安排的公务员医疗补助经费。 28.住房保障支出（类）住房改革支出（款）住房公积金（项）：指反映行政事业单位按人力资源和社会保障部、财政部规定的基本工资和津贴补贴以及规定比例为职工缴纳的住房公积金。 29.其他支出（类）其他政府性基金及对应专项债务收人安排的支出（款）其他政府性基金安排的支出（项）：指反映其他政府性基金安排的支出(包括用以前年度欠款收人安排的支出)。 30.其他支出（类）彩票公益金安排的支出（款）用于体育事业的彩票公益金支出（项）：指反映用于体育事业的彩票公益金支出。
A73: 泰顺县雅阳镇第二幼儿园 | C73: =(SUMIF(#REF!,A73,#REF!)+SUMIF(#REF!,A73,#REF!))*10000 ->  | D73: =(SUMIF(#REF!,A73,#REF!)+SUMIF(#REF!,A73,#REF!))*10000 ->  | E73: =SUMIF(INDIRECT("参考数据!$E:$E"),核对!A73,INDIRECT("参考数据!$C:$C")) -> 1688755 | G73: 17.教育支出（类）普通教育（款）学前教育（项）：指反映各部门举办的学前教育支出。政府各部门对社会组织等举办的幼儿园的资助，如各类捐赠、补贴等，也在本科目反映。 18.教育支出（类）教育费附加安排的支出（款）其他教育费附加安排的支出（项）：指反映除上述项目以外的教育费附加支出。 19.社会保障和就业支出（类）行政事业单位养老支出（款）机关事业单位基本养老保险缴费支出（项）：指反映机关事业单位实施养老保险制度由单位缴纳的基本养老保险费支出。 20.社会保障和就业支出（类）行政事业单位养老支出（款）机关事业单位职业年金缴费支出（项）：指反映机关事业单位实施养老保险制度由单位实际缴纳的职业年金支出（含职业年金补记支出）。 21.卫生健康支出（类）行政事业单位医疗（款）事业单位医疗（项）：指反映财政部门安排的事业单位基本医疗保险缴费经费，未参加医疗保险的事业单位的公费医疗经费，按国家规定享受离休人员待遇的医疗经费。 22.卫生健康支出（类）行政事业单位医疗（款）公务员医疗补助（项）：指反映财政部门安排的公务员医疗补助经费。 23.住房保障支出（类）住房改革支出（款）住房公积金（项）：指反映行政事业单位按人力资源和社会保障部、财政部规定的基本工资和津贴补贴以及规定比例为职工缴纳的住房公积金。 24.其他支出（类）其他政府性基金及对应专项债务收人安排的支出（款）其他政府性基金安排的支出（项）：指反映其他政府性基金安排的支出(包括用以前年度欠款收人安排的支出)。
A74: 泰顺县雅阳镇松垟中心小学 | C74: =(SUMIF(#REF!,A74,#REF!)+SUMIF(#REF!,A74,#REF!))*10000 ->  | D74: =(SUMIF(#REF!,A74,#REF!)+SUMIF(#REF!,A74,#REF!))*10000 ->  | E74: =SUMIF(INDIRECT("参考数据!$E:$E"),核对!A74,INDIRECT("参考数据!$C:$C")) -> 1752902.66 | G74: 17.教育支出（类）普通教育（款）小学教育（项）：指反映各部门举办的小学教育支出。政府各部门对社会组织等举办的小学的资助，如各类捐赠、补贴等，也在本科目反映。 18.教育支出（类）普通教育（款）其他普通教育支出（项）：指反映除上述项目以外其他用于普通教育方面的支出。 19.教育支出（类）教育费附加安排的支出（款）其他教育费附加安排的支出（项）：指反映除上述项目以外的教育费附加支出。 20.社会保障和就业支出（类）人力资源和社会保障管理事务（款）其他人力资源和社会保障管理事务支出（项）：指反映除上述项目以外其他用于人力资源和社会保障管理事务方面的支出。 21.社会保障和就业支出（类）行政事业单位养老支出（款）事业单位离退休（项）：指反映事业单位开支的离退休经费。 22.社会保障和就业支出（类）行政事业单位养老支出（款）机关事业单位基本养老保险缴费支出（项）：指反映机关事业单位实施养老保险制度由单位缴纳的基本养老保险费支出。 23.社会保障和就业支出（类）行政事业单位养老支出（款）机关事业单位职业年金缴费支出（项）：指反映机关事业单位实施养老保险制度由单位实际缴纳的职业年金支出（含职业年金补记支出）。 24.卫生健康支出（类）行政事业单位医疗（款）事业单位医疗（项）：指反映财政部门安排的事业单位基本医疗保险缴费经费，未参加医疗保险的事业单位的公费医疗经费，按国家规定享受离休人员待遇的医疗经费。 25.卫生健康支出（类）行政事业单位医疗（款）公务员医疗补助（项）：指反映财政部门安排的公务员医疗补助经费。 26.住房保障支出（类）住房改革支出（款）住房公积金（项）：指反映行政事业单位按人力资源和社会保障部、财政部规定的基本工资和津贴补贴以及规定比例为职工缴纳的住房公积金。 27.其他支出（类）其他政府性基金及对应专项债务收人安排的支出（款）其他政府性基金安排的支出（项）：指反映其他政府性基金安排的支出(包括用以前年度欠款收人安排的支出)。
A75: 泰顺县雅阳镇幼儿园 | C75: =(SUMIF(#REF!,A75,#REF!)+SUMIF(#REF!,A75,#REF!))*10000 ->  | D75: =(SUMIF(#REF!,A75,#REF!)+SUMIF(#REF!,A75,#REF!))*10000 ->  | E75: =SUMIF(INDIRECT("参考数据!$E:$E"),核对!A75,INDIRECT("参考数据!$C:$C")) -> 2788611 | G75: 17.教育支出（类）普通教育（款）学前教育（项）：指反映各部门举办的学前教育支出。政府各部门对社会组织等举办的幼儿园的资助，如各类捐赠、补贴等，也在本科目反映。 18.教育支出（类）教育费附加安排的支出（款）其他教育费附加安排的支出（项）：指反映除上述项目以外的教育费附加支出。 19.社会保障和就业支出（类）行政事业单位养老支出（款）机关事业单位基本养老保险缴费支出（项）：指反映机关事业单位实施养老保险制度由单位缴纳的基本养老保险费支出。 20.社会保障和就业支出（类）行政事业单位养老支出（款）机关事业单位职业年金缴费支出（项）：指反映机关事业单位实施养老保险制度由单位实际缴纳的职业年金支出（含职业年金补记支出）。 21.卫生健康支出（类）行政事业单位医疗（款）事业单位医疗（项）：指反映财政部门安排的事业单位基本医疗保险缴费经费，未参加医疗保险的事业单位的公费医疗经费，按国家规定享受离休人员待遇的医疗经费。 22.卫生健康支出（类）行政事业单位医疗（款）公务员医疗补助（项）：指反映财政部门安排的公务员医疗补助经费。 23.住房保障支出（类）住房改革支出（款）住房公积金（项）：指反映行政事业单位按人力资源和社会保障部、财政部规定的基本工资和津贴补贴以及规定比例为职工缴纳的住房公积金。 24.其他支出（类）其他政府性基金及对应专项债务收人安排的支出（款）其他政府性基金安排的支出（项）：指反映其他政府性基金安排的支出(包括用以前年度欠款收人安排的支出)。
A76: 泰顺县雅阳镇中心小学 | C76: =(SUMIF(#REF!,A76,#REF!)+SUMIF(#REF!,A76,#REF!))*10000 ->  | D76: =(SUMIF(#REF!,A76,#REF!)+SUMIF(#REF!,A76,#REF!))*10000 ->  | E76: =SUMIF(INDIRECT("参考数据!$E:$E"),核对!A76,INDIRECT("参考数据!$C:$C")) -> 22482373.56 | G76: 17.教育支出（类）普通教育（款）小学教育（项）：指反映各部门举办的小学教育支出。政府各部门对社会组织等举办的小学的资助，如各类捐赠、补贴等，也在本科目反映。 18.教育支出（类）普通教育（款）其他普通教育支出（项）：指反映除上述项目以外其他用于普通教育方面的支出。 19.教育支出（类）教育费附加安排的支出（款）其他教育费附加安排的支出（项）：指反映除上述项目以外的教育费附加支出。 20.科学技术支出（类）其他科学技术支出（款）其他科学技术支出（项）：指反映其他科学技术支出中除以上各项外用于科技方面的支出。 21.社会保障和就业支出（类）人力资源和社会保障管理事务（款）其他人力资源和社会保障管理事务支出（项）：指反映除上述项目以外其他用于人力资源和社会保障管理事务方面的支出。 22.社会保障和就业支出（类）行政事业单位养老支出（款）事业单位离退休（项）：指反映事业单位开支的离退休经费。 23.社会保障和就业支出（类）行政事业单位养老支出（款）机关事业单位基本养老保险缴费支出（项）：指反映机关事业单位实施养老保险制度由单位缴纳的基本养老保险费支出。 24.社会保障和就业支出（类）行政事业单位养老支出（款）机关事业单位职业年金缴费支出（项）：指反映机关事业单位实施养老保险制度由单位实际缴纳的职业年金支出（含职业年金补记支出）。 25.卫生健康支出（类）行政事业单位医疗（款）事业单位医疗（项）：指反映财政部门安排的事业单位基本医疗保险缴费经费，未参加医疗保险的事业单位的公费医疗经费，按国家规定享受离休人员待遇的医疗经费。 26.卫生健康支出（类）行政事业单位医疗（款）公务员医疗补助（项）：指反映财政部门安排的公务员医疗补助经费。 27.住房保障支出（类）住房改革支出（款）住房公积金（项）：指反映行政事业单位按人力资源和社会保障部、财政部规定的基本工资和津贴补贴以及规定比例为职工缴纳的住房公积金。 28.其他支出（类）其他政府性基金及对应专项债务收人安排的支出（款）其他政府性基金安排的支出（项）：指反映其他政府性基金安排的支出(包括用以前年度欠款收人安排的支出)。 29.其他支出（类）彩票公益金安排的支出（款）用于体育事业的彩票公益金支出（项）：指反映用于体育事业的彩票公益金支出。
A77: 泰顺县垟溪幼儿园 | C77: =(SUMIF(#REF!,A77,#REF!)+SUMIF(#REF!,A77,#REF!))*10000 ->  | D77: =(SUMIF(#REF!,A77,#REF!)+SUMIF(#REF!,A77,#REF!))*10000 ->  | E77: =SUMIF(INDIRECT("参考数据!$E:$E"),核对!A77,INDIRECT("参考数据!$C:$C")) -> 1195456.36 | G77: 17.教育支出（类）普通教育（款）学前教育（项）：指反映各部门举办的学前教育支出。政府各部门对社会组织等举办的幼儿园的资助，如各类捐赠、补贴等，也在本科目反映。 18.教育支出（类）教育费附加安排的支出（款）其他教育费附加安排的支出（项）：指反映除上述项目以外的教育费附加支出。 19.社会保障和就业支出（类）行政事业单位养老支出（款）机关事业单位基本养老保险缴费支出（项）：指反映机关事业单位实施养老保险制度由单位缴纳的基本养老保险费支出。 20.社会保障和就业支出（类）行政事业单位养老支出（款）机关事业单位职业年金缴费支出（项）：指反映机关事业单位实施养老保险制度由单位实际缴纳的职业年金支出（含职业年金补记支出）。 21.卫生健康支出（类）行政事业单位医疗（款）事业单位医疗（项）：指反映财政部门安排的事业单位基本医疗保险缴费经费，未参加医疗保险的事业单位的公费医疗经费，按国家规定享受离休人员待遇的医疗经费。 22.卫生健康支出（类）行政事业单位医疗（款）公务员医疗补助（项）：指反映财政部门安排的公务员医疗补助经费。 23.住房保障支出（类）住房改革支出（款）住房公积金（项）：指反映行政事业单位按人力资源和社会保障部、财政部规定的基本工资和津贴补贴以及规定比例为职工缴纳的住房公积金。 24.其他支出（类）其他政府性基金及对应专项债务收人安排的支出（款）其他政府性基金安排的支出（项）：指反映其他政府性基金安排的支出(包括用以前年度欠款收人安排的支出)。
A78: 泰顺县职业教育中心 | C78: =(SUMIF(#REF!,A78,#REF!)+SUMIF(#REF!,A78,#REF!))*10000 ->  | D78: =(SUMIF(#REF!,A78,#REF!)+SUMIF(#REF!,A78,#REF!))*10000 ->  | E78: =SUMIF(INDIRECT("参考数据!$E:$E"),核对!A78,INDIRECT("参考数据!$C:$C")) -> 34726616.93 | G78: 17.教育支出（类）普通教育（款）其他普通教育支出（项）：指反映除上述项目以外其他用于普通教育方面的支出。 18.教育支出（类）职业教育（款）中等职业教育（项）：指反映各部门（不含人力资源社会保障部门）举办的中等职业教育支出。政府各部门对社会组织等举办的中等职业学校的资助，如捐赠、补贴等，也在本科目中反映。 19.教育支出（类）职业教育（款）其他职业教育支出（项）：指反映除上述项目以外其他用于职业教育方面的支出。 20.教育支出（类）教育费附加安排的支出（款）其他教育费附加安排的支出（项）：指反映除上述项目以外的教育费附加支出。 21.科学技术支出（类）其他科学技术支出（款）其他科学技术支出（项）：指反映其他科学技术支出中除以上各项外用于科技方面的支出。 22.社会保障和就业支出（类）人力资源和社会保障管理事务（款）其他人力资源和社会保障管理事务支出（项）：指反映除上述项目以外其他用于人力资源和社会保障管理事务方面的支出。 23.社会保障和就业支出（类）行政事业单位养老支出（款）事业单位离退休（项）：指反映事业单位开支的离退休经费。 24.社会保障和就业支出（类）行政事业单位养老支出（款）机关事业单位基本养老保险缴费支出（项）：指反映机关事业单位实施养老保险制度由单位缴纳的基本养老保险费支出。 25.社会保障和就业支出（类）行政事业单位养老支出（款）机关事业单位职业年金缴费支出（项）：指反映机关事业单位实施养老保险制度由单位实际缴纳的职业年金支出（含职业年金补记支出）。 26.卫生健康支出（类）行政事业单位医疗（款）事业单位医疗（项）：指反映财政部门安排的事业单位基本医疗保险缴费经费，未参加医疗保险的事业单位的公费医疗经费，按国家规定享受离休人员待遇的医疗经费。 27.卫生健康支出（类）行政事业单位医疗（款）公务员医疗补助（项）：指反映财政部门安排的公务员医疗补助经费。 28.住房保障支出（类）住房改革支出（款）住房公积金（项）：指反映行政事业单位按人力资源和社会保障部、财政部规定的基本工资和津贴补贴以及规定比例为职工缴纳的住房公积金。 29.其他支出（类）其他政府性基金及对应专项债务收人安排的支出（款）其他政府性基金安排的支出（项）：指反映其他政府性基金安排的支出(包括用以前年度欠款收人安排的支出)。 30.其他支出（类）其他政府性基金及对应专项债务收入安排的支出（款）其他地方自行试点项目收益专项债券收入安排的支出（项）：指反映其他地方自行试点项目收益专项债券收入安排的支出
A79: 泰顺县中小学综合实践基地 | C79: =(SUMIF(#REF!,A79,#REF!)+SUMIF(#REF!,A79,#REF!))*10000 ->  | D79: =(SUMIF(#REF!,A79,#REF!)+SUMIF(#REF!,A79,#REF!))*10000 ->  | E79: =SUMIF(INDIRECT("参考数据!$E:$E"),核对!A79,INDIRECT("参考数据!$C:$C")) -> 10211294.23 | G79: 17.教育支出（类）普通教育（款）初中教育（项）：指反映各部门举办的初中教育支出。政府各部门对社会组织等举办的初中的资助，如捐赠、补贴等，也在本科目中反映。 18.教育支出（类）普通教育（款）其他普通教育支出（项）：指反映除上述项目以外其他用于普通教育方面的支出。 19.科学技术支出（类）科学技术普及（款）其他科学技术普及支出（项）：指反映除上述项目以外其他用于科学技术普及方面的支出。 20.社会保障和就业支出（类）人力资源和社会保障管理事务（款）其他人力资源和社会保障管理事务支出（项）：指反映除上述项目以外其他用于人力资源和社会保障管理事务方面的支出。 21.社会保障和就业支出（类）行政事业单位养老支出（款）事业单位离退休（项）：指反映事业单位开支的离退休经费。 22.社会保障和就业支出（类）行政事业单位养老支出（款）机关事业单位基本养老保险缴费支出（项）：指反映机关事业单位实施养老保险制度由单位缴纳的基本养老保险费支出。 23.社会保障和就业支出（类）行政事业单位养老支出（款）机关事业单位职业年金缴费支出（项）：指反映机关事业单位实施养老保险制度由单位实际缴纳的职业年金支出（含职业年金补记支出）。 24.卫生健康支出（类）行政事业单位医疗（款）事业单位医疗（项）：指反映财政部门安排的事业单位基本医疗保险缴费经费，未参加医疗保险的事业单位的公费医疗经费，按国家规定享受离休人员待遇的医疗经费。 25.卫生健康支出（类）行政事业单位医疗（款）公务员医疗补助（项）：指反映财政部门安排的公务员医疗补助经费。 26.住房保障支出（类）住房改革支出（款）住房公积金（项）：指反映行政事业单位按人力资源和社会保障部、财政部规定的基本工资和津贴补贴以及规定比例为职工缴纳的住房公积金。 27.其他支出（类）其他政府性基金及对应专项债务收人安排的支出（款）其他政府性基金安排的支出（项）：指反映其他政府性基金安排的支出(包括用以前年度欠款收人安排的支出)。
A80: 泰顺县中心幼儿园 | C80: =(SUMIF(#REF!,A80,#REF!)+SUMIF(#REF!,A80,#REF!))*10000 ->  | D80: =(SUMIF(#REF!,A80,#REF!)+SUMIF(#REF!,A80,#REF!))*10000 ->  | E80: =SUMIF(INDIRECT("参考数据!$E:$E"),核对!A80,INDIRECT("参考数据!$C:$C")) -> 2785551.14 | G80: 17.教育支出（类）普通教育（款）学前教育（项）：指反映各部门举办的学前教育支出。政府各部门对社会组织等举办的幼儿园的资助，如各类捐赠、补贴等，也在本科目反映。 18.教育支出（类）教育费附加安排的支出（款）其他教育费附加安排的支出（项）：指反映除上述项目以外的教育费附加支出。 19.科学技术支出（类）其他科学技术支出（款）其他科学技术支出（项）：指反映其他科学技术支出中除以上各项外用于科技方面的支出。 20.社会保障和就业支出（类）行政事业单位养老支出（款）机关事业单位基本养老保险缴费支出（项）：指反映机关事业单位实施养老保险制度由单位缴纳的基本养老保险费支出。 21.社会保障和就业支出（类）行政事业单位养老支出（款）机关事业单位职业年金缴费支出（项）：指反映机关事业单位实施养老保险制度由单位实际缴纳的职业年金支出（含职业年金补记支出）。 22.卫生健康支出（类）行政事业单位医疗（款）事业单位医疗（项）：指反映财政部门安排的事业单位基本医疗保险缴费经费，未参加医疗保险的事业单位的公费医疗经费，按国家规定享受离休人员待遇的医疗经费。 23.卫生健康支出（类）行政事业单位医疗（款）公务员医疗补助（项）：指反映财政部门安排的公务员医疗补助经费。 24.住房保障支出（类）住房改革支出（款）住房公积金（项）：指反映行政事业单位按人力资源和社会保障部、财政部规定的基本工资和津贴补贴以及规定比例为职工缴纳的住房公积金。 25.其他支出（类）其他政府性基金及对应专项债务收人安排的支出（款）其他政府性基金安排的支出（项）：指反映其他政府性基金安排的支出(包括用以前年度欠款收人安排的支出)。
A81: 学军中学附属泰顺实验学校 | C81: =(SUMIF(#REF!,A81,#REF!)+SUMIF(#REF!,A81,#REF!))*10000 ->  | D81: =(SUMIF(#REF!,A81,#REF!)+SUMIF(#REF!,A81,#REF!))*10000 ->  | E81: =SUMIF(INDIRECT("参考数据!$E:$E"),核对!A81,INDIRECT("参考数据!$C:$C")) -> 7584117.98 | G81: 17.教育支出（类）普通教育（款）初中教育（项）：指反映各部门举办的初中教育支出。政府各部门对社会组织等举办的初中的资助，如捐赠、补贴等，也在本科目中反映。 18.教育支出（类）普通教育（款）其他普通教育支出（项）：指反映除上述项目以外其他用于普通教育方面的支出。 19.教育支出（类）教育费附加安排的支出（款）其他教育费附加安排的支出（项）：指反映除上述项目以外的教育费附加支出。 20.社会保障和就业支出（类）行政事业单位养老支出（款）机关事业单位基本养老保险缴费支出（项）：指反映机关事业单位实施养老保险制度由单位缴纳的基本养老保险费支出。 21.社会保障和就业支出（类）行政事业单位养老支出（款）机关事业单位职业年金缴费支出（项）：指反映机关事业单位实施养老保险制度由单位实际缴纳的职业年金支出（含职业年金补记支出）。 22.卫生健康支出（类）行政事业单位医疗（款）事业单位医疗（项）：指反映财政部门安排的事业单位基本医疗保险缴费经费，未参加医疗保险的事业单位的公费医疗经费，按国家规定享受离休人员待遇的医疗经费。 23.卫生健康支出（类）行政事业单位医疗（款）公务员医疗补助（项）：指反映财政部门安排的公务员医疗补助经费。 24.住房保障支出（类）住房改革支出（款）住房公积金（项）：指反映行政事业单位按人力资源和社会保障部、财政部规定的基本工资和津贴补贴以及规定比例为职工缴纳的住房公积金。 25.其他支出（类）其他政府性基金及对应专项债务收人安排的支出（款）其他政府性基金安排的支出（项）：指反映其他政府性基金安排的支出(包括用以前年度欠款收人安排的支出)。
A82: 浙江开放大学泰顺学院 | C82: =(SUMIF(#REF!,A82,#REF!)+SUMIF(#REF!,A82,#REF!))*10000 ->  | D82: =(SUMIF(#REF!,A82,#REF!)+SUMIF(#REF!,A82,#REF!))*10000 ->  | E82: =SUMIF(INDIRECT("参考数据!$E:$E"),核对!A82,INDIRECT("参考数据!$C:$C")) -> 3548843.29 | G82: 17.教育支出（类）普通教育（款）其他普通教育支出（项）：指反映除上述项目以外其他用于普通教育方面的支出。 18.教育支出（类）成人教育（款）成人高等教育（项）：指反映各部门举办函授、夜大、高等教育自学考试等方面的支出。 19.教育支出（类）成人教育（款）其他成人教育支出（项）：指反映除上述项目以外其他用于成人教育方面的支出。 20.教育支出（类）教育费附加安排的支出（款）其他教育费附加安排的支出（项）：指反映除上述项目以外的教育费附加支出。 21.科学技术支出（类）其他科学技术支出（款）其他科学技术支出（项）：指反映其他科学技术支出中除以上各项外用于科技方面的支出。 22.社会保障和就业支出（类）人力资源和社会保障管理事务（款）其他人力资源和社会保障管理事务支出（项）：指反映除上述项目以外其他用于人力资源和社会保障管理事务方面的支出。 23.社会保障和就业支出（类）行政事业单位养老支出（款）事业单位离退休（项）：指反映事业单位开支的离退休经费。 24.社会保障和就业支出（类）行政事业单位养老支出（款）机关事业单位基本养老保险缴费支出（项）：指反映机关事业单位实施养老保险制度由单位缴纳的基本养老保险费支出。 25.社会保障和就业支出（类）行政事业单位养老支出（款）机关事业单位职业年金缴费支出（项）：指反映机关事业单位实施养老保险制度由单位实际缴纳的职业年金支出（含职业年金补记支出）。 26.卫生健康支出（类）行政事业单位医疗（款）事业单位医疗（项）：指反映财政部门安排的事业单位基本医疗保险缴费经费，未参加医疗保险的事业单位的公费医疗经费，按国家规定享受离休人员待遇的医疗经费。 27.卫生健康支出（类）行政事业单位医疗（款）公务员医疗补助（项）：指反映财政部门安排的公务员医疗补助经费。 28.住房保障支出（类）住房改革支出（款）住房公积金（项）：指反映行政事业单位按人力资源和社会保障部、财政部规定的基本工资和津贴补贴以及规定比例为职工缴纳的住房公积金。 29.其他支出（类）其他政府性基金及对应专项债务收人安排的支出（款）其他政府性基金安排的支出（项）：指反映其他政府性基金安排的支出(包括用以前年度欠款收人安排的支出)。
A83: 浙江省泰顺县第二中学 | C83: =(SUMIF(#REF!,A83,#REF!)+SUMIF(#REF!,A83,#REF!))*10000 ->  | D83: =(SUMIF(#REF!,A83,#REF!)+SUMIF(#REF!,A83,#REF!))*10000 ->  | E83: =SUMIF(INDIRECT("参考数据!$E:$E"),核对!A83,INDIRECT("参考数据!$C:$C")) -> 15656285.25 | G83: 17.教育支出（类）普通教育（款）初中教育（项）：指反映各部门举办的初中教育支出。政府各部门对社会组织等举办的初中的资助，如捐赠、补贴等，也在本科目中反映。 18.教育支出（类）普通教育（款）其他普通教育支出（项）：指反映除上述项目以外其他用于普通教育方面的支出。 19.教育支出（类）教育费附加安排的支出（款）其他教育费附加安排的支出（项）：指反映除上述项目以外的教育费附加支出。 20.科学技术支出（类）其他科学技术支出（款）其他科学技术支出（项）：指反映其他科学技术支出中除以上各项外用于科技方面的支出。 21.社会保障和就业支出（类）人力资源和社会保障管理事务（款）其他人力资源和社会保障管理事务支出（项）：指反映除上述项目以外其他用于人力资源和社会保障管理事务方面的支出。 22.社会保障和就业支出（类）行政事业单位养老支出（款）事业单位离退休（项）：指反映事业单位开支的离退休经费。 23.社会保障和就业支出（类）行政事业单位养老支出（款）机关事业单位基本养老保险缴费支出（项）：指反映机关事业单位实施养老保险制度由单位缴纳的基本养老保险费支出。 24.社会保障和就业支出（类）行政事业单位养老支出（款）机关事业单位职业年金缴费支出（项）：指反映机关事业单位实施养老保险制度由单位实际缴纳的职业年金支出（含职业年金补记支出）。 25.卫生健康支出（类）行政事业单位医疗（款）事业单位医疗（项）：指反映财政部门安排的事业单位基本医疗保险缴费经费，未参加医疗保险的事业单位的公费医疗经费，按国家规定享受离休人员待遇的医疗经费。 26.卫生健康支出（类）行政事业单位医疗（款）公务员医疗补助（项）：指反映财政部门安排的公务员医疗补助经费。 27.住房保障支出（类）住房改革支出（款）住房公积金（项）：指反映行政事业单位按人力资源和社会保障部、财政部规定的基本工资和津贴补贴以及规定比例为职工缴纳的住房公积金。 28.其他支出（类）其他政府性基金及对应专项债务收人安排的支出（款）其他政府性基金安排的支出（项）：指反映其他政府性基金安排的支出(包括用以前年度欠款收人安排的支出)。
A84: 浙江省泰顺县第三中学 | C84: =(SUMIF(#REF!,A84,#REF!)+SUMIF(#REF!,A84,#REF!))*10000 ->  | D84: =(SUMIF(#REF!,A84,#REF!)+SUMIF(#REF!,A84,#REF!))*10000 ->  | E84: =SUMIF(INDIRECT("参考数据!$E:$E"),核对!A84,INDIRECT("参考数据!$C:$C")) -> 14533171.08 | G84: 17.教育支出（类）普通教育（款）初中教育（项）：指反映各部门举办的初中教育支出。政府各部门对社会组织等举办的初中的资助，如捐赠、补贴等，也在本科目中反映。 18.教育支出（类）普通教育（款）其他普通教育支出（项）：指反映除上述项目以外其他用于普通教育方面的支出。 19.科学技术支出（类）其他科学技术支出（款）其他科学技术支出（项）：指反映其他科学技术支出中除以上各项外用于科技方面的支出。 20.社会保障和就业支出（类）人力资源和社会保障管理事务（款）其他人力资源和社会保障管理事务支出（项）：指反映除上述项目以外其他用于人力资源和社会保障管理事务方面的支出。 21.社会保障和就业支出（类）行政事业单位养老支出（款）事业单位离退休（项）：指反映事业单位开支的离退休经费。 22.社会保障和就业支出（类）行政事业单位养老支出（款）机关事业单位基本养老保险缴费支出（项）：指反映机关事业单位实施养老保险制度由单位缴纳的基本养老保险费支出。 23.社会保障和就业支出（类）行政事业单位养老支出（款）机关事业单位职业年金缴费支出（项）：指反映机关事业单位实施养老保险制度由单位实际缴纳的职业年金支出（含职业年金补记支出）。 24.卫生健康支出（类）行政事业单位医疗（款）事业单位医疗（项）：指反映财政部门安排的事业单位基本医疗保险缴费经费，未参加医疗保险的事业单位的公费医疗经费，按国家规定享受离休人员待遇的医疗经费。 25.卫生健康支出（类）行政事业单位医疗（款）公务员医疗补助（项）：指反映财政部门安排的公务员医疗补助经费。 26.住房保障支出（类）住房改革支出（款）住房公积金（项）：指反映行政事业单位按人力资源和社会保障部、财政部规定的基本工资和津贴补贴以及规定比例为职工缴纳的住房公积金。 27.其他支出（类）其他政府性基金及对应专项债务收人安排的支出（款）其他政府性基金安排的支出（项）：指反映其他政府性基金安排的支出(包括用以前年度欠款收人安排的支出)。
A85: 浙江省泰顺县第四中学 | C85: =(SUMIF(#REF!,A85,#REF!)+SUMIF(#REF!,A85,#REF!))*10000 ->  | D85: =(SUMIF(#REF!,A85,#REF!)+SUMIF(#REF!,A85,#REF!))*10000 ->  | E85: =SUMIF(INDIRECT("参考数据!$E:$E"),核对!A85,INDIRECT("参考数据!$C:$C")) -> 9020226.51 | G85: 17.教育支出（类）普通教育（款）初中教育（项）：指反映各部门举办的初中教育支出。政府各部门对社会组织等举办的初中的资助，如捐赠、补贴等，也在本科目中反映。 18.教育支出（类）普通教育（款）其他普通教育支出（项）：指反映除上述项目以外其他用于普通教育方面的支出。 19.教育支出（类）教育费附加安排的支出（款）其他教育费附加安排的支出（项）：指反映除上述项目以外的教育费附加支出。 20.科学技术支出（类）其他科学技术支出（款）其他科学技术支出（项）：指反映其他科学技术支出中除以上各项外用于科技方面的支出。 21.社会保障和就业支出（类）人力资源和社会保障管理事务（款）其他人力资源和社会保障管理事务支出（项）：指反映除上述项目以外其他用于人力资源和社会保障管理事务方面的支出。 22.社会保障和就业支出（类）行政事业单位养老支出（款）事业单位离退休（项）：指反映事业单位开支的离退休经费。 23.社会保障和就业支出（类）行政事业单位养老支出（款）机关事业单位基本养老保险缴费支出（项）：指反映机关事业单位实施养老保险制度由单位缴纳的基本养老保险费支出。 24.社会保障和就业支出（类）行政事业单位养老支出（款）机关事业单位职业年金缴费支出（项）：指反映机关事业单位实施养老保险制度由单位实际缴纳的职业年金支出（含职业年金补记支出）。 25.卫生健康支出（类）行政事业单位医疗（款）事业单位医疗（项）：指反映财政部门安排的事业单位基本医疗保险缴费经费，未参加医疗保险的事业单位的公费医疗经费，按国家规定享受离休人员待遇的医疗经费。 26.卫生健康支出（类）行政事业单位医疗（款）公务员医疗补助（项）：指反映财政部门安排的公务员医疗补助经费。 27.住房保障支出（类）住房改革支出（款）住房公积金（项）：指反映行政事业单位按人力资源和社会保障部、财政部规定的基本工资和津贴补贴以及规定比例为职工缴纳的住房公积金。 28.其他支出（类）其他政府性基金及对应专项债务收人安排的支出（款）其他政府性基金安排的支出（项）：指反映其他政府性基金安排的支出(包括用以前年度欠款收人安排的支出)。
A86: 浙江省泰顺中学 | C86: =(SUMIF(#REF!,A86,#REF!)+SUMIF(#REF!,A86,#REF!))*10000 ->  | D86: =(SUMIF(#REF!,A86,#REF!)+SUMIF(#REF!,A86,#REF!))*10000 ->  | E86: =SUMIF(INDIRECT("参考数据!$E:$E"),核对!A86,INDIRECT("参考数据!$C:$C")) -> 45909969.05 | G86: 17.教育支出（类）普通教育（款）高中教育（项）：指反映各部门举办的普通高中教育支出。政府各部门对社会组织等举办的普通高中的资助，如捐赠、补贴等，也在本科目中反映。 18.教育支出（类）普通教育（款）其他普通教育支出（项）：指反映除上述项目以外其他用于普通教育方面的支出。 19.教育支出（类）教育费附加安排的支出（款）其他教育费附加安排的支出（项）：指反映除上述项目以外的教育费附加支出。 20.科学技术支出（类）其他科学技术支出（款）其他科学技术支出（项）：指反映其他科学技术支出中除以上各项外用于科技方面的支出。 21.社会保障和就业支出（类）人力资源和社会保障管理事务（款）其他人力资源和社会保障管理事务支出（项）：指反映除上述项目以外其他用于人力资源和社会保障管理事务方面的支出。 22.社会保障和就业支出（类）行政事业单位养老支出（款）事业单位离退休（项）：指反映事业单位开支的离退休经费。 23.社会保障和就业支出（类）行政事业单位养老支出（款）机关事业单位基本养老保险缴费支出（项）：指反映机关事业单位实施养老保险制度由单位缴纳的基本养老保险费支出。 24.社会保障和就业支出（类）行政事业单位养老支出（款）机关事业单位职业年金缴费支出（项）：指反映机关事业单位实施养老保险制度由单位实际缴纳的职业年金支出（含职业年金补记支出）。 25.卫生健康支出（类）行政事业单位医疗（款）事业单位医疗（项）：指反映财政部门安排的事业单位基本医疗保险缴费经费，未参加医疗保险的事业单位的公费医疗经费，按国家规定享受离休人员待遇的医疗经费。 26.卫生健康支出（类）行政事业单位医疗（款）公务员医疗补助（项）：指反映财政部门安排的公务员医疗补助经费。 27.住房保障支出（类）住房改革支出（款）住房公积金（项）：指反映行政事业单位按人力资源和社会保障部、财政部规定的基本工资和津贴补贴以及规定比例为职工缴纳的住房公积金。 28.其他支出（类）其他政府性基金及对应专项债务收人安排的支出（款）其他政府性基金安排的支出（项）：指反映其他政府性基金安排的支出(包括用以前年度欠款收人安排的支出)。

Sheet 名词解释(按单位） (hidden)
A2: 2050201 | B2: 学前教育 | C2: 泰顺县包垟乡幼儿园 | D2: =" "&(16+COUNTIF($C$2:$C2,C2))&"."&VLOOKUP(A2,#REF!,5,0) -> 
A3: 2050999 | B3: 其他教育费附加安排的支出 | C3: 泰顺县包垟乡幼儿园 | D3: =" "&(16+COUNTIF($C$2:$C3,C3))&"."&VLOOKUP(A3,#REF!,5,0) -> 
A4: 2080505 | B4: 机关事业单位基本养老保险缴费支出 | C4: 泰顺县包垟乡幼儿园 | D4: =" "&(16+COUNTIF($C$2:$C4,C4))&"."&VLOOKUP(A4,#REF!,5,0) -> 
A5: 2080506 | B5: 机关事业单位职业年金缴费支出 | C5: 泰顺县包垟乡幼儿园 | D5: =" "&(16+COUNTIF($C$2:$C5,C5))&"."&VLOOKUP(A5,#REF!,5,0) -> 
A6: 2101102 | B6: 事业单位医疗 | C6: 泰顺县包垟乡幼儿园 | D6: =" "&(16+COUNTIF($C$2:$C6,C6))&"."&VLOOKUP(A6,#REF!,5,0) -> 
A7: 2101103 | B7: 公务员医疗补助 | C7: 泰顺县包垟乡幼儿园 | D7: =" "&(16+COUNTIF($C$2:$C7,C7))&"."&VLOOKUP(A7,#REF!,5,0) -> 
A8: 2210201 | B8: 住房公积金 | C8: 泰顺县包垟乡幼儿园 | D8: =" "&(16+COUNTIF($C$2:$C8,C8))&"."&VLOOKUP(A8,#REF!,5,0) -> 
A9: 2290401 | B9: 其他政府性基金安排的支出 | C9: 泰顺县包垟乡幼儿园 | D9: =" "&(16+COUNTIF($C$2:$C9,C9))&"."&VLOOKUP(A9,#REF!,5,0) -> 
A10: 2050202 | B10: 小学教育 | C10: 泰顺县包垟乡中心学校 | D10: =" "&(16+COUNTIF($C$2:$C10,C10))&"."&VLOOKUP(A10,#REF!,5,0) -> 
A11: 2050299 | B11: 其他普通教育支出 | C11: 泰顺县包垟乡中心学校 | D11: =" "&(16+COUNTIF($C$2:$C11,C11))&"."&VLOOKUP(A11,#REF!,5,0) -> 
A12: 2050999 | B12: 其他教育费附加安排的支出 | C12: 泰顺县包垟乡中心学校 | D12: =" "&(16+COUNTIF($C$2:$C12,C12))&"."&VLOOKUP(A12,#REF!,5,0) -> 
A13: 2069999 | B13: 其他科学技术支出 | C13: 泰顺县包垟乡中心学校 | D13: =" "&(16+COUNTIF($C$2:$C13,C13))&"."&VLOOKUP(A13,#REF!,5,0) -> 
A14: 2079999 | B14: 其他文化旅游体育与传媒支出 | C14: 泰顺县包垟乡中心学校 | D14: =" "&(16+COUNTIF($C$2:$C14,C14))&"."&VLOOKUP(A14,#REF!,5,0) -> 
A15: 2080199 | B15: 其他人力资源和社会保障管理事务支出 | C15: 泰顺县包垟乡中心学校 | D15: =" "&(16+COUNTIF($C$2:$C15,C15))&"."&VLOOKUP(A15,#REF!,5,0) -> 
A16: 2080502 | B16: 事业单位离退休 | C16: 泰顺县包垟乡中心学校 | D16: =" "&(16+COUNTIF($C$2:$C16,C16))&"."&VLOOKUP(A16,#REF!,5,0) -> 
A17: 2080505 | B17: 机关事业单位基本养老保险缴费支出 | C17: 泰顺县包垟乡中心学校 | D17: =" "&(16+COUNTIF($C$2:$C17,C17))&"."&VLOOKUP(A17,#REF!,5,0) -> 
A18: 2080506 | B18: 机关事业单位职业年金缴费支出 | C18: 泰顺县包垟乡中心学校 | D18: =" "&(16+COUNTIF($C$2:$C18,C18))&"."&VLOOKUP(A18,#REF!,5,0) -> 
A19: 2101102 | B19: 事业单位医疗 | C19: 泰顺县包垟乡中心学校 | D19: =" "&(16+COUNTIF($C$2:$C19,C19))&"."&VLOOKUP(A19,#REF!,5,0) -> 
A20: 2101103 | B20: 公务员医疗补助 | C20: 泰顺县包垟乡中心学校 | D20: =" "&(16+COUNTIF($C$2:$C20,C20))&"."&VLOOKUP(A20,#REF!,5,0) -> 
A21: 2210201 | B21: 住房公积金 | C21: 泰顺县包垟乡中心学校 | D21: =" "&(16+COUNTIF($C$2:$C21,C21))&"."&VLOOKUP(A21,#REF!,5,0) -> 
A22: 2290401 | B22: 其他政府性基金安排的支出 | C22: 泰顺县包垟乡中心学校 | D22: =" "&(16+COUNTIF($C$2:$C22,C22))&"."&VLOOKUP(A22,#REF!,5,0) -> 
A23: 2050202 | B23: 小学教育 | C23: 泰顺县北辰学校 | D23: =" "&(16+COUNTIF($C$2:$C23,C23))&"."&VLOOKUP(A23,#REF!,5,0) -> 
A24: 2050203 | B24: 初中教育 | C24: 泰顺县北辰学校 | D24: =" "&(16+COUNTIF($C$2:$C24,C24))&"."&VLOOKUP(A24,#REF!,5,0) -> 
A25: 2050299 | B25: 其他普通教育支出 | C25: 泰顺县北辰学校 | D25: =" "&(16+COUNTIF($C$2:$C25,C25))&"."&VLOOKUP(A25,#REF!,5,0) -> 
A26: 2069999 | B26: 其他科学技术支出 | C26: 泰顺县北辰学校 | D26: =" "&(16+COUNTIF($C$2:$C26,C26))&"."&VLOOKUP(A26,#REF!,5,0) -> 
A27: 2080505 | B27: 机关事业单位基本养老保险缴费支出 | C27: 泰顺县北辰学校 | D27: =" "&(16+COUNTIF($C$2:$C27,C27))&"."&VLOOKUP(A27,#REF!,5,0) -> 
A28: 2080506 | B28: 机关事业单位职业年金缴费支出 | C28: 泰顺县北辰学校 | D28: =" "&(16+COUNTIF($C$2:$C28,C28))&"."&VLOOKUP(A28,#REF!,5,0) -> 
A29: 2101102 | B29: 事业单位医疗 | C29: 泰顺县北辰学校 | D29: =" "&(16+COUNTIF($C$2:$C29,C29))&"."&VLOOKUP(A29,#REF!,5,0) -> 
A30: 2101103 | B30: 公务员医疗补助 | C30: 泰顺县北辰学校 | D30: =" "&(16+COUNTIF($C$2:$C30,C30))&"."&VLOOKUP(A30,#REF!,5,0) -> 
A31: 2210201 | B31: 住房公积金 | C31: 泰顺县北辰学校 | D31: =" "&(16+COUNTIF($C$2:$C31,C31))&"."&VLOOKUP(A31,#REF!,5,0) -> 
A32: 2290401 | B32: 其他政府性基金安排的支出 | C32: 泰顺县北辰学校 | D32: =" "&(16+COUNTIF($C$2:$C32,C32))&"."&VLOOKUP(A32,#REF!,5,0) -> 
A33: 2050201 | B33: 学前教育 | C33: 泰顺县北辰幼儿园 | D33: =" "&(16+COUNTIF($C$2:$C33,C33))&"."&VLOOKUP(A33,#REF!,5,0) -> 
A34: 2050999 | B34: 其他教育费附加安排的支出 | C34: 泰顺县北辰幼儿园 | D34: =" "&(16+COUNTIF($C$2:$C34,C34))&"."&VLOOKUP(A34,#REF!,5,0) -> 
A35: 2080505 | B35: 机关事业单位基本养老保险缴费支出 | C35: 泰顺县北辰幼儿园 | D35: =" "&(16+COUNTIF($C$2:$C35,C35))&"."&VLOOKUP(A35,#REF!,5,0) -> 
A36: 2080506 | B36: 机关事业单位职业年金缴费支出 | C36: 泰顺县北辰幼儿园 | D36: =" "&(16+COUNTIF($C$2:$C36,C36))&"."&VLOOKUP(A36,#REF!,5,0) -> 
A37: 2101102 | B37: 事业单位医疗 | C37: 泰顺县北辰幼儿园 | D37: =" "&(16+COUNTIF($C$2:$C37,C37))&"."&VLOOKUP(A37,#REF!,5,0) -> 
A38: 2101103 | B38: 公务员医疗补助 | C38: 泰顺县北辰幼儿园 | D38: =" "&(16+COUNTIF($C$2:$C38,C38))&"."&VLOOKUP(A38,#REF!,5,0) -> 
A39: 2210201 | B39: 住房公积金 | C39: 泰顺县北辰幼儿园 | D39: =" "&(16+COUNTIF($C$2:$C39,C39))&"."&VLOOKUP(A39,#REF!,5,0) -> 
A40: 2290401 | B40: 其他政府性基金安排的支出 | C40: 泰顺县北辰幼儿园 | D40: =" "&(16+COUNTIF($C$2:$C40,C40))&"."&VLOOKUP(A40,#REF!,5,0) -> 
A41: 2050204 | B41: 高中教育 | C41: 泰顺县城关中学 | D41: =" "&(16+COUNTIF($C$2:$C41,C41))&"."&VLOOKUP(A41,#REF!,5,0) -> 
A42: 2050299 | B42: 其他普通教育支出 | C42: 泰顺县城关中学 | D42: =" "&(16+COUNTIF($C$2:$C42,C42))&"."&VLOOKUP(A42,#REF!,5,0) -> 
A43: 2050999 | B43: 其他教育费附加安排的支出 | C43: 泰顺县城关中学 | D43: =" "&(16+COUNTIF($C$2:$C43,C43))&"."&VLOOKUP(A43,#REF!,5,0) -> 
A44: 2069999 | B44: 其他科学技术支出 | C44: 泰顺县城关中学 | D44: =" "&(16+COUNTIF($C$2:$C44,C44))&"."&VLOOKUP(A44,#REF!,5,0) -> 
A45: 2080199 | B45: 其他人力资源和社会保障管理事务支出 | C45: 泰顺县城关中学 | D45: =" "&(16+COUNTIF($C$2:$C45,C45))&"."&VLOOKUP(A45,#REF!,5,0) -> 
A46: 2080502 | B46: 事业单位离退休 | C46: 泰顺县城关中学 | D46: =" "&(16+COUNTIF($C$2:$C46,C46))&"."&VLOOKUP(A46,#REF!,5,0) -> 
A47: 2080505 | B47: 机关事业单位基本养老保险缴费支出 | C47: 泰顺县城关中学 | D47: =" "&(16+COUNTIF($C$2:$C47,C47))&"."&VLOOKUP(A47,#REF!,5,0) -> 
A48: 2080506 | B48: 机关事业单位职业年金缴费支出 | C48: 泰顺县城关中学 | D48: =" "&(16+COUNTIF($C$2:$C48,C48))&"."&VLOOKUP(A48,#REF!,5,0) -> 
A49: 2101102 | B49: 事业单位医疗 | C49: 泰顺县城关中学 | D49: =" "&(16+COUNTIF($C$2:$C49,C49))&"."&VLOOKUP(A49,#REF!,5,0) -> 
A50: 2101103 | B50: 公务员医疗补助 | C50: 泰顺县城关中学 | D50: =" "&(16+COUNTIF($C$2:$C50,C50))&"."&VLOOKUP(A50,#REF!,5,0) -> 
A51: 2210201 | B51: 住房公积金 | C51: 泰顺县城关中学 | D51: =" "&(16+COUNTIF($C$2:$C51,C51))&"."&VLOOKUP(A51,#REF!,5,0) -> 
A52: 2290401 | B52: 其他政府性基金安排的支出 | C52: 泰顺县城关中学 | D52: =" "&(16+COUNTIF($C$2:$C52,C52))&"."&VLOOKUP(A52,#REF!,5,0) -> 
A53: 2050201 | B53: 学前教育 | C53: 泰顺县大安乡幼儿园 | D53: =" "&(16+COUNTIF($C$2:$C53,C53))&"."&VLOOKUP(A53,#REF!,5,0) -> 
A54: 2050999 | B54: 其他教育费附加安排的支出 | C54: 泰顺县大安乡幼儿园 | D54: =" "&(16+COUNTIF($C$2:$C54,C54))&"."&VLOOKUP(A54,#REF!,5,0) -> 
A55: 2080505 | B55: 机关事业单位基本养老保险缴费支出 | C55: 泰顺县大安乡幼儿园 | D55: =" "&(16+COUNTIF($C$2:$C55,C55))&"."&VLOOKUP(A55,#REF!,5,0) -> 
A56: 2080506 | B56: 机关事业单位职业年金缴费支出 | C56: 泰顺县大安乡幼儿园 | D56: =" "&(16+COUNTIF($C$2:$C56,C56))&"."&VLOOKUP(A56,#REF!,5,0) -> 
A57: 2101102 | B57: 事业单位医疗 | C57: 泰顺县大安乡幼儿园 | D57: =" "&(16+COUNTIF($C$2:$C57,C57))&"."&VLOOKUP(A57,#REF!,5,0) -> 
A58: 2101103 | B58: 公务员医疗补助 | C58: 泰顺县大安乡幼儿园 | D58: =" "&(16+COUNTIF($C$2:$C58,C58))&"."&VLOOKUP(A58,#REF!,5,0) -> 
A59: 2210201 | B59: 住房公积金 | C59: 泰顺县大安乡幼儿园 | D59: =" "&(16+COUNTIF($C$2:$C59,C59))&"."&VLOOKUP(A59,#REF!,5,0) -> 
A60: 2290401 | B60: 其他政府性基金安排的支出 | C60: 泰顺县大安乡幼儿园 | D60: =" "&(16+COUNTIF($C$2:$C60,C60))&"."&VLOOKUP(A60,#REF!,5,0) -> 
A61: 2050202 | B61: 小学教育 | C61: 泰顺县大安乡中心学校 | D61: =" "&(16+COUNTIF($C$2:$C61,C61))&"."&VLOOKUP(A61,#REF!,5,0) -> 
A62: 2050299 | B62: 其他普通教育支出 | C62: 泰顺县大安乡中心学校 | D62: =" "&(16+COUNTIF($C$2:$C62,C62))&"."&VLOOKUP(A62,#REF!,5,0) -> 
A63: 2050999 | B63: 其他教育费附加安排的支出 | C63: 泰顺县大安乡中心学校 | D63: =" "&(16+COUNTIF($C$2:$C63,C63))&"."&VLOOKUP(A63,#REF!,5,0) -> 
A64: 2069999 | B64: 其他科学技术支出 | C64: 泰顺县大安乡中心学校 | D64: =" "&(16+COUNTIF($C$2:$C64,C64))&"."&VLOOKUP(A64,#REF!,5,0) -> 
A65: 2079999 | B65: 其他文化旅游体育与传媒支出 | C65: 泰顺县大安乡中心学校 | D65: =" "&(16+COUNTIF($C$2:$C65,C65))&"."&VLOOKUP(A65,#REF!,5,0) -> 
A66: 2080199 | B66: 其他人力资源和社会保障管理事务支出 | C66: 泰顺县大安乡中心学校 | D66: =" "&(16+COUNTIF($C$2:$C66,C66))&"."&VLOOKUP(A66,#REF!,5,0) -> 
A67: 2080502 | B67: 事业单位离退休 | C67: 泰顺县大安乡中心学校 | D67: =" "&(16+COUNTIF($C$2:$C67,C67))&"."&VLOOKUP(A67,#REF!,5,0) -> 
A68: 2080505 | B68: 机关事业单位基本养老保险缴费支出 | C68: 泰顺县大安乡中心学校 | D68: =" "&(16+COUNTIF($C$2:$C68,C68))&"."&VLOOKUP(A68,#REF!,5,0) -> 
A69: 2080506 | B69: 机关事业单位职业年金缴费支出 | C69: 泰顺县大安乡中心学校 | D69: =" "&(16+COUNTIF($C$2:$C69,C69))&"."&VLOOKUP(A69,#REF!,5,0) -> 
A70: 2101102 | B70: 事业单位医疗 | C70: 泰顺县大安乡中心学校 | D70: =" "&(16+COUNTIF($C$2:$C70,C70))&"."&VLOOKUP(A70,#REF!,5,0) -> 
A71: 2101103 | B71: 公务员医疗补助 | C71: 泰顺县大安乡中心学校 | D71: =" "&(16+COUNTIF($C$2:$C71,C71))&"."&VLOOKUP(A71,#REF!,5,0) -> 
A72: 2210201 | B72: 住房公积金 | C72: 泰顺县大安乡中心学校 | D72: =" "&(16+COUNTIF($C$2:$C72,C72))&"."&VLOOKUP(A72,#REF!,5,0) -> 
A73: 2290401 | B73: 其他政府性基金安排的支出 | C73: 泰顺县大安乡中心学校 | D73: =" "&(16+COUNTIF($C$2:$C73,C73))&"."&VLOOKUP(A73,#REF!,5,0) -> 
A74: 2050203 | B74: 初中教育 | C74: 泰顺县第八中学 | D74: =" "&(16+COUNTIF($C$2:$C74,C74))&"."&VLOOKUP(A74,#REF!,5,0) -> 
A75: 2050299 | B75: 其他普通教育支出 | C75: 泰顺县第八中学 | D75: =" "&(16+COUNTIF($C$2:$C75,C75))&"."&VLOOKUP(A75,#REF!,5,0) -> 
A76: 2050999 | B76: 其他教育费附加安排的支出 | C76: 泰顺县第八中学 | D76: =" "&(16+COUNTIF($C$2:$C76,C76))&"."&VLOOKUP(A76,#REF!,5,0) -> 
A77: 2069999 | B77: 其他科学技术支出 | C77: 泰顺县第八中学 | D77: =" "&(16+COUNTIF($C$2:$C77,C77))&"."&VLOOKUP(A77,#REF!,5,0) -> 
A78: 2080199 | B78: 其他人力资源和社会保障管理事务支出 | C78: 泰顺县第八中学 | D78: =" "&(16+COUNTIF($C$2:$C78,C78))&"."&VLOOKUP(A78,#REF!,5,0) -> 
A79: 2080502 | B79: 事业单位离退休 | C79: 泰顺县第八中学 | D79: =" "&(16+COUNTIF($C$2:$C79,C79))&"."&VLOOKUP(A79,#REF!,5,0) -> 
A80: 2080505 | B80: 机关事业单位基本养老保险缴费支出 | C80: 泰顺县第八中学 | D80: =" "&(16+COUNTIF($C$2:$C80,C80))&"."&VLOOKUP(A80,#REF!,5,0) -> 
A81: 2080506 | B81: 机关事业单位职业年金缴费支出 | C81: 泰顺县第八中学 | D81: =" "&(16+COUNTIF($C$2:$C81,C81))&"."&VLOOKUP(A81,#REF!,5,0) -> 
A82: 2101102 | B82: 事业单位医疗 | C82: 泰顺县第八中学 | D82: =" "&(16+COUNTIF($C$2:$C82,C82))&"."&VLOOKUP(A82,#REF!,5,0) -> 
A83: 2101103 | B83: 公务员医疗补助 | C83: 泰顺县第八中学 | D83: =" "&(16+COUNTIF($C$2:$C83,C83))&"."&VLOOKUP(A83,#REF!,5,0) -> 
A84: 2210201 | B84: 住房公积金 | C84: 泰顺县第八中学 | D84: =" "&(16+COUNTIF($C$2:$C84,C84))&"."&VLOOKUP(A84,#REF!,5,0) -> 
A85: 2290401 | B85: 其他政府性基金安排的支出 | C85: 泰顺县第八中学 | D85: =" "&(16+COUNTIF($C$2:$C85,C85))&"."&VLOOKUP(A85,#REF!,5,0) -> 
A86: 2050202 | B86: 小学教育 | C86: 泰顺县第二实验小学 | D86: =" "&(16+COUNTIF($C$2:$C86,C86))&"."&VLOOKUP(A86,#REF!,5,0) -> 
A87: 2050299 | B87: 其他普通教育支出 | C87: 泰顺县第二实验小学 | D87: =" "&(16+COUNTIF($C$2:$C87,C87))&"."&VLOOKUP(A87,#REF!,5,0) -> 
A88: 2050999 | B88: 其他教育费附加安排的支出 | C88: 泰顺县第二实验小学 | D88: =" "&(16+COUNTIF($C$2:$C88,C88))&"."&VLOOKUP(A88,#REF!,5,0) -> 
A89: 2069999 | B89: 其他科学技术支出 | C89: 泰顺县第二实验小学 | D89: =" "&(16+COUNTIF($C$2:$C89,C89))&"."&VLOOKUP(A89,#REF!,5,0) -> 
A90: 2079999 | B90: 其他文化旅游体育与传媒支出 | C90: 泰顺县第二实验小学 | D90: =" "&(16+COUNTIF($C$2:$C90,C90))&"."&VLOOKUP(A90,#REF!,5,0) -> 
A91: 2080199 | B91: 其他人力资源和社会保障管理事务支出 | C91: 泰顺县第二实验小学 | D91: =" "&(16+COUNTIF($C$2:$C91,C91))&"."&VLOOKUP(A91,#REF!,5,0) -> 
A92: 2080502 | B92: 事业单位离退休 | C92: 泰顺县第二实验小学 | D92: =" "&(16+COUNTIF($C$2:$C92,C92))&"."&VLOOKUP(A92,#REF!,5,0) -> 
A93: 2080505 | B93: 机关事业单位基本养老保险缴费支出 | C93: 泰顺县第二实验小学 | D93: =" "&(16+COUNTIF($C$2:$C93,C93))&"."&VLOOKUP(A93,#REF!,5,0) -> 
A94: 2080506 | B94: 机关事业单位职业年金缴费支出 | C94: 泰顺县第二实验小学 | D94: =" "&(16+COUNTIF($C$2:$C94,C94))&"."&VLOOKUP(A94,#REF!,5,0) -> 
A95: 2101102 | B95: 事业单位医疗 | C95: 泰顺县第二实验小学 | D95: =" "&(16+COUNTIF($C$2:$C95,C95))&"."&VLOOKUP(A95,#REF!,5,0) -> 
A96: 2101103 | B96: 公务员医疗补助 | C96: 泰顺县第二实验小学 | D96: =" "&(16+COUNTIF($C$2:$C96,C96))&"."&VLOOKUP(A96,#REF!,5,0) -> 
A97: 2210201 | B97: 住房公积金 | C97: 泰顺县第二实验小学 | D97: =" "&(16+COUNTIF($C$2:$C97,C97))&"."&VLOOKUP(A97,#REF!,5,0) -> 
A98: 2290401 | B98: 其他政府性基金安排的支出 | C98: 泰顺县第二实验小学 | D98: =" "&(16+COUNTIF($C$2:$C98,C98))&"."&VLOOKUP(A98,#REF!,5,0) -> 
A99: 2050203 | B99: 初中教育 | C99: 泰顺县第六中学 | D99: =" "&(16+COUNTIF($C$2:$C99,C99))&"."&VLOOKUP(A99,#REF!,5,0) -> 
A100: 2050299 | B100: 其他普通教育支出 | C100: 泰顺县第六中学 | D100: =" "&(16+COUNTIF($C$2:$C100,C100))&"."&VLOOKUP(A100,#REF!,5,0) -> 
A101: 2050999 | B101: 其他教育费附加安排的支出 | C101: 泰顺县第六中学 | D101: =" "&(16+COUNTIF($C$2:$C101,C101))&"."&VLOOKUP(A101,#REF!,5,0) -> 
A102: 2069999 | B102: 其他科学技术支出 | C102: 泰顺县第六中学 | D102: =" "&(16+COUNTIF($C$2:$C102,C102))&"."&VLOOKUP(A102,#REF!,5,0) -> 
A103: 2080199 | B103: 其他人力资源和社会保障管理事务支出 | C103: 泰顺县第六中学 | D103: =" "&(16+COUNTIF($C$2:$C103,C103))&"."&VLOOKUP(A103,#REF!,5,0) -> 
A104: 2080502 | B104: 事业单位离退休 | C104: 泰顺县第六中学 | D104: =" "&(16+COUNTIF($C$2:$C104,C104))&"."&VLOOKUP(A104,#REF!,5,0) -> 
A105: 2080505 | B105: 机关事业单位基本养老保险缴费支出 | C105: 泰顺县第六中学 | D105: =" "&(16+COUNTIF($C$2:$C105,C105))&"."&VLOOKUP(A105,#REF!,5,0) -> 
A106: 2080506 | B106: 机关事业单位职业年金缴费支出 | C106: 泰顺县第六中学 | D106: =" "&(16+COUNTIF($C$2:$C106,C106))&"."&VLOOKUP(A106,#REF!,5,0) -> 
A107: 2101102 | B107: 事业单位医疗 | C107: 泰顺县第六中学 | D107: =" "&(16+COUNTIF($C$2:$C107,C107))&"."&VLOOKUP(A107,#REF!,5,0) -> 
A108: 2101103 | B108: 公务员医疗补助 | C108: 泰顺县第六中学 | D108: =" "&(16+COUNTIF($C$2:$C108,C108))&"."&VLOOKUP(A108,#REF!,5,0) -> 
A109: 2210201 | B109: 住房公积金 | C109: 泰顺县第六中学 | D109: =" "&(16+COUNTIF($C$2:$C109,C109))&"."&VLOOKUP(A109,#REF!,5,0) -> 
A110: 2290401 | B110: 其他政府性基金安排的支出 | C110: 泰顺县第六中学 | D110: =" "&(16+COUNTIF($C$2:$C110,C110))&"."&VLOOKUP(A110,#REF!,5,0) -> 
A111: 2296003 | B111: 用于体育事业的彩票公益金支出 | C111: 泰顺县第六中学 | D111: =" "&(16+COUNTIF($C$2:$C111,C111))&"."&VLOOKUP(A111,#REF!,5,0) -> 
A112: 2013299 | B112: 其他组织事务支出 | C112: 泰顺县第七中学 | D112: =" "&(16+COUNTIF($C$2:$C112,C112))&"."&VLOOKUP(A112,#REF!,5,0) -> 
A113: 2050203 | B113: 初中教育 | C113: 泰顺县第七中学 | D113: =" "&(16+COUNTIF($C$2:$C113,C113))&"."&VLOOKUP(A113,#REF!,5,0) -> 
A114: 2050299 | B114: 其他普通教育支出 | C114: 泰顺县第七中学 | D114: =" "&(16+COUNTIF($C$2:$C114,C114))&"."&VLOOKUP(A114,#REF!,5,0) -> 
A115: 2050999 | B115: 其他教育费附加安排的支出 | C115: 泰顺县第七中学 | D115: =" "&(16+COUNTIF($C$2:$C115,C115))&"."&VLOOKUP(A115,#REF!,5,0) -> 
A116: 2069999 | B116: 其他科学技术支出 | C116: 泰顺县第七中学 | D116: =" "&(16+COUNTIF($C$2:$C116,C116))&"."&VLOOKUP(A116,#REF!,5,0) -> 
A117: 2080199 | B117: 其他人力资源和社会保障管理事务支出 | C117: 泰顺县第七中学 | D117: =" "&(16+COUNTIF($C$2:$C117,C117))&"."&VLOOKUP(A117,#REF!,5,0) -> 
A118: 2080502 | B118: 事业单位离退休 | C118: 泰顺县第七中学 | D118: =" "&(16+COUNTIF($C$2:$C118,C118))&"."&VLOOKUP(A118,#REF!,5,0) -> 
A119: 2080505 | B119: 机关事业单位基本养老保险缴费支出 | C119: 泰顺县第七中学 | D119: =" "&(16+COUNTIF($C$2:$C119,C119))&"."&VLOOKUP(A119,#REF!,5,0) -> 
A120: 2080506 | B120: 机关事业单位职业年金缴费支出 | C120: 泰顺县第七中学 | D120: =" "&(16+COUNTIF($C$2:$C120,C120))&"."&VLOOKUP(A120,#REF!,5,0) -> 
A121: 2101102 | B121: 事业单位医疗 | C121: 泰顺县第七中学 | D121: =" "&(16+COUNTIF($C$2:$C121,C121))&"."&VLOOKUP(A121,#REF!,5,0) -> 
A122: 2101103 | B122: 公务员医疗补助 | C122: 泰顺县第七中学 | D122: =" "&(16+COUNTIF($C$2:$C122,C122))&"."&VLOOKUP(A122,#REF!,5,0) -> 
A123: 2210201 | B123: 住房公积金 | C123: 泰顺县第七中学 | D123: =" "&(16+COUNTIF($C$2:$C123,C123))&"."&VLOOKUP(A123,#REF!,5,0) -> 
A124: 2290401 | B124: 其他政府性基金安排的支出 | C124: 泰顺县第七中学 | D124: =" "&(16+COUNTIF($C$2:$C124,C124))&"."&VLOOKUP(A124,#REF!,5,0) -> 
A125: 2050202 | B125: 小学教育 | C125: 泰顺县第三实验小学 | D125: =" "&(16+COUNTIF($C$2:$C125,C125))&"."&VLOOKUP(A125,#REF!,5,0) -> 
A126: 2050299 | B126: 其他普通教育支出 | C126: 泰顺县第三实验小学 | D126: =" "&(16+COUNTIF($C$2:$C126,C126))&"."&VLOOKUP(A126,#REF!,5,0) -> 
A127: 2050999 | B127: 其他教育费附加安排的支出 | C127: 泰顺县第三实验小学 | D127: =" "&(16+COUNTIF($C$2:$C127,C127))&"."&VLOOKUP(A127,#REF!,5,0) -> 
A128: 2069999 | B128: 其他科学技术支出 | C128: 泰顺县第三实验小学 | D128: =" "&(16+COUNTIF($C$2:$C128,C128))&"."&VLOOKUP(A128,#REF!,5,0) -> 
A129: 2079999 | B129: 其他文化旅游体育与传媒支出 | C129: 泰顺县第三实验小学 | D129: =" "&(16+COUNTIF($C$2:$C129,C129))&"."&VLOOKUP(A129,#REF!,5,0) -> 
A130: 2080199 | B130: 其他人力资源和社会保障管理事务支出 | C130: 泰顺县第三实验小学 | D130: =" "&(16+COUNTIF($C$2:$C130,C130))&"."&VLOOKUP(A130,#REF!,5,0) -> 
A131: 2080502 | B131: 事业单位离退休 | C131: 泰顺县第三实验小学 | D131: =" "&(16+COUNTIF($C$2:$C131,C131))&"."&VLOOKUP(A131,#REF!,5,0) -> 
A132: 2080505 | B132: 机关事业单位基本养老保险缴费支出 | C132: 泰顺县第三实验小学 | D132: =" "&(16+COUNTIF($C$2:$C132,C132))&"."&VLOOKUP(A132,#REF!,5,0) -> 
A133: 2080506 | B133: 机关事业单位职业年金缴费支出 | C133: 泰顺县第三实验小学 | D133: =" "&(16+COUNTIF($C$2:$C133,C133))&"."&VLOOKUP(A133,#REF!,5,0) -> 
A134: 2101102 | B134: 事业单位医疗 | C134: 泰顺县第三实验小学 | D134: =" "&(16+COUNTIF($C$2:$C134,C134))&"."&VLOOKUP(A134,#REF!,5,0) -> 
A135: 2101103 | B135: 公务员医疗补助 | C135: 泰顺县第三实验小学 | D135: =" "&(16+COUNTIF($C$2:$C135,C135))&"."&VLOOKUP(A135,#REF!,5,0) -> 
A136: 2210201 | B136: 住房公积金 | C136: 泰顺县第三实验小学 | D136: =" "&(16+COUNTIF($C$2:$C136,C136))&"."&VLOOKUP(A136,#REF!,5,0) -> 
A137: 2290401 | B137: 其他政府性基金安排的支出 | C137: 泰顺县第三实验小学 | D137: =" "&(16+COUNTIF($C$2:$C137,C137))&"."&VLOOKUP(A137,#REF!,5,0) -> 
A138: 2050201 | B138: 学前教育 | C138: 泰顺县东溪乡幼儿园 | D138: =" "&(16+COUNTIF($C$2:$C138,C138))&"."&VLOOKUP(A138,#REF!,5,0) -> 
A139: 2050999 | B139: 其他教育费附加安排的支出 | C139: 泰顺县东溪乡幼儿园 | D139: =" "&(16+COUNTIF($C$2:$C139,C139))&"."&VLOOKUP(A139,#REF!,5,0) -> 
A140: 2080505 | B140: 机关事业单位基本养老保险缴费支出 | C140: 泰顺县东溪乡幼儿园 | D140: =" "&(16+COUNTIF($C$2:$C140,C140))&"."&VLOOKUP(A140,#REF!,5,0) -> 
A141: 2080506 | B141: 机关事业单位职业年金缴费支出 | C141: 泰顺县东溪乡幼儿园 | D141: =" "&(16+COUNTIF($C$2:$C141,C141))&"."&VLOOKUP(A141,#REF!,5,0) -> 
A142: 2101102 | B142: 事业单位医疗 | C142: 泰顺县东溪乡幼儿园 | D142: =" "&(16+COUNTIF($C$2:$C142,C142))&"."&VLOOKUP(A142,#REF!,5,0) -> 
A143: 2101103 | B143: 公务员医疗补助 | C143: 泰顺县东溪乡幼儿园 | D143: =" "&(16+COUNTIF($C$2:$C143,C143))&"."&VLOOKUP(A143,#REF!,5,0) -> 
A144: 2210201 | B144: 住房公积金 | C144: 泰顺县东溪乡幼儿园 | D144: =" "&(16+COUNTIF($C$2:$C144,C144))&"."&VLOOKUP(A144,#REF!,5,0) -> 
A145: 2290401 | B145: 其他政府性基金安排的支出 | C145: 泰顺县东溪乡幼儿园 | D145: =" "&(16+COUNTIF($C$2:$C145,C145))&"."&VLOOKUP(A145,#REF!,5,0) -> 
A146: 2050202 | B146: 小学教育 | C146: 泰顺县东溪乡中心小学 | D146: =" "&(16+COUNTIF($C$2:$C146,C146))&"."&VLOOKUP(A146,#REF!,5,0) -> 
A147: 2050299 | B147: 其他普通教育支出 | C147: 泰顺县东溪乡中心小学 | D147: =" "&(16+COUNTIF($C$2:$C147,C147))&"."&VLOOKUP(A147,#REF!,5,0) -> 
A148: 2050999 | B148: 其他教育费附加安排的支出 | C148: 泰顺县东溪乡中心小学 | D148: =" "&(16+COUNTIF($C$2:$C148,C148))&"."&VLOOKUP(A148,#REF!,5,0) -> 
A149: 2069999 | B149: 其他科学技术支出 | C149: 泰顺县东溪乡中心小学 | D149: =" "&(16+COUNTIF($C$2:$C149,C149))&"."&VLOOKUP(A149,#REF!,5,0) -> 
A150: 2079999 | B150: 其他文化旅游体育与传媒支出 | C150: 泰顺县东溪乡中心小学 | D150: =" "&(16+COUNTIF($C$2:$C150,C150))&"."&VLOOKUP(A150,#REF!,5,0) -> 
A151: 2080199 | B151: 其他人力资源和社会保障管理事务支出 | C151: 泰顺县东溪乡中心小学 | D151: =" "&(16+COUNTIF($C$2:$C151,C151))&"."&VLOOKUP(A151,#REF!,5,0) -> 
A152: 2080502 | B152: 事业单位离退休 | C152: 泰顺县东溪乡中心小学 | D152: =" "&(16+COUNTIF($C$2:$C152,C152))&"."&VLOOKUP(A152,#REF!,5,0) -> 
A153: 2080505 | B153: 机关事业单位基本养老保险缴费支出 | C153: 泰顺县东溪乡中心小学 | D153: =" "&(16+COUNTIF($C$2:$C153,C153))&"."&VLOOKUP(A153,#REF!,5,0) -> 
A154: 2080506 | B154: 机关事业单位职业年金缴费支出 | C154: 泰顺县东溪乡中心小学 | D154: =" "&(16+COUNTIF($C$2:$C154,C154))&"."&VLOOKUP(A154,#REF!,5,0) -> 
A155: 2101102 | B155: 事业单位医疗 | C155: 泰顺县东溪乡中心小学 | D155: =" "&(16+COUNTIF($C$2:$C155,C155))&"."&VLOOKUP(A155,#REF!,5,0) -> 
A156: 2101103 | B156: 公务员医疗补助 | C156: 泰顺县东溪乡中心小学 | D156: =" "&(16+COUNTIF($C$2:$C156,C156))&"."&VLOOKUP(A156,#REF!,5,0) -> 
A157: 2210201 | B157: 住房公积金 | C157: 泰顺县东溪乡中心小学 | D157: =" "&(16+COUNTIF($C$2:$C157,C157))&"."&VLOOKUP(A157,#REF!,5,0) -> 
A158: 2290401 | B158: 其他政府性基金安排的支出 | C158: 泰顺县东溪乡中心小学 | D158: =" "&(16+COUNTIF($C$2:$C158,C158))&"."&VLOOKUP(A158,#REF!,5,0) -> 
A159: 2050201 | B159: 学前教育 | C159: 泰顺县凤垟乡幼儿园 | D159: =" "&(16+COUNTIF($C$2:$C159,C159))&"."&VLOOKUP(A159,#REF!,5,0) -> 
A160: 2050299 | B160: 其他普通教育支出 | C160: 泰顺县凤垟乡幼儿园 | D160: =" "&(16+COUNTIF($C$2:$C160,C160))&"."&VLOOKUP(A160,#REF!,5,0) -> 
A161: 2050999 | B161: 其他教育费附加安排的支出 | C161: 泰顺县凤垟乡幼儿园 | D161: =" "&(16+COUNTIF($C$2:$C161,C161))&"."&VLOOKUP(A161,#REF!,5,0) -> 
A162: 2069999 | B162: 其他科学技术支出 | C162: 泰顺县凤垟乡幼儿园 | D162: =" "&(16+COUNTIF($C$2:$C162,C162))&"."&VLOOKUP(A162,#REF!,5,0) -> 
A163: 2080505 | B163: 机关事业单位基本养老保险缴费支出 | C163: 泰顺县凤垟乡幼儿园 | D163: =" "&(16+COUNTIF($C$2:$C163,C163))&"."&VLOOKUP(A163,#REF!,5,0) -> 
A164: 2080506 | B164: 机关事业单位职业年金缴费支出 | C164: 泰顺县凤垟乡幼儿园 | D164: =" "&(16+COUNTIF($C$2:$C164,C164))&"."&VLOOKUP(A164,#REF!,5,0) -> 
A165: 2101102 | B165: 事业单位医疗 | C165: 泰顺县凤垟乡幼儿园 | D165: =" "&(16+COUNTIF($C$2:$C165,C165))&"."&VLOOKUP(A165,#REF!,5,0) -> 
A166: 2101103 | B166: 公务员医疗补助 | C166: 泰顺县凤垟乡幼儿园 | D166: =" "&(16+COUNTIF($C$2:$C166,C166))&"."&VLOOKUP(A166,#REF!,5,0) -> 
A167: 2210201 | B167: 住房公积金 | C167: 泰顺县凤垟乡幼儿园 | D167: =" "&(16+COUNTIF($C$2:$C167,C167))&"."&VLOOKUP(A167,#REF!,5,0) -> 
A168: 2290401 | B168: 其他政府性基金安排的支出 | C168: 泰顺县凤垟乡幼儿园 | D168: =" "&(16+COUNTIF($C$2:$C168,C168))&"."&VLOOKUP(A168,#REF!,5,0) -> 
A169: 2050202 | B169: 小学教育 | C169: 泰顺县凤垟乡中心小学 | D169: =" "&(16+COUNTIF($C$2:$C169,C169))&"."&VLOOKUP(A169,#REF!,5,0) -> 
A170: 2050299 | B170: 其他普通教育支出 | C170: 泰顺县凤垟乡中心小学 | D170: =" "&(16+COUNTIF($C$2:$C170,C170))&"."&VLOOKUP(A170,#REF!,5,0) -> 
A171: 2050999 | B171: 其他教育费附加安排的支出 | C171: 泰顺县凤垟乡中心小学 | D171: =" "&(16+COUNTIF($C$2:$C171,C171))&"."&VLOOKUP(A171,#REF!,5,0) -> 
A172: 2069999 | B172: 其他科学技术支出 | C172: 泰顺县凤垟乡中心小学 | D172: =" "&(16+COUNTIF($C$2:$C172,C172))&"."&VLOOKUP(A172,#REF!,5,0) -> 
A173: 2079999 | B173: 其他文化旅游体育与传媒支出 | C173: 泰顺县凤垟乡中心小学 | D173: =" "&(16+COUNTIF($C$2:$C173,C173))&"."&VLOOKUP(A173,#REF!,5,0) -> 
A174: 2080199 | B174: 其他人力资源和社会保障管理事务支出 | C174: 泰顺县凤垟乡中心小学 | D174: =" "&(16+COUNTIF($C$2:$C174,C174))&"."&VLOOKUP(A174,#REF!,5,0) -> 
A175: 2080502 | B175: 事业单位离退休 | C175: 泰顺县凤垟乡中心小学 | D175: =" "&(16+COUNTIF($C$2:$C175,C175))&"."&VLOOKUP(A175,#REF!,5,0) -> 
A176: 2080505 | B176: 机关事业单位基本养老保险缴费支出 | C176: 泰顺县凤垟乡中心小学 | D176: =" "&(16+COUNTIF($C$2:$C176,C176))&"."&VLOOKUP(A176,#REF!,5,0) -> 
A177: 2080506 | B177: 机关事业单位职业年金缴费支出 | C177: 泰顺县凤垟乡中心小学 | D177: =" "&(16+COUNTIF($C$2:$C177,C177))&"."&VLOOKUP(A177,#REF!,5,0) -> 
A178: 2101102 | B178: 事业单位医疗 | C178: 泰顺县凤垟乡中心小学 | D178: =" "&(16+COUNTIF($C$2:$C178,C178))&"."&VLOOKUP(A178,#REF!,5,0) -> 
A179: 2101103 | B179: 公务员医疗补助 | C179: 泰顺县凤垟乡中心小学 | D179: =" "&(16+COUNTIF($C$2:$C179,C179))&"."&VLOOKUP(A179,#REF!,5,0) -> 
A180: 2210201 | B180: 住房公积金 | C180: 泰顺县凤垟乡中心小学 | D180: =" "&(16+COUNTIF($C$2:$C180,C180))&"."&VLOOKUP(A180,#REF!,5,0) -> 
A181: 2290401 | B181: 其他政府性基金安排的支出 | C181: 泰顺县凤垟乡中心小学 | D181: =" "&(16+COUNTIF($C$2:$C181,C181))&"."&VLOOKUP(A181,#REF!,5,0) -> 
A182: 2050201 | B182: 学前教育 | C182: 泰顺县龟湖镇幼儿园 | D182: =" "&(16+COUNTIF($C$2:$C182,C182))&"."&VLOOKUP(A182,#REF!,5,0) -> 
A183: 2050999 | B183: 其他教育费附加安排的支出 | C183: 泰顺县龟湖镇幼儿园 | D183: =" "&(16+COUNTIF($C$2:$C183,C183))&"."&VLOOKUP(A183,#REF!,5,0) -> 
A184: 2080505 | B184: 机关事业单位基本养老保险缴费支出 | C184: 泰顺县龟湖镇幼儿园 | D184: =" "&(16+COUNTIF($C$2:$C184,C184))&"."&VLOOKUP(A184,#REF!,5,0) -> 
A185: 2080506 | B185: 机关事业单位职业年金缴费支出 | C185: 泰顺县龟湖镇幼儿园 | D185: =" "&(16+COUNTIF($C$2:$C185,C185))&"."&VLOOKUP(A185,#REF!,5,0) -> 
A186: 2101102 | B186: 事业单位医疗 | C186: 泰顺县龟湖镇幼儿园 | D186: =" "&(16+COUNTIF($C$2:$C186,C186))&"."&VLOOKUP(A186,#REF!,5,0) -> 
A187: 2101103 | B187: 公务员医疗补助 | C187: 泰顺县龟湖镇幼儿园 | D187: =" "&(16+COUNTIF($C$2:$C187,C187))&"."&VLOOKUP(A187,#REF!,5,0) -> 
A188: 2210201 | B188: 住房公积金 | C188: 泰顺县龟湖镇幼儿园 | D188: =" "&(16+COUNTIF($C$2:$C188,C188))&"."&VLOOKUP(A188,#REF!,5,0) -> 
A189: 2290401 | B189: 其他政府性基金安排的支出 | C189: 泰顺县龟湖镇幼儿园 | D189: =" "&(16+COUNTIF($C$2:$C189,C189))&"."&VLOOKUP(A189,#REF!,5,0) -> 
A190: 2050202 | B190: 小学教育 | C190: 泰顺县龟湖镇中心学校 | D190: =" "&(16+COUNTIF($C$2:$C190,C190))&"."&VLOOKUP(A190,#REF!,5,0) -> 
A191: 2050299 | B191: 其他普通教育支出 | C191: 泰顺县龟湖镇中心学校 | D191: =" "&(16+COUNTIF($C$2:$C191,C191))&"."&VLOOKUP(A191,#REF!,5,0) -> 
A192: 2050999 | B192: 其他教育费附加安排的支出 | C192: 泰顺县龟湖镇中心学校 | D192: =" "&(16+COUNTIF($C$2:$C192,C192))&"."&VLOOKUP(A192,#REF!,5,0) -> 
A193: 2069999 | B193: 其他科学技术支出 | C193: 泰顺县龟湖镇中心学校 | D193: =" "&(16+COUNTIF($C$2:$C193,C193))&"."&VLOOKUP(A193,#REF!,5,0) -> 
A194: 2079999 | B194: 其他文化旅游体育与传媒支出 | C194: 泰顺县龟湖镇中心学校 | D194: =" "&(16+COUNTIF($C$2:$C194,C194))&"."&VLOOKUP(A194,#REF!,5,0) -> 
A195: 2080199 | B195: 其他人力资源和社会保障管理事务支出 | C195: 泰顺县龟湖镇中心学校 | D195: =" "&(16+COUNTIF($C$2:$C195,C195))&"."&VLOOKUP(A195,#REF!,5,0) -> 
A196: 2080502 | B196: 事业单位离退休 | C196: 泰顺县龟湖镇中心学校 | D196: =" "&(16+COUNTIF($C$2:$C196,C196))&"."&VLOOKUP(A196,#REF!,5,0) -> 
A197: 2080505 | B197: 机关事业单位基本养老保险缴费支出 | C197: 泰顺县龟湖镇中心学校 | D197: =" "&(16+COUNTIF($C$2:$C197,C197))&"."&VLOOKUP(A197,#REF!,5,0) -> 
A198: 2080506 | B198: 机关事业单位职业年金缴费支出 | C198: 泰顺县龟湖镇中心学校 | D198: =" "&(16+COUNTIF($C$2:$C198,C198))&"."&VLOOKUP(A198,#REF!,5,0) -> 
A199: 2101102 | B199: 事业单位医疗 | C199: 泰顺县龟湖镇中心学校 | D199: =" "&(16+COUNTIF($C$2:$C199,C199))&"."&VLOOKUP(A199,#REF!,5,0) -> 
A200: 2101103 | B200: 公务员医疗补助 | C200: 泰顺县龟湖镇中心学校 | D200: =" "&(16+COUNTIF($C$2:$C200,C200))&"."&VLOOKUP(A200,#REF!,5,0) -> 
A201: 2210201 | B201: 住房公积金 | C201: 泰顺县龟湖镇中心学校 | D201: =" "&(16+COUNTIF($C$2:$C201,C201))&"."&VLOOKUP(A201,#REF!,5,0) -> 
... 771 more rows

Sheet Sheet2 (hidden)
A1: 17.教育支出（类）普通教育（款）其他普通教育支出（项）：指反映除上述项目以外其他用于普通教育方面的支出。 18.教育支出（类）成人教育（款）成人高等教育（项）：指反映各部门举办函授、夜大、高等教育自学考试等方面的支出。 19.教育支出（类）成人教育（款）其他成人教育支出（项）：指反映除上述项目以外其他用于成人教育方面的支出。 20.科学技术支出（类）其他科学技术支出（款）其他科学技术支出（项）：指反映其他科学技术支出中除以上各项外用于科技方面的支出。 厅 21.社会保障和就业支出（类）人力资源和社会保障管理事务（款）其他人力资源和社会保障管理事务支出（项）：指反映除上述项目以外其他用于人力资源和社会保障管理事务方面的支出。 22.社会保障和就业支出（类）行政事业单位养老支出（款）事业单位离退休（项）：指反映事业单位开支的离退休经费。 23.社会保障和就业支出（类）行政事业单位养老支出（款）机关事业单位基本养老保险缴费支出（项）：指反映机关事业单位实施养老保险制度由单位缴纳的基本养老保险费支出。 24.社会保障和就业支出（类）行政事业单位养老支出（款）机关事业单位职业年金缴费支出（项）：指反映机关事业单位实施养老保险制度由单位实际缴纳的职业年金支出。 25.卫生健康支出（类）行政事业单位医疗（款）事业单位医疗（项）：指反映财政部门安排的事业单位基本医疗保险缴费经费，未参加医疗保险的事业单位的公费医疗经费，按国家规定享受离休人员待遇的医疗经费。 26.卫生健康支出（类）行政事业单位医疗（款）公务员医疗补助（项）：指反映财政部门安排的公务员医疗补助经费。 27.住房保障支出（类）住房改革支出（款）住房公积金（项）：指反映行政事业单位按人力资源和社会保障部、财政部规定的基本工资和津贴补贴以及规定比例为职工缴纳的住房公积金。

Sheet Sheet3 (hidden)
A3: 行标签
A4: 泰顺县包垟乡幼儿园
A5: 泰顺县包垟乡中心学校
A6: 泰顺县北辰学校
A7: 泰顺县北辰幼儿园
A8: 泰顺县城关中学
A9: 泰顺县大安乡幼儿园
A10: 泰顺县大安乡中心学校
A11: 泰顺县第八中学
A12: 泰顺县第二实验小学
A13: 泰顺县第六中学
A14: 泰顺县第七中学
A15: 泰顺县第三实验小学
A16: 泰顺县东溪乡幼儿园
A17: 泰顺县东溪乡中心小学
A18: 泰顺县凤垟乡幼儿园
A19: 泰顺县凤垟乡中心小学
A20: 泰顺县龟湖镇幼儿园
A21: 泰顺县龟湖镇中心学校
A22: 泰顺县机关幼儿园
A23: 泰顺县教师发展中心
A24: 泰顺县教育局
A25: 泰顺县教育局（汇总）
A26: 泰顺县柳峰乡幼儿园
A27: 泰顺县柳峰乡中心学校
A28: 泰顺县鹿泰实验幼儿园
A29: 泰顺县罗阳二中
A30: 泰顺县罗阳镇第二小学
A31: 泰顺县罗阳镇南院中心小学
A32: 泰顺县罗阳镇下洪中心学校
A33: 泰顺县罗阳镇中心小学
A34: 泰顺县罗阳镇洲岭中心小学
A35: 泰顺县民族中学
A36: 泰顺县南浦溪镇幼儿园
A37: 泰顺县南浦溪镇中心学校
A38: 泰顺县培智实验学校
A39: 泰顺县彭溪镇富洋小学
A40: 泰顺县彭溪镇幼儿园
A41: 泰顺县彭溪镇月湖中心小学
A42: 泰顺县彭溪镇中心小学
A43: 泰顺县三魁镇第二小学
A44: 泰顺县三魁镇第二幼儿园
A45: 泰顺县三魁镇幼儿园
A46: 泰顺县三魁镇中心小学
A47: 泰顺县实验小学
A48: 泰顺县实验幼儿园
A49: 泰顺县实验中学
A50: 泰顺县仕阳镇第二小学
A51: 泰顺县仕阳镇万排中心小学
A52: 泰顺县仕阳镇幼儿园
A53: 泰顺县仕阳镇中心小学
A54: 泰顺县司前畲族镇第二幼儿园
A55: 泰顺县司前畲族镇幼儿园
A56: 泰顺县司前畲族镇中心小学
A57: 泰顺县泗溪镇第二小学
A58: 泰顺县泗溪镇第二幼儿园
A59: 泰顺县泗溪镇横坑中心小学
A60: 泰顺县泗溪镇九峰中心小学
A61: 泰顺县泗溪镇幼儿园
A62: 泰顺县泗溪镇中心小学
A63: 泰顺县文祥小学
A64: 泰顺县文祥幼儿园
A65: 泰顺县西旸镇垟溪中心小学
A66: 泰顺县西旸镇幼儿园
A67: 泰顺县西旸镇中心小学
A68: 泰顺县筱村镇第二小学
A69: 泰顺县筱村镇翁山中心小学
A70: 泰顺县筱村镇幼儿园
A71: 泰顺县筱村镇中心小学
A72: 泰顺县雪溪乡幼儿园
A73: 泰顺县雪溪乡中心小学
A74: 泰顺县雅阳镇第二幼儿园
A75: 泰顺县雅阳镇松垟中心小学
A76: 泰顺县雅阳镇幼儿园
A77: 泰顺县雅阳镇中心小学
A78: 泰顺县垟溪幼儿园
A79: 泰顺县职业教育中心
A80: 泰顺县中小学综合实践基地
A81: 泰顺县中心幼儿园
A82: 学军中学附属泰顺实验学校
A83: 浙江开放大学泰顺学院
A84: 浙江省泰顺县第二中学
A85: 浙江省泰顺县第三中学
A86: 浙江省泰顺县第四中学
A87: 浙江省泰顺中学
A88: 总计

Sheet Sheet1 (hidden)
A1: 2050201 | B1: 学前教育 | C1: 泰顺县包垟乡幼儿园
A2: 2050999 | B2: 其他教育费附加安排的支出 | C2: 泰顺县包垟乡幼儿园
A3: 2080505 | B3: 机关事业单位基本养老保险缴费支出 | C3: 泰顺县包垟乡幼儿园
A4: 2080506 | B4: 机关事业单位职业年金缴费支出 | C4: 泰顺县包垟乡幼儿园
A5: 2101102 | B5: 事业单位医疗 | C5: 泰顺县包垟乡幼儿园
A6: 2101103 | B6: 公务员医疗补助 | C6: 泰顺县包垟乡幼儿园
A7: 2210201 | B7: 住房公积金 | C7: 泰顺县包垟乡幼儿园
A8: 2290401 | B8: 其他政府性基金安排的支出 | C8: 泰顺县包垟乡幼儿园
A9: 2050202 | B9: 小学教育 | C9: 泰顺县包垟乡中心学校
A10: 2050299 | B10: 其他普通教育支出 | C10: 泰顺县包垟乡中心学校
A11: 2050999 | B11: 其他教育费附加安排的支出 | C11: 泰顺县包垟乡中心学校
A12: 2069999 | B12: 其他科学技术支出 | C12: 泰顺县包垟乡中心学校
A13: 2079999 | B13: 其他文化旅游体育与传媒支出 | C13: 泰顺县包垟乡中心学校
A14: 2080199 | B14: 其他人力资源和社会保障管理事务支出 | C14: 泰顺县包垟乡中心学校
A15: 2080502 | B15: 事业单位离退休 | C15: 泰顺县包垟乡中心学校
A16: 2080505 | B16: 机关事业单位基本养老保险缴费支出 | C16: 泰顺县包垟乡中心学校
A17: 2080506 | B17: 机关事业单位职业年金缴费支出 | C17: 泰顺县包垟乡中心学校
A18: 2101102 | B18: 事业单位医疗 | C18: 泰顺县包垟乡中心学校
A19: 2101103 | B19: 公务员医疗补助 | C19: 泰顺县包垟乡中心学校
A20: 2210201 | B20: 住房公积金 | C20: 泰顺县包垟乡中心学校
A21: 2290401 | B21: 其他政府性基金安排的支出 | C21: 泰顺县包垟乡中心学校
A22: 2050202 | B22: 小学教育 | C22: 泰顺县北辰学校
A23: 2050203 | B23: 初中教育 | C23: 泰顺县北辰学校
A24: 2050299 | B24: 其他普通教育支出 | C24: 泰顺县北辰学校
A25: 2069999 | B25: 其他科学技术支出 | C25: 泰顺县北辰学校
A26: 2080505 | B26: 机关事业单位基本养老保险缴费支出 | C26: 泰顺县北辰学校
A27: 2080506 | B27: 机关事业单位职业年金缴费支出 | C27: 泰顺县北辰学校
A28: 2101102 | B28: 事业单位医疗 | C28: 泰顺县北辰学校
A29: 2101103 | B29: 公务员医疗补助 | C29: 泰顺县北辰学校
A30: 2210201 | B30: 住房公积金 | C30: 泰顺县北辰学校
A31: 2290401 | B31: 其他政府性基金安排的支出 | C31: 泰顺县北辰学校
A32: 2050201 | B32: 学前教育 | C32: 泰顺县北辰幼儿园
A33: 2050999 | B33: 其他教育费附加安排的支出 | C33: 泰顺县北辰幼儿园
A34: 2080505 | B34: 机关事业单位基本养老保险缴费支出 | C34: 泰顺县北辰幼儿园
A35: 2080506 | B35: 机关事业单位职业年金缴费支出 | C35: 泰顺县北辰幼儿园
A36: 2101102 | B36: 事业单位医疗 | C36: 泰顺县北辰幼儿园
A37: 2101103 | B37: 公务员医疗补助 | C37: 泰顺县北辰幼儿园
A38: 2210201 | B38: 住房公积金 | C38: 泰顺县北辰幼儿园
A39: 2290401 | B39: 其他政府性基金安排的支出 | C39: 泰顺县北辰幼儿园
A40: 2050204 | B40: 高中教育 | C40: 泰顺县城关中学
A41: 2050299 | B41: 其他普通教育支出 | C41: 泰顺县城关中学
A42: 2050999 | B42: 其他教育费附加安排的支出 | C42: 泰顺县城关中学
A43: 2069999 | B43: 其他科学技术支出 | C43: 泰顺县城关中学
A44: 2080199 | B44: 其他人力资源和社会保障管理事务支出 | C44: 泰顺县城关中学
A45: 2080502 | B45: 事业单位离退休 | C45: 泰顺县城关中学
A46: 2080505 | B46: 机关事业单位基本养老保险缴费支出 | C46: 泰顺县城关中学
A47: 2080506 | B47: 机关事业单位职业年金缴费支出 | C47: 泰顺县城关中学
A48: 2101102 | B48: 事业单位医疗 | C48: 泰顺县城关中学
A49: 2101103 | B49: 公务员医疗补助 | C49: 泰顺县城关中学
A50: 2210201 | B50: 住房公积金 | C50: 泰顺县城关中学
A51: 2290401 | B51: 其他政府性基金安排的支出 | C51: 泰顺县城关中学
A52: 2050201 | B52: 学前教育 | C52: 泰顺县大安乡幼儿园
A53: 2050999 | B53: 其他教育费附加安排的支出 | C53: 泰顺县大安乡幼儿园
A54: 2080505 | B54: 机关事业单位基本养老保险缴费支出 | C54: 泰顺县大安乡幼儿园
A55: 2080506 | B55: 机关事业单位职业年金缴费支出 | C55: 泰顺县大安乡幼儿园
A56: 2101102 | B56: 事业单位医疗 | C56: 泰顺县大安乡幼儿园
A57: 2101103 | B57: 公务员医疗补助 | C57: 泰顺县大安乡幼儿园
A58: 2210201 | B58: 住房公积金 | C58: 泰顺县大安乡幼儿园
A59: 2290401 | B59: 其他政府性基金安排的支出 | C59: 泰顺县大安乡幼儿园
A60: 2050202 | B60: 小学教育 | C60: 泰顺县大安乡中心学校
A61: 2050299 | B61: 其他普通教育支出 | C61: 泰顺县大安乡中心学校
A62: 2050999 | B62: 其他教育费附加安排的支出 | C62: 泰顺县大安乡中心学校
A63: 2069999 | B63: 其他科学技术支出 | C63: 泰顺县大安乡中心学校
A64: 2079999 | B64: 其他文化旅游体育与传媒支出 | C64: 泰顺县大安乡中心学校
A65: 2080199 | B65: 其他人力资源和社会保障管理事务支出 | C65: 泰顺县大安乡中心学校
A66: 2080502 | B66: 事业单位离退休 | C66: 泰顺县大安乡中心学校
A67: 2080505 | B67: 机关事业单位基本养老保险缴费支出 | C67: 泰顺县大安乡中心学校
A68: 2080506 | B68: 机关事业单位职业年金缴费支出 | C68: 泰顺县大安乡中心学校
A69: 2101102 | B69: 事业单位医疗 | C69: 泰顺县大安乡中心学校
A70: 2101103 | B70: 公务员医疗补助 | C70: 泰顺县大安乡中心学校
A71: 2210201 | B71: 住房公积金 | C71: 泰顺县大安乡中心学校
A72: 2290401 | B72: 其他政府性基金安排的支出 | C72: 泰顺县大安乡中心学校
A73: 2050203 | B73: 初中教育 | C73: 泰顺县第八中学
A74: 2050299 | B74: 其他普通教育支出 | C74: 泰顺县第八中学
A75: 2050999 | B75: 其他教育费附加安排的支出 | C75: 泰顺县第八中学
A76: 2069999 | B76: 其他科学技术支出 | C76: 泰顺县第八中学
A77: 2080199 | B77: 其他人力资源和社会保障管理事务支出 | C77: 泰顺县第八中学
A78: 2080502 | B78: 事业单位离退休 | C78: 泰顺县第八中学
A79: 2080505 | B79: 机关事业单位基本养老保险缴费支出 | C79: 泰顺县第八中学
A80: 2080506 | B80: 机关事业单位职业年金缴费支出 | C80: 泰顺县第八中学
A81: 2101102 | B81: 事业单位医疗 | C81: 泰顺县第八中学
A82: 2101103 | B82: 公务员医疗补助 | C82: 泰顺县第八中学
A83: 2210201 | B83: 住房公积金 | C83: 泰顺县第八中学
A84: 2290401 | B84: 其他政府性基金安排的支出 | C84: 泰顺县第八中学
A85: 2050202 | B85: 小学教育 | C85: 泰顺县第二实验小学
A86: 2050299 | B86: 其他普通教育支出 | C86: 泰顺县第二实验小学
A87: 2050999 | B87: 其他教育费附加安排的支出 | C87: 泰顺县第二实验小学
A88: 2069999 | B88: 其他科学技术支出 | C88: 泰顺县第二实验小学
A89: 2079999 | B89: 其他文化旅游体育与传媒支出 | C89: 泰顺县第二实验小学
A90: 2080199 | B90: 其他人力资源和社会保障管理事务支出 | C90: 泰顺县第二实验小学
A91: 2080502 | B91: 事业单位离退休 | C91: 泰顺县第二实验小学
A92: 2080505 | B92: 机关事业单位基本养老保险缴费支出 | C92: 泰顺县第二实验小学
A93: 2080506 | B93: 机关事业单位职业年金缴费支出 | C93: 泰顺县第二实验小学
A94: 2101102 | B94: 事业单位医疗 | C94: 泰顺县第二实验小学
A95: 2101103 | B95: 公务员医疗补助 | C95: 泰顺县第二实验小学
A96: 2210201 | B96: 住房公积金 | C96: 泰顺县第二实验小学
A97: 2290401 | B97: 其他政府性基金安排的支出 | C97: 泰顺县第二实验小学
A98: 2050203 | B98: 初中教育 | C98: 泰顺县第六中学
A99: 2050299 | B99: 其他普通教育支出 | C99: 泰顺县第六中学
A100: 2050999 | B100: 其他教育费附加安排的支出 | C100: 泰顺县第六中学
A101: 2069999 | B101: 其他科学技术支出 | C101: 泰顺县第六中学
A102: 2080199 | B102: 其他人力资源和社会保障管理事务支出 | C102: 泰顺县第六中学
A103: 2080502 | B103: 事业单位离退休 | C103: 泰顺县第六中学
A104: 2080505 | B104: 机关事业单位基本养老保险缴费支出 | C104: 泰顺县第六中学
A105: 2080506 | B105: 机关事业单位职业年金缴费支出 | C105: 泰顺县第六中学
A106: 2101102 | B106: 事业单位医疗 | C106: 泰顺县第六中学
A107: 2101103 | B107: 公务员医疗补助 | C107: 泰顺县第六中学
A108: 2210201 | B108: 住房公积金 | C108: 泰顺县第六中学
A109: 2290401 | B109: 其他政府性基金安排的支出 | C109: 泰顺县第六中学
A110: 2296003 | B110: 用于体育事业的彩票公益金支出 | C110: 泰顺县第六中学
A111: 2013299 | B111: 其他组织事务支出 | C111: 泰顺县第七中学
A112: 2050203 | B112: 初中教育 | C112: 泰顺县第七中学
A113: 2050299 | B113: 其他普通教育支出 | C113: 泰顺县第七中学
A114: 2050999 | B114: 其他教育费附加安排的支出 | C114: 泰顺县第七中学
A115: 2069999 | B115: 其他科学技术支出 | C115: 泰顺县第七中学
A116: 2080199 | B116: 其他人力资源和社会保障管理事务支出 | C116: 泰顺县第七中学
A117: 2080502 | B117: 事业单位离退休 | C117: 泰顺县第七中学
A118: 2080505 | B118: 机关事业单位基本养老保险缴费支出 | C118: 泰顺县第七中学
A119: 2080506 | B119: 机关事业单位职业年金缴费支出 | C119: 泰顺县第七中学
A120: 2101102 | B120: 事业单位医疗 | C120: 泰顺县第七中学
A121: 2101103 | B121: 公务员医疗补助 | C121: 泰顺县第七中学
A122: 2210201 | B122: 住房公积金 | C122: 泰顺县第七中学
A123: 2290401 | B123: 其他政府性基金安排的支出 | C123: 泰顺县第七中学
A124: 2050202 | B124: 小学教育 | C124: 泰顺县第三实验小学
A125: 2050299 | B125: 其他普通教育支出 | C125: 泰顺县第三实验小学
A126: 2050999 | B126: 其他教育费附加安排的支出 | C126: 泰顺县第三实验小学
A127: 2069999 | B127: 其他科学技术支出 | C127: 泰顺县第三实验小学
A128: 2079999 | B128: 其他文化旅游体育与传媒支出 | C128: 泰顺县第三实验小学
A129: 2080199 | B129: 其他人力资源和社会保障管理事务支出 | C129: 泰顺县第三实验小学
A130: 2080502 | B130: 事业单位离退休 | C130: 泰顺县第三实验小学
A131: 2080505 | B131: 机关事业单位基本养老保险缴费支出 | C131: 泰顺县第三实验小学
A132: 2080506 | B132: 机关事业单位职业年金缴费支出 | C132: 泰顺县第三实验小学
A133: 2101102 | B133: 事业单位医疗 | C133: 泰顺县第三实验小学
A134: 2101103 | B134: 公务员医疗补助 | C134: 泰顺县第三实验小学
A135: 2210201 | B135: 住房公积金 | C135: 泰顺县第三实验小学
A136: 2290401 | B136: 其他政府性基金安排的支出 | C136: 泰顺县第三实验小学
A137: 2050201 | B137: 学前教育 | C137: 泰顺县东溪乡幼儿园
A138: 2050999 | B138: 其他教育费附加安排的支出 | C138: 泰顺县东溪乡幼儿园
A139: 2080505 | B139: 机关事业单位基本养老保险缴费支出 | C139: 泰顺县东溪乡幼儿园
A140: 2080506 | B140: 机关事业单位职业年金缴费支出 | C140: 泰顺县东溪乡幼儿园
A141: 2101102 | B141: 事业单位医疗 | C141: 泰顺县东溪乡幼儿园
A142: 2101103 | B142: 公务员医疗补助 | C142: 泰顺县东溪乡幼儿园
A143: 2210201 | B143: 住房公积金 | C143: 泰顺县东溪乡幼儿园
A144: 2290401 | B144: 其他政府性基金安排的支出 | C144: 泰顺县东溪乡幼儿园
A145: 2050202 | B145: 小学教育 | C145: 泰顺县东溪乡中心小学
A146: 2050299 | B146: 其他普通教育支出 | C146: 泰顺县东溪乡中心小学
A147: 2050999 | B147: 其他教育费附加安排的支出 | C147: 泰顺县东溪乡中心小学
A148: 2069999 | B148: 其他科学技术支出 | C148: 泰顺县东溪乡中心小学
A149: 2079999 | B149: 其他文化旅游体育与传媒支出 | C149: 泰顺县东溪乡中心小学
A150: 2080199 | B150: 其他人力资源和社会保障管理事务支出 | C150: 泰顺县东溪乡中心小学
A151: 2080502 | B151: 事业单位离退休 | C151: 泰顺县东溪乡中心小学
A152: 2080505 | B152: 机关事业单位基本养老保险缴费支出 | C152: 泰顺县东溪乡中心小学
A153: 2080506 | B153: 机关事业单位职业年金缴费支出 | C153: 泰顺县东溪乡中心小学
A154: 2101102 | B154: 事业单位医疗 | C154: 泰顺县东溪乡中心小学
A155: 2101103 | B155: 公务员医疗补助 | C155: 泰顺县东溪乡中心小学
A156: 2210201 | B156: 住房公积金 | C156: 泰顺县东溪乡中心小学
A157: 2290401 | B157: 其他政府性基金安排的支出 | C157: 泰顺县东溪乡中心小学
A158: 2050201 | B158: 学前教育 | C158: 泰顺县凤垟乡幼儿园
A159: 2050299 | B159: 其他普通教育支出 | C159: 泰顺县凤垟乡幼儿园
A160: 2050999 | B160: 其他教育费附加安排的支出 | C160: 泰顺县凤垟乡幼儿园
A161: 2069999 | B161: 其他科学技术支出 | C161: 泰顺县凤垟乡幼儿园
A162: 2080505 | B162: 机关事业单位基本养老保险缴费支出 | C162: 泰顺县凤垟乡幼儿园
A163: 2080506 | B163: 机关事业单位职业年金缴费支出 | C163: 泰顺县凤垟乡幼儿园
A164: 2101102 | B164: 事业单位医疗 | C164: 泰顺县凤垟乡幼儿园
A165: 2101103 | B165: 公务员医疗补助 | C165: 泰顺县凤垟乡幼儿园
A166: 2210201 | B166: 住房公积金 | C166: 泰顺县凤垟乡幼儿园
A167: 2290401 | B167: 其他政府性基金安排的支出 | C167: 泰顺县凤垟乡幼儿园
A168: 2050202 | B168: 小学教育 | C168: 泰顺县凤垟乡中心小学
A169: 2050299 | B169: 其他普通教育支出 | C169: 泰顺县凤垟乡中心小学
A170: 2050999 | B170: 其他教育费附加安排的支出 | C170: 泰顺县凤垟乡中心小学
A171: 2069999 | B171: 其他科学技术支出 | C171: 泰顺县凤垟乡中心小学
A172: 2079999 | B172: 其他文化旅游体育与传媒支出 | C172: 泰顺县凤垟乡中心小学
A173: 2080199 | B173: 其他人力资源和社会保障管理事务支出 | C173: 泰顺县凤垟乡中心小学
A174: 2080502 | B174: 事业单位离退休 | C174: 泰顺县凤垟乡中心小学
A175: 2080505 | B175: 机关事业单位基本养老保险缴费支出 | C175: 泰顺县凤垟乡中心小学
A176: 2080506 | B176: 机关事业单位职业年金缴费支出 | C176: 泰顺县凤垟乡中心小学
A177: 2101102 | B177: 事业单位医疗 | C177: 泰顺县凤垟乡中心小学
A178: 2101103 | B178: 公务员医疗补助 | C178: 泰顺县凤垟乡中心小学
A179: 2210201 | B179: 住房公积金 | C179: 泰顺县凤垟乡中心小学
A180: 2290401 | B180: 其他政府性基金安排的支出 | C180: 泰顺县凤垟乡中心小学
A181: 2050201 | B181: 学前教育 | C181: 泰顺县龟湖镇幼儿园
A182: 2050999 | B182: 其他教育费附加安排的支出 | C182: 泰顺县龟湖镇幼儿园
A183: 2080505 | B183: 机关事业单位基本养老保险缴费支出 | C183: 泰顺县龟湖镇幼儿园
A184: 2080506 | B184: 机关事业单位职业年金缴费支出 | C184: 泰顺县龟湖镇幼儿园
A185: 2101102 | B185: 事业单位医疗 | C185: 泰顺县龟湖镇幼儿园
A186: 2101103 | B186: 公务员医疗补助 | C186: 泰顺县龟湖镇幼儿园
A187: 2210201 | B187: 住房公积金 | C187: 泰顺县龟湖镇幼儿园
A188: 2290401 | B188: 其他政府性基金安排的支出 | C188: 泰顺县龟湖镇幼儿园
A189: 2050202 | B189: 小学教育 | C189: 泰顺县龟湖镇中心学校
A190: 2050299 | B190: 其他普通教育支出 | C190: 泰顺县龟湖镇中心学校
A191: 2050999 | B191: 其他教育费附加安排的支出 | C191: 泰顺县龟湖镇中心学校
A192: 2069999 | B192: 其他科学技术支出 | C192: 泰顺县龟湖镇中心学校
A193: 2079999 | B193: 其他文化旅游体育与传媒支出 | C193: 泰顺县龟湖镇中心学校
A194: 2080199 | B194: 其他人力资源和社会保障管理事务支出 | C194: 泰顺县龟湖镇中心学校
A195: 2080502 | B195: 事业单位离退休 | C195: 泰顺县龟湖镇中心学校
A196: 2080505 | B196: 机关事业单位基本养老保险缴费支出 | C196: 泰顺县龟湖镇中心学校
A197: 2080506 | B197: 机关事业单位职业年金缴费支出 | C197: 泰顺县龟湖镇中心学校
A198: 2101102 | B198: 事业单位医疗 | C198: 泰顺县龟湖镇中心学校
A199: 2101103 | B199: 公务员医疗补助 | C199: 泰顺县龟湖镇中心学校
A200: 2210201 | B200: 住房公积金 | C200: 泰顺县龟湖镇中心学校
... 771 more rows
